Workbook

Sheet Details
J1: 7 | K1: 8 | L1: 9 | M1: 10 | N1: 11 | O1: 12 | P1: 13 | Q1: 14 | R1: 15 | S1: 16 | T1: 17 | U1: 18 | V1: 19 | W1: 20 | X1: 21 | Y1: 22 | Z1: 23 | AA1: 24 | AB1: 25 | AC1: 26 | AD1: 27 | AE1: 28 | AF1: 29 | AG1: 30 | AH1: 31 | AI1: 32 | AJ1: 33 | AM1: Guest Partner
E2: Balance | F2: =F23+F3 -> 250 | J2: 011760 | M2: 101010 | N2: 111980 | O2: K0270 | P2: L0178 | X2: 181280 | AD2: 192360 | AF2: X1049 | AG2: 233290 | AH2: W0027 | AK2: Britt | AM2: Guest First | BC2: =+BC23 -> 0 | BD2: =+BD23 -> 0 | BE2: =+BE23 -> 0 | BF2: 0 | BG2: 0 | BH2: 0 | BI2: 0 | BJ2: =+BJ23 -> 0 | BK2: 0 | BL2: 0 | BM2: 0 | BN2: 0 | BO2: 0 | BP2: 0 | BQ2: 0 | BR2: 0 | BS2: 0 | BT2: 0 | BU2: 0 | BV2: =+BV23 -> 0 | BW2: 0 | BX2: 0 | BY2: 0 | BZ2: 0 | CA2: 0 | CB2: 0 | CC2: 0 | CD2: 0 | CE2: 0 | CK2: Player | CL2: Palmer | CM2: Tour | CQ2: Oaks | CR2: Panther | CT2: L Windcrst | DC2: 134130 | DD2: 032830
E3: Start | F3: 80 | I3: Avg | J3: 0284389 | K3: 6433451 | L3: 1952705 | M3: 8505540 | N3: ..5583 | O3: ..5613 | P3: ..5649 | Q3: ..5667 | R3: …5653 | S3: 2102801 | T3: 6353615 | U3: 0003188 | V3: 1484835 | W3: 3088085 | X3: ..5970 | Y3: 1078775 | Z3: 2020045 | AA3: ..6106 | AB3: 7967386 | AC3: 0153649 | AD3: ..6052 | AE3: 1635148 | AF3: 6462888 | AG3: ..6290 | AH3: ..6225 | AI3: ..6279 | AJ3: 8505225 | AK3: Rice | AM3: Guest Last | BC3: =+J5 -> GerryA | BD3: BobE | BE3: JohnH | BF3: JesseJ g | BG3: JimK g | BH3: JohnK | BI3: BobL | BJ3: WaltL | BK3: BobLx | BL3: WallisM | BM3: CraigM | BN3: DanM | BO3: TimM | BP3: GaryP | BQ3: AlR | BR3: TimR | BS3: KenR | BT3: RoyS g | BU3: MurrayS | BV3: JeffS | BW3: LarryS | BX3: =+AK5 -> Guest1 | BY3: =+AE5 -> BobW w | BZ3: Waylan g | CA3: BillW | CB3: MikeW | CC3: JimW g | CD3: RobertD | CE3: =+AL5 -> Guest2 | CJ3: Gold | CK3: 128 | CL3: 124 | CM3: 126 | CO3: White | CQ3: 117 | CR3: 113 | CS3: White | CT3: 115 | DC3: ..5744 | DD3: 8505168 | DE3: 4000231 | DF3: 0337384 | DG3: 787341 | DH3: 3871052 | DI3: 6198599 | DJ3: …6091 | DK3: …6279 | DL3: 2565906 | DM3: 1437249
B4: Index | E4: 2020-05-01 | I4: =AVERAGE(J4:AH4) -> 18.168 | J4: 10.8 | K4: 21 | L4: 22.4 | M4: 25.4 | N4: 26.8 | O4: 14.4 | P4: 19.5 | Q4: 22.5 | R4: 17 | S4: 19.4 | T4: 10.1 | U4: 14.5 | V4: 19 | W4: 8.1 | X4: 21.1 | Y4: 17.5 | Z4: 11.1 | AA4: 21.5 | AB4: 16.5 | AC4: 22 | AD4: 19.6 | AE4: 11.9 | AF4: 22.4 | AG4: 20.9 | AH4: 18.8 | AI4: 21.9 | AJ4: 17.8 | AM4: Guest index | BA4: GHIN | BB4: Name | CJ4: White | CK4: 137 | CL4: 126 | CM4: 129 | CO4: Blue | CQ4: 126 | CR4: 118 | CS4: Gold | CT4: 121 | DC4: 16.8 | DD4: 25.4/22 | DE4: 16.7 | DF4: 23.3 | DG4: 6.9 | DH4: 15.1 | DI4: 11.4 | DJ4: 10.9 | DK4: 19.2 | DL4: 12.2 | DM4: 14.2
B5: Date | C5: Day | D5: Course | E5: Time | F5: $ | G5: Rds | H5: $Rds | I5: Tl | J5: GerryA | K5: BobE | L5: JohnH | M5: JesseJ g | N5: JimK g | O5: JohnK | P5: BobL | Q5: WaltL | R5: BobLx | S5: WallisM | T5: CraigM | U5: DanM | V5: TimM | W5: GaryP | X5: AlR | Y5: TimR | Z5: KenR | AA5: RoyS g | AB5: MurrayS | AC5: JeffS | AD5: LarryS | AE5: BobW w | AF5: Waylan g | AG5: BillW | AH5: MikeW | AI5: JimW g | AJ5: RobertD | AK5: Guest1 | AL5: Guest2 | AO5: Date | AP5: Day | AQ5: Course | AR5: # | AS5: Mdl | AT5: Team | AZ5: Club # | BA5: GHIN | BB5: Name | CJ5: Rating | DC5: GeneM | DD5: JoeC | DE5: CharlieC | DF5: ColinM | DG5: Friesen | DH5: CharlieB | DI5: ArtG | DJ5: CarltonS | DK5: JimW | DL5: JohnT | DM5: BillWeb
B6: 2020-05-04 | C6: Mon | D6: Player | E6: 10:39:00 | I6: =SUM(J6:AL6) -> 11 | J6: 0 | K6: 0 | L6: 0 | M6: 1 | N6: 0 | O6: 1 | P6: 1 | Q6: 0 | R6: 0 | S6: 1 | T6: 1 | U6: 1 | V6: 0 | W6: 1 | X6: 0 | Y6: 1 | Z6: 0 | AA6: 1 | AB6: 0 | AC6: 0 | AD6: 0 | AE6: 0 | AF6: 0 | AG6: 1 | AH6: 1 | AI6: 0 | AJ6: 0 | AN6: Jerry Cardillo (Steimer) | AO6: =B6 -> 2020-05-04 | AP6: Mon | AQ6: =+D6 -> Player | AR6: =+I6 -> 11 | AY6: 1 | AZ6: 032830 | BA6: 8505168 | BB6: Cloessner, Joe | DB6: 0 | DD6: 0 | DE6: 0 | DF6: 0 | DG6: 0 | DH6: 0 | DK6: 0 | DL6: 0 | EE6: Player | EF6: Palmer | EG6: Tourney | EH6: Palmer D/K | EI6: Palmer G/D | EJ6: Oaks | EK6: Windcrest | EL6: Panther
B7: 2020-05-06 | C7: Wed | D7: Tourney | E7: 10:21:00 | I7: =SUM(J7:AL7) -> 12 | J7: 0 | K7: 0 | L7: 0 | M7: 1 | N7: 0 | O7: 1 | P7: 1 | Q7: 0 | R7: 1 | S7: 1 | T7: 1 | U7: 1 | V7: 0 | W7: 1 | X7: 0 | Y7: 1 | Z7: 0 | AA7: 1 | AB7: 0 | AC7: 0 | AD7: 1 | AE7: 0 | AF7: 0 | AG7: 0 | AH7: 1 | AI7: 0 | AJ7: 0 | AN7: Jerry Cardillo (Steimer) | AO7: 2020-05-06 | AP7: Wed | AQ7: =+D7 -> Tourney | AR7: =+I7 -> 12 | AY7: 2 | AZ7: 101010 | BA7: 8505540 | BB7: Johnson, Jesse | DB7: 0 | DD7: 0 | DE7: 0 | DF7: 0 | DG7: 0 | DH7: 0 | DK7: 0 | DL7: 0
B8: 2020-05-08 | C8: Fri | D8: Palmer | E8: 10:21:00 | I8: =SUM(J8:AL8) -> 13 | J8: 0 | K8: 0 | L8: 0 | M8: 1 | N8: 0 | O8: 1 | P8: 1 | Q8: 0 | R8: 1 | S8: 1 | T8: 1 | U8: 1 | V8: 1 | W8: 0 | X8: 0 | Y8: 1 | Z8: 0 | AA8: 1 | AB8: 0 | AC8: 0 | AD8: 1 | AE8: 0 | AF8: 0 | AG8: 0 | AH8: 1 | AI8: 1 | AJ8: 0 | AO8: 2020-05-08 | AP8: Fri | AQ8: =+D8 -> Palmer | AR8: =+I8 -> 13 | AY8: 3 | AZ8: 111980 | BA8: 8505583 | BB8: Kenney, Jim | DB8: 0 | DD8: 0 | DE8: 0 | DF8: 0 | DG8: 0 | DH8: 0 | DK8: 0 | DL8: 0
B9: Next Week | F9: Off Names | AY9: 4 | AZ9: 112700 | BA9: 8505613 | BB9: Keyes, John | DD9: Open | DE9: open | DI9: Open | EE9: Player
B10: =B6+7 -> 2020-05-11 | C10: Mon | D10: Player | E10: 10:21:00 | F10: Player | I10: =SUM(J10:AH10) -> 0 | J10: 0 | L10: 0 | N10: 0 | Q10: 0 | X10: 0 | Z10: 0 | AE10: 0 | AF10: 0 | AJ10: 0 | AO10: =B10 -> 2020-05-11 | AP10: Mon | AQ10: =+D10 -> Player | AR10: 0 | AY10: 5 | AZ10: 121780 | BA10: 8505649 | BB10: Lewis, Bob | DK10: 0 | DL10: 0 | EE10: Palmer
B11: =B7+7 -> 2020-05-13 | C11: Wed | D11: Palmer | E11: 10:21:00 | F11: Palmer | I11: 0 | J11: 0 | L11: 0 | N11: 0 | Q11: 0 | X11: 0 | Z11: 0 | AE11: 0 | AF11: 0 | AJ11: 0 | AO11: 2020-05-13 | AP11: Wed | AQ11: =+D11 -> Palmer | AR11: 0 | AY11: 6 | BA11: 6353615 | BB11: Mellington, Craig | DK11: 0 | DL11: 0 | EE11: Tourney
B12: =B8+7 -> 2020-05-15 | C12: Fri | D12: Tourney | E12: 10:21:00 | F12: Tourney | I12: 0 | J12: 0 | L12: 0 | N12: 0 | Q12: 0 | X12: 0 | Z12: 0 | AE12: 0 | AF12: 0 | AJ12: 0 | AO12: 2020-05-15 | AP12: Fri | AQ12: =+D12 -> Tourney | AR12: 0 | AY12: 7 | AZ12: 134130 | BA12: 8505744 | BB12: Miller, Gene | DK12: 0 | DL12: 0 | EE12: Palmer D/K
C13: Mon | D13: Player | E13: 10:21:00 | F13: Palmer D/K | I13: 25 | J13: 1 | K13: 1 | L13: 1 | M13: 1 | N13: 1 | O13: 1 | P13: 1 | Q13: 1 | R13: 1 | S13: 1 | T13: 1 | U13: 1 | V13: 1 | W13: 1 | X13: 1 | Y13: 1 | Z13: 1 | AA13: 1 | AB13: 1 | AC13: 1 | AD13: 1 | AE13: 1 | AF13: 1 | AG13: 1 | AH13: 1 | AI13: 1 | AJ13: 1 | AK13: 1 | AY13: 8 | AZ13: 181280 | BA13: 8505970 | BB13: Roeder, Al | DE13: 1 | DG13: 1 | DH13: 1 | DK13: 1 | DL13: 1 | EE13: Palmer G/D
C14: Wed | D14: Tourney | E14: 10:21:00 | F14: Palmer G/D | I14: 0 | AU14: Stroke | AW14: Stableford | DF14: 1 | DI14: Open | EE14: Oaks
C15: Fri | D15: Palmer | E15: 10:21:00 | F15: Oaks | I15: 0 | AU15: Indiv | AV15: Team | AW15: Ind | AX15: Team | DE15: 1 | EE15: Windcrest
C16: Mon | D16: Player | E16: 10:21:00 | F16: Windcrest | I16: 0 | AU16: Min: | BC16: k | BD16: l | BE16: ai | BF16: n | BG16: o | BH16: p | BI16: q | BJ16: ag | BK16: r | BL16: s | BM16: t | BN16: u | BO16: v | BQ16: x | BR16: y | BS16: aj | BT16: ah | BU16: z | BV16: ab | BW16: aa | BX16: m | BY16: ad | BZ16: ae | CA16: af | CB16: am | CC16: ac | DI16: Open | DK16: open | EE16: Panther
C17: Wed | D17: Palmer | E17: 10:21:00 | F17: Panther | I17: 0 | AT17: min | AU17: =MIN(AU24:AU179) -> 0 | AV17: =MIN(AV24:AV179) -> 0 | AW17: =MIN(AW24:AW179) -> 0 | AX17: =MIN(AX24:AX179) -> 0
C18: Fri | D18: Tourney | E18: 10:21:00 | I18: 0 | AU18: Max:
I19: 0 | AT19: max | AU19: =MAX(AU24:AU179) -> 0 | AV19: =MAX(AV24:AV179) -> 0 | AW19: =MAX(AW24:AW179) -> 0 | AX19: =MAX(AX24:AX179) -> 0 | CH19: FORMULAS: | CP19: Data Only:
F20: =COUNT(G24:G180) -> 53 | G20: Rds | H20: $Rds | I20: Tl Rds | BC20: =+J5 -> GerryA | BD20: BobE | BE20: JohnH | BF20: JesseJ g | BG20: JimK g | BH20: JohnK | BI20: BobL | BJ20: WaltL | BK20: BobLx | BL20: WallisM | BM20: CraigM | BN20: DanM | BO20: TimM | BP20: GaryP | BQ20: AlR | BR20: TimR | BS20: KenR | BT20: RoyS g | BU20: MurrayS | BV20: JeffS | BW20: LarryS | BX20: =+AK5 -> Guest1 | BY20: =+AE5 -> BobW w | BZ20: Waylan g | CA20: BillW | CB20: MikeW | CC20: JimW g | CD20: RobertD | DD20: ae | DE20: ah | DF20: aj | DG20: l
B21: Rounds Played Totals | E21: Avg --> | F21: =AVERAGE(J21:AH21) -> 15.58 | G21: =SUM(G24:G179) -> 46 | H21: =SUM(H24:H179) -> 17 | I21: =SUM(I24:I182) -> 403.5 | J21: 11 | K21: =SUM(K24:K182) -> 11 | L21: =SUM(L24:L182) -> 3 | M21: 21.5 | N21: 0 | O21: 17 | P21: 23 | Q21: =SUM(Q24:Q182) -> 2 | R21: =SUM(R24:R182) -> 23 | S21: 22 | T21: 28.5 | U21: 34 | V21: 15.5 | W21: =SUM(W24:W182) -> 17 | X21: 0 | Y21: 37.5 | Z21: 15 | AA21: =SUM(AA24:AA182) -> 18 | AB21: =SUM(AB24:AB182) -> 30 | AC21: =SUM(AC24:AC182) -> 10 | AD21: 11 | AE21: =SUM(AE24:AE182) -> 0 | AF21: 10 | AG21: 0 | AH21: 29.5 | AI21: =SUM(AI24:AI182) -> 10 | AJ21: =SUM(AJ24:AJ182) -> 0 | AK21: =SUM(AK24:AK182) -> 4 | AL21: =SUM(AL24:AL182) -> 0 | AU21: Stroke | AW21: Stableford | AY21: 9 | AZ21: 190930 | BA21: 8506042 | BB21: Socher, Don | BC21: =+J21 -> 11 | BD21: 11 | BE21: 3 | BF21: 21.5 | BG21: 0 | BH21: 17 | BI21: 23 | BJ21: 2 | BK21: 23 | BL21: 22 | BM21: 28.5 | BN21: 34 | BO21: 15.5 | BP21: 17 | BQ21: 0 | BR21: 37.5 | BS21: 15 | BT21: 18 | BU21: 30 | BV21: 10 | BW21: 11 | BX21: =+AK21 -> 4 | BY21: =+AE21 -> 0 | BZ21: =+AF21 -> 10 | CA21: =+AG21 -> 0 | CB21: =+AH21 -> 29.5 | CC21: =+AI21 -> 10 | CD21: =+AJ21 -> 0 | CH21: By Name | CP21: By % Wins | DB21: =SUM(DB24:DB182) -> 0 | DC21: 4 | DD21: 0 | DE21: 0 | DF21: 3 | DG21: 10 | DH21: =SUM(DH24:DH182) -> 24 | DI21: =SUM(DI24:DI182) -> 0 | DK21: =SUM(DK24:DK182) -> 0 | DL21: =SUM(DL24:DL182) -> 0
B22: 2018-01-01 | AU22: Indiv | AV22: Team | AW22: Ind | AX22: Team | AY22: 10 | AZ22: 192360 | BA22: 8506052 | BB22: Stick, Larry | DQ22: 61 | DR22: 21.5 | DT22: 15 | DV22: 80 | DW22: 9 | DX22: 60 | DY22: 61 | DZ22: 8 | EA22: 34 | EB22: 31 | EC22: 51 | ED22: 28 | EE22: 41.5 | EF22: 31 | EG22: 1 | EH22: 71 | EI22: 56 | EJ22: 57 | EK22: 62 | EL22: 47 | EM22: 38 | EN22: 33 | EO22: 11 | EP22: 24 | EQ22: 10 | ER22: 69.5 | ES22: 10 | ET22: 3 | EU22: 13
B23: Date | C23: Day | D23: Course | E23: Time | F23: =SUM(F24:F188) -> 170 | G23: Rds | H23: $Rds | I23: Tl | J23: GerryA | K23: BobE | L23: JohnH | M23: JesseJ | N23: JimK | O23: JohnK | P23: BobL | Q23: Walt | R23: BobLx | S23: WallisM | T23: CraigM | U23: DanM | V23: TimM | W23: GaryP | X23: AlR | Y23: TimR | Z23: KenR | AA23: RoyS | AB23: MurrayS | AC23: JeffS | AD23: LarryS | AE23: BobW | AF23: WaylanW | AG23: BillW | AH23: MikeW | AI23: JimW | AJ23: RobertD | AK23: Guest1 | AL23: Guest2 | AO23: Date2 | AP23: Day2 | AQ23: Course2 | AR23: # | AS23: Mdl | AT23: Team | AU23: =AVERAGE(AU24:AU182) ->  | AV23: =AVERAGE(AV24:AV182) ->  | AW23: =AVERAGE(AW24:AW182) ->  | AX23: =AVERAGE(AX24:AX182) ->  | AY23: 11 | AZ23: 193770 | BA23: 8506075 | BB23: Strasburger,Chuck | BC23: =SUM(BC24:BC190) -> 0 | BD23: 0 | BE23: =SUM(BE24:BE190) -> 0 | BF23: 0 | BG23: 0 | BH23: 0 | BI23: 0 | BJ23: =SUM(BJ24:BJ190) -> 0 | BK23: 0 | BL23: 0 | BM23: 0 | BN23: 0 | BO23: 0 | BP23: 0 | BQ23: 0 | BR23: 0 | BS23: =SUM(BS24:BS190) -> 0 | BT23: =SUM(BT24:BT190) -> 0 | BU23: 0 | BV23: =SUM(BV24:BV190) -> 0 | BW23: 0 | BX23: =SUM(BX24:BX190) -> 0 | BY23: 0 | BZ23: 0 | CA23: 0 | CB23: =SUM(CB24:CB190) -> 0 | CC23: =SUM(CC24:CC190) -> 0 | CD23: 0 | CF23: Order | CH23: Name | CI23: Wins | CJ23: Rounds | CK23: % Wins | CN23: Order | CP23: Name | CQ23: Wins | CR23: Rounds | CS23: % Wins | CV23: Min Indx | CW23: Max Indx | CX23: Avg Indx | CY23: JoeC | CZ23: 133 | DB23: GeneM | DC23: JoeC | DD23: CharlieC | DE23: ColinM | DF23: JohnF | DG23: CharlieB | DH23: ArtG | DI23: CarltonS | DK23: BillWeb | DL23: JohnT
A24: 1 | B24: 2019-12-30 | C24: Mon | D24: See 2019 | I24: =SUM(J24:AL24) -> 0 | AO24: =B24 -> 2019-12-30 | AP24: =C24 -> Mon | AQ24: =+D24 -> See 2019 | AR24: =I24 -> 0 | AS24: ng | AT24: ng | CF24: 1 | CH24: GerryAnderson | CI24: =BC$23 -> 0 | CJ24: =+BC21 -> 11 | CK24: =IF(CJ24=0,0,(CI24/CJ24)) -> 0 | CN24: 1 | CP24: GerryAnderson | CQ24: 28 | CR24: 63 | CS24: 0.4444444444 | CV24: 11 | CW24: 13.9 | CX24: 12.35454545 | CY24: JJ | CZ24: 115.00001 | DC24: 0 | DD24: 0 | DE24: 0 | DF24: 0 | DG24: 1 | DH24: 1 | DK24: 0 | DQ24: GerryA | DR24: BobE | DT24: JohnH | DV24: JesseJ | DW24: JimK | DX24: JohnK | DY24: BobL | DZ24: Walt | EA24: BobLx | EB24: WallisM | EC24: CraigM | ED24: DanM | EE24: TimM | EF24: GaryP | EG24: AlR | EH24: TimR | EI24: KenR | EJ24: RoyS | EK24: MurrayS | EL24: JeffS | EM24: LarryS | EN24: JohnT | EO24: BobW | EP24: WaylanW | EQ24: BillW | ER24: MikeW | ES24: JimW | ET24: RobertD | EU24: Guest4
A25: 2 | B25: =B24+2 -> 2020-01-01 | C25: Wed | D25: Palmer | E25: 10:21:00 | F25: ng | G25: 1 | H25: 0 | I25: 2 | J25: 0 | K25: 0 | L25: 0 | M25: 0 | N25: 0 | O25: 0 | P25: 0 | Q25: 0 | R25: 1 | S25: 0 | T25: 0 | U25: 0 | V25: 0 | W25: 0 | X25: 0 | Y25: 0 | Z25: 0 | AA25: 0 | AB25: 1 | AC25: 0 | AD25: 0 | AE25: 0 | AF25: 0 | AG25: 0 | AH25: 0 | AI25: 0 | AJ25: 0 | AO25: 2020-01-01 | AP25: Wed | AQ25: Palmer | AR25: 2 | AS25: ng | AT25: ng | CF25: 2 | CH25: BobEdwards | CI25: =BD$23 -> 0 | CJ25: =+BD21 -> 11 | CK25: 0 | CN25: 2 | CP25: BobEdwards | CQ25: 10 | CR25: 23 | CS25: 0.4347826087 | CV25: 11.5 | CW25: 16.7 | CX25: 13.54545455 | CY25: AlR | CZ25: 90 | DB25: 0 | DC25: 1 | DD25: 0 | DE25: 0 | DF25: 0 | DG25: 0 | DH25: 0 | DK25: 0 | DL25: 0
A26: 3 | B26: =B25+2 -> 2020-01-03 | C26: Fri | D26: Tourney | E26: 10:21:00 | F26: ng | G26: 1 | H26: 0 | I26: 4 | J26: 0 | K26: 0 | L26: 0 | M26: 0 | N26: 0 | O26: 0 | P26: 1 | Q26: 0 | R26: 0 | S26: 0 | T26: 0 | U26: 0 | V26: 0 | W26: 0 | X26: 0 | Y26: 1 | Z26: 0 | AA26: 0 | AB26: 1 | AC26: 0 | AD26: 0 | AE26: 0 | AF26: 0 | AG26: 0 | AH26: 1 | AI26: 0 | AJ26: 0 | AO26: 2020-01-03 | AP26: Fri | AQ26: Tourney | AR26: 4 | AS26: ng | AT26: ng | CF26: 3 | CH26: JohnHeg | CI26: =+BE23 -> 0 | CJ26: =+BE21 -> 3 | CK26: 0 | CN26: 3 | CP26: JohnHeg | CQ26: 7 | CR26: 15 | CS26: 0.4666666667 | CV26: 7.9 | CW26: 12.2 | CX26: 9.609090909 | CY26: BillW | CZ26: 112 | DB26: 0 | DC26: wd | DD26: 0 | DE26: 0 | DF26: 1 | DG26: 0 | DH26: 0 | DK26: 0 | DL26: 0 | DQ26: Count | DR26: Group | DS26: TeeTm | DT26: Player | DU26: SF HC | DV26: Rds Played | DW26: Notes/Rank
A27: 4 | B27: =B26+3 -> 2020-01-06 | C27: Mon | D27: Player | E27: 10:03:00 | F27: 10 | G27: 1 | H27: 1 | I27: 14 | J27: 0 | K27: 1 | L27: 0 | M27: 1 | N27: 0 | O27: 1 | P27: 1 | Q27: 0 | R27: 1 | S27: 0 | T27: 1 | U27: 0 | V27: 0 | W27: 1 | X27: 0 | Y27: 1 | Z27: 0 | AA27: 1 | AB27: 1 | AC27: 0 | AD27: 1 | AE27: 0 | AF27: 1 | AG27: 0 | AH27: 1 | AI27: 0 | AJ27: 0 | AK27: 1 | AN27: Charlotte Stick | AO27: 2020-01-06 | AP27: Mon | AQ27: Player | AR27: 14 | AS27: BobLux @ 68 | AT27: Waylan & Larry -1 | CF27: 4 | CH27: JesseJohnson | CI27: =BF$23 -> 0 | CJ27: =+BF21 -> 21.5 | CK27: 0 | CN27: 4 | CP27: JesseJohnson | CQ27: 13 | CR27: 87 | CS27: 0.1494252874 | CV27: 20.2 | CW27: 23.1 | CX27: 21.25909091 | CY27: MikeW | CZ27: 89 | DB27: 0 | DC27: 0 | DD27: 0 | DE27: 0 | DF27: 0 | DG27: 0 | DH27: 0 | DK27: 0 | DL27: 0 | DQ27: 1 | DR27: 1 | DS27: 10:03:00 | DT27: KenR | DU27: 13 | DV27: 56 | DW27: 8 - Host
A28: 5 | B28: =B27+2 -> 2020-01-08 | C28: Wed | D28: Tourney | E28: 10:21:00 | F28: 10 | G28: 1 | H28: 1 | I28: 16 | J28: 0 | K28: 0 | L28: 1 | M28: 1 | N28: 0 | O28: 1 | P28: 1 | Q28: 0 | R28: 1 | S28: 1 | T28: 0 | U28: 1 | V28: 1 | W28: 1 | X28: 0 | Y28: 1 | Z28: 1 | AA28: 0 | AB28: 1 | AC28: 0 | AD28: 1 | AE28: 0 | AF28: 1 | AG28: 0 | AH28: 0 | AI28: 1 | AJ28: 0 | AK28: 1 | AN28: Matt West | AO28: 2020-01-08 | AP28: Wed | AQ28: Tourney | AR28: 16 | AS28: BobLux @ 70 | AT28: Waylan & Bob -1 | CF28: 5 | CH28: JimKenney | CI28: =BG$23 -> 0 | CJ28: =+BG21 -> 0 | CK28: 0 | CN28: 5 | CP28: JimKenney | CQ28: 1 | CR28: 9 | CS28: 0.1111111111 | CY28: CraigM | CZ28: 77 | DB28: 0 | DC28: wd | DD28: 0 | DE28: 0 | DF28: 1 | DG28: 0 | DH28: 1 | DK28: 0 | DL28: 0 | DQ28: 2 | DT28: CraigM | DU28: 9 | DV28: 51 | DW28: 9 - Host
A29: 6 | B29: =B28+2 -> 2020-01-10 | C29: Fri | D29: Palmer | E29: 10:21:00 | F29: 10 | G29: 1 | H29: 1 | I29: 9 | J29: 0 | K29: 0 | L29: 1 | M29: 1 | N29: 0 | O29: 0 | P29: 1 | Q29: 1 | R29: 0 | S29: 0 | T29: 1 | U29: 1 | V29: 0 | W29: 0 | X29: 0 | Y29: 0 | Z29: 0 | AA29: 0 | AB29: 1 | AC29: 0 | AD29: 0 | AE29: 0 | AF29: 1 | AG29: 0 | AH29: 0 | AI29: 1 | AJ29: 0 | AO29: 2020-01-10 | AP29: Fri | AQ29: Palmer | AR29: 9 | AS29: Dan @ 69 | AT29: Dan & Bob -2 | CF29: 6 | CH29: JohnKeyes | CI29: =BH$23 -> 0 | CJ29: =+BH21 -> 17 | CK29: 0 | CN29: 6 | CP29: JohnKeyes | CQ29: 18 | CR29: 66 | CS29: 0.2727272727 | CV29: 10 | CW29: 13.4 | CX29: 11.58636364 | CY29: JohnK | CZ29: 49 | DB29: 0 | DC29: 1 | DD29: 0 | DE29: 0 | DF29: 0 | DG29: 0 | DH29: 0 | DK29: 0 | DL29: 0 | DQ29: 3 | DT29: BobL | DU29: 18 | DV29: 61 | DW29: T4 - Host
A30: 7 | B30: =B29+3 -> 2020-01-13 | C30: Mon | D30: Player | E30: 10:21:00 | F30: ng | G30: 1 | H30: 0 | I30: 9 | J30: 1 | K30: 0 | L30: 0 | M30: 1 | N30: 0 | O30: 0 | P30: 1 | Q30: 0 | R30: 0 | S30: 0 | T30: 1 | U30: 1 | V30: 0 | W30: 0 | X30: 0 | Y30: 1 | Z30: 1 | AA30: 1 | AB30: 1 | AC30: 0 | AD30: 0 | AE30: 0 | AF30: 0 | AG30: 0 | AH30: 0 | AI30: 0 | AJ30: 0 | AO30: 2020-01-13 | AP30: Mon | AQ30: Player | AR30: 9 | AS30: ng | AT30: ng | CF30: 7 | CH30: BobLewis | CI30: =BI$23 -> 0 | CJ30: =+BI21 -> 23 | CK30: =IF(CJ30=0,0,(CI30/CJ30)) -> 0 | CN30: 7 | CP30: BobLewis | CQ30: 30 | CR30: 67 | CS30: 0.447761194 | CY30: ColinM | CZ30: 18 | DB30: 0 | DC30: 1 | DE30: 0 | DF30: 0 | DG30: 1 | DH30: 1 | DK30: 0 | DL30: 0 | DQ30: 4 | DR30: 2 | DS30: 10:12:00 | DT30: JesseJ | DU30: 15gr | DV30: 80 | DW30: 1
A31: 8 | B31: =B30+2 -> 2020-01-15 | C31: Wed | D31: Palmer | E31: 10:21:00 | F31: ng | G31: 1 | H31: 0 | I31: 6 | J31: 1 | K31: 0 | L31: 0 | M31: 0 | N31: 0 | O31: 0 | P31: 0 | Q31: 0 | R31: 0 | S31: 0 | T31: 0 | U31: 1 | V31: 1 | W31: 0 | X31: 0 | Y31: 1 | Z31: 1 | AA31: 0 | AB31: 1 | AC31: 0 | AD31: 0 | AE31: 0 | AF31: 0 | AG31: 0 | AH31: 0 | AI31: 0 | AJ31: 0 | AO31: 2020-01-15 | AP31: Wed | AQ31: Palmer | AR31: 6 | AS31: ng | AT31: ng | CF31: 8 | CH31: WaltLisiewski | CI31: =BJ$23 -> 0 | CJ31: =+BJ21 -> 2 | CK31: =IF(CJ31=0,0,(CI31/CJ31)) -> 0 | CN31: 8 | CP31: WaltLisiewski | CQ31: 0 | CR31: 10 | CS31: 0 | CV31: 6.6 | CW31: 10.6 | CX31: 8.404545455 | CY31: WW | CZ31: 79 | DB31: 0 | DC31: 1 | DE31: 0 | DF31: 0 | DG31: 0 | DH31: 0 | DK31: 0 | DL31: 0 | DQ31: 5 | DT31: TimR | DU31: 22 | DV31: 71 | DW31: 2
A32: 9 | B32: =B31+2 -> 2020-01-17 | C32: Fri | D32: Tourney | E32: 10:03:00 | F32: ng | G32: 1 | H32: 0 | I32: 6 | J32: 0 | K32: 0 | L32: 0 | M32: 0 | N32: 0 | O32: 0 | P32: 1 | Q32: 0 | R32: 0 | S32: 0 | T32: 1 | U32: 1 | V32: 0 | W32: 0 | X32: 0 | Y32: 0 | Z32: 1 | AA32: 1 | AB32: 0 | AC32: 0 | AD32: 1 | AE32: 0 | AF32: 0 | AG32: 0 | AH32: 0 | AI32: 0 | AJ32: 0 | AO32: 2020-01-17 | AP32: Fri | AQ32: Tourney | AR32: 6 | AS32: ng | AT32: Craig, Ken & Dan -1 | CF32: 9 | CH32: BobLux | CI32: =BK$23 -> 0 | CJ32: =+BK21 -> 23 | CK32: 0 | CN32: 9 | CP32: BobLux | CQ32: 11 | CR32: 37 | CS32: 0.2972972973 | CV32: 13.2 | CW32: 17.5 | CX32: 14.96190476 | CY32: BobL | CZ32: 47 | DB32: 0 | DC32: wd | DE32: 0 | DF32: 1 | DG32: 0 | DH32: 0 | DK32: 0 | DL32: 0 | DQ32: 6 | DT32: MikeW | DU32: 18 | DV32: 69.5 | DW32: 3
A33: 10 | B33: =B32+3 -> 2020-01-20 | C33: Mon | D33: Player | E33: 10:39:00 | F33: 10 | G33: 1 | H33: 1 | I33: 8 | J33: 1 | K33: 0 | L33: 0 | M33: 0 | N33: 0 | O33: 1 | P33: 1 | Q33: 0 | R33: 0 | S33: 0 | T33: 1 | U33: 1 | V33: 0 | W33: 0 | X33: 0 | Y33: 1 | Z33: 1 | AA33: 0 | AB33: 1 | AC33: 0 | AD33: 0 | AE33: 0 | AF33: 0 | AG33: 0 | AH33: 0 | AI33: 0 | AJ33: 0 | AO33: 2020-01-20 | AP33: Mon | AQ33: Player | AR33: 8 | AS33: TimR @ 72 | AT33: Gerry & Craig +4 | CF33: 10 | CH33: WallisMcMath | CI33: =BL$23 -> 0 | CJ33: =+BL21 -> 22 | CK33: 0 | CN33: 10 | CP33: WallisMcMath | CQ33: 7 | CR33: 35 | CS33: 0.2 | CV33: 18 | CW33: 23.2 | CX33: 20.58888889 | CY33: GerryA | CZ33: 42 | DB33: 0 | DE33: 0 | DF33: 0 | DG33: 0 | DH33: 1 | DK33: 0 | DL33: 0 | DQ33: 7 | DT33: GerryA | DU33: 10 | DV33: 61 | DW33: 4
A34: 11 | B34: =B33+2 -> 2020-01-22 | C34: Wed | D34: Palmer D/K | E34: 10:30:00 | F34: ng | G34: 0 | H34: 0 | I34: 0 | J34: 0 | K34: 0 | L34: 0 | M34: 0 | N34: 0 | O34: 0 | P34: 0 | Q34: 0 | R34: 0 | S34: 0 | T34: 0 | U34: 0 | V34: 0 | W34: 0 | X34: 0 | Y34: 0 | Z34: 0 | AA34: 0 | AB34: 0 | AC34: 0 | AD34: 0 | AE34: 0 | AF34: 0 | AG34: 0 | AH34: 0 | AI34: 0 | AJ34: 0 | AO34: 2020-01-22 | AP34: Wed | AQ34: Palmer D/K | AR34: 0 | AS34: ng - rain | AT34: ng | CF34: 11 | CH34: CraigMellington | CI34: =BM$23 -> 0 | CJ34: =+BM21 -> 28.5 | CK34: 0 | CN34: 11 | CP34: CraigMellington | CQ34: 22 | CR34: 55 | CS34: 0.4 | CV34: 17.8 | CW34: 20.8 | CX34: 18.90909091 | CY34: LarryS | CZ34: 42 | DB34: 0 | DE34: 0 | DF34: 0 | DG34: 0 | DH34: 0 | DK34: 0 | DL34: 0 | DQ34: 8 | DR34: 3 | DS34: 10:21:00 | DT34: JohnK | DU34: 14 | DV34: 60 | DW34: 6
A35: 12 | B35: =B34+2 -> 2020-01-24 | C35: Fri | D35: Tourney | E35: 10:12:00 | F35: 10 | G35: 1 | H35: 1 | I35: 12 | J35: 1 | K35: 0 | L35: 0 | M35: 0 | N35: 0 | O35: 0 | P35: 1 | Q35: 1 | R35: 1 | S35: 0 | T35: 1 | U35: 1 | V35: 1 | W35: 0 | X35: 0 | Y35: 1 | Z35: 0 | AA35: 0 | AB35: 1 | AC35: 1 | AD35: 0 | AE35: 0 | AF35: 0 | AG35: 0 | AH35: 1 | AI35: 0 | AJ35: 0 | AK35: 1 | AN35: Bob Craig | AO35: 2020-01-24 | AP35: Fri | AQ35: Tourney | AR35: 12 | AS35: Mike @ 70 | AT35: Dan & BobLux even | CF35: 12 | CH35: DanMiracle | CI35: =BN$23 -> 0 | CJ35: =+BN21 -> 34 | CK35: 0 | CN35: 12 | CP35: DanMiracle | CQ35: 11 | CR35: 32 | CS35: 0.34375 | CV35: 17.2 | CW35: 21.7 | CX35: 19.68181818 | CY35: TimR | CZ35: 78 | DB35: 0 | DE35: 0 | DF35: 0 | DG35: 0 | DH35: 0 | DK35: 0 | DL35: 0 | DQ35: 9 | DT35: RoyS | DU35: 20 | DV35: 57 | DW35: 7
A36: 13 | B36: =B35+3 -> 2020-01-27 | C36: Mon | D36: Player | E36: 10:21:00 | F36: 10 | G36: 1 | H36: 1 | I36: 9.5 | J36: 1 | K36: 0 | L36: 0 | M36: 0.5 | N36: 0 | O36: 0 | P36: 1 | Q36: 0 | R36: 0 | S36: 1 | T36: 0 | U36: 1 | V36: 0 | W36: 1 | X36: 0 | Y36: 1 | Z36: 0 | AA36: 0 | AB36: 1 | AC36: 1 | AD36: 0 | AE36: 0 | AF36: 0 | AG36: 0 | AH36: 1 | AI36: 0 | AJ36: 0 | AO36: 2020-01-27 | AP36: Mon | AQ36: Player | AR36: 9.5 | AS36: Gary @ 68 | AT36: Gary & Ken even | CF36: 13 | CH36: TimMoore | CI36: =BO$23 -> 0 | CJ36: =+BO21 -> 15.5 | CK36: 0 | CN36: 13 | CP36: TimMoore | CQ36: 12 | CR36: 48 | CS36: 0.25 | CV36: na | CW36: na | CX36: na | CY36: GeneM | CZ36: 40 | DB36: 0 | DF36: 0 | DG36: 0 | DH36: 0 | DK36: 0 | DL36: 0 | DQ36: 10 | DT36: JeffS | DU36: 22 | DV36: 47 | DW36: 10
A37: 14 | B37: =B36+2 -> 2020-01-29 | C37: Wed | D37: Tourney | E37: 10:39:00 | F37: ng | G37: 0 | H37: 0 | I37: 0 | J37: 0 | K37: 0 | L37: 0 | M37: 0 | N37: 0 | O37: 0 | P37: 0 | Q37: 0 | R37: 0 | S37: 0 | T37: 0 | U37: 0 | V37: 0 | W37: 0 | X37: 0 | Y37: 0 | Z37: 0 | AA37: 0 | AB37: 0 | AC37: 0 | AD37: 0 | AE37: 0 | AF37: 0 | AG37: 0 | AH37: 0 | AI37: 0 | AJ37: 0 | AO37: 2020-01-29 | AP37: Wed | AQ37: Tourney | AR37: 0 | AS37: ng | AT37: ng | CF37: 14 | CH37: GaryPeterson | CI37: =BP$23 -> 0 | CJ37: =+BP21 -> 17 | CK37: =IF(CJ37=0,0,(CI37/CJ37)) -> 0 | CN37: 14 | CP37: GaryPeterson | CQ37: 12 | CR37: 40 | CS37: 0.3 | CV37: 12.7 | CW37: 16.5 | CX37: 14.81818182 | CY37: KenS | CZ37: 9 | DB37: 0 | DF37: 0 | DG37: 0 | DH37: 1 | DK37: 0 | DL37: 0 | DQ37: 11 | DT37: TimM | DU37: 20 | DV37: 41.5 | DW37: 11
A38: 15 | B38: =B37+2 -> 2020-01-31 | C38: Fri | D38: Tourney | E38: 10:12:00 | F38: 10 | G38: 1 | H38: 1 | I38: 9 | J38: 1 | K38: 0 | L38: 0 | M38: 0 | N38: 0 | O38: 0 | P38: 1 | Q38: 0 | R38: 0 | S38: 0 | T38: 0 | U38: 1 | V38: 1 | W38: 0 | X38: 0 | Y38: 1 | Z38: 1 | AA38: 0 | AB38: 1 | AC38: 1 | AD38: 0 | AE38: 0 | AF38: 0 | AG38: 0 | AH38: 1 | AI38: 0 | AJ38: 0 | AO38: 2020-01-31 | AP38: Fri | AQ38: Tourney | AR38: 9 | AS38: Bob @ 71 | AT38: Ken & Murray Even | CF38: 15 | CH38: AlRoeder | CI38: =BQ$23 -> 0 | CJ38: =+BQ23 -> 0 | CK38: 0 | CN38: 15 | CP38: AlRoeder | CQ38: 1 | CR38: 1 | CS38: 1 | CV38: 14.6 | CW38: 18.2 | CX38: 16.45909091 | CY38: JimK | CZ38: 74 | DB38: 0 | DF38: 0 | DG38: 0 | DH38: 0 | DK38: 0 | DL38: 0 | DQ38: 12 | DR38: 4 | DS38: 10:30:00 | DT38: LarryS | DU38: 17 | DV38: 38 | DW38: 12
A39: 16 | B39: =B38+3 -> 2020-02-03 | C39: Mon | D39: Player | E39: 10:21:00 | F39: 10 | G39: 1 | H39: 1 | I39: 12 | J39: 1 | K39: 0 | L39: 1 | M39: 1 | N39: 0 | O39: 1 | P39: 0 | Q39: 0 | R39: 1 | S39: 0 | T39: 1 | U39: 1 | V39: 0 | W39: 1 | X39: 0 | Y39: 1 | Z39: 1 | AA39: 0 | AB39: 0 | AC39: 1 | AD39: 0 | AE39: 0 | AF39: 0 | AG39: 0 | AH39: 1 | AI39: 0 | AJ39: 0 | AO39: 2020-02-03 | AP39: Mon | AQ39: Player | AR39: 12 | AS39: Dan @ 68 | AT39: Dan & Gary +2 | CF39: 16 | CH39: TimRoesler | CI39: =BR$23 -> 0 | CJ39: =+BR21 -> 37.5 | CK39: 0 | CN39: 16 | CP39: TimRoesler | CQ39: 21 | CR39: 83 | CS39: 0.2530120482 | CV39: 15.3 | CW39: 18.1 | CX39: 16.60909091 | CY39: WallisM | CZ39: 12 | DB39: 0 | DF39: 0 | DG39: 0 | DH39: 0 | DK39: 0 | DL39: 0 | DQ39: 13 | DT39: JohnT | DU39: 11 | DV39: 33 | DW39: 13
A40: 17 | B40: =B39+2 -> 2020-02-05 | C40: Wed | D40: Tourney | E40: 10:21:00 | F40: ng | G40: 0 | H40: 0 | I40: 0 | J40: 0 | K40: 0 | L40: 0 | M40: 0 | N40: 0 | O40: 0 | P40: 0 | Q40: 0 | R40: 0 | S40: 0 | T40: 0 | U40: 0 | V40: 0 | W40: 0 | X40: 0 | Y40: 0 | Z40: 0 | AA40: 0 | AB40: 0 | AC40: 0 | AD40: 0 | AE40: 0 | AF40: 0 | AG40: 0 | AH40: 0 | AI40: 0 | AJ40: 0 | AO40: 2020-02-05 | AP40: Wed | AQ40: Tourney | AR40: 0 | AS40: ng cold | AT40: ng | CF40: 17 | CH40: KenRowland | CI40: =+BS23 -> 0 | CJ40: =+BS21 -> 15 | CK40: 0 | CN40: 17 | CP40: KenRowland | CQ40: 15 | CR40: 60 | CS40: 0.25 | CV40: 14.3 | CW40: 15.8 | CX40: 15.07727273 | CY40: Carlton | CZ40: 11 | DB40: 0 | DF40: 0 | DG40: 0 | DH40: 1 | DK40: 0 | DL40: 0 | DQ40: 14 | DT40: WallisM | DU40: 19 | DV40: 31 | DW40: 14
A41: 18 | B41: =B40+2 -> 2020-02-07 | C41: Fri | D41: Palmer | E41: 10:21:00 | F41: 10 | G41: 1 | H41: 1 | I41: 14 | J41: 1 | K41: 1 | L41: 0 | M41: 0 | N41: 0 | O41: 1 | P41: 0 | Q41: 0 | R41: 1 | S41: 1 | T41: 1 | U41: 1 | V41: 0 | W41: 0 | X41: 0 | Y41: 1 | Z41: 1 | AA41: 0 | AB41: 1 | AC41: 0 | AD41: 1 | AE41: 0 | AF41: 1 | AG41: 0 | AH41: 1 | AI41: 0 | AJ41: 0 | AK41: 1 | AN41: Matt West | AO41: 2020-02-07 | AP41: Fri | AQ41: Palmer | AR41: 14 | AS41: Dan @ 74 | AT41: Dan & BobE +2 | CF41: 18 | CH41: RoySimmons | CI41: =BT$23 -> 0 | CJ41: =+BT21 -> 18 | CK41: 0 | CP41: RoySimmons | CQ41: 11 | CR41: 62 | CS41: 0.1774193548 | CY41: Milton | CZ41: 12 | DB41: 0 | DF41: 0 | DG41: 1 | DH41: 0 | DK41: 0 | DL41: 0 | DQ41: 15 | DT41: GaryP | DU41: 9 | DV41: 31 | DW41: 15
A42: 19 | B42: =B41+3 -> 2020-02-10 | C42: Mon | D42: Player | E42: 10:30:00 | F42: ng | G42: 1 | H42: 0 | I42: 8 | J42: 1 | K42: 0 | L42: 0 | M42: 0 | N42: 0 | O42: 0 | P42: 1 | Q42: 0 | R42: 0 | S42: 0 | T42: 1 | U42: 1 | V42: 0 | W42: 1 | X42: 0 | Y42: 1 | Z42: 0 | AA42: 0 | AB42: 1 | AC42: 0 | AD42: 0 | AE42: 0 | AF42: 1 | AG42: 0 | AH42: 0 | AI42: 0 | AJ42: 0 | AO42: 2020-02-10 | AP42: Mon | AQ42: Player | AR42: 8 | AS42: ng | CF42: 19 | CH42: MurraySmith | CI42: =BU$23 -> 0 | CJ42: =+BU21 -> 30 | CK42: 0 | CN42: 18 | CP42: MurraySmith | CQ42: 21 | CR42: 66 | CS42: 0.3181818182 | CV42: 12.7 | CW42: 16.5 | CX42: 14.81818182 | DB42: 0 | DF42: 0 | DG42: 0 | DH42: AJGA | DK42: 0 | DL42: 0 | DQ42: 16 | DR42: 5 | DS42: 10:39:00 | DT42: DanM | DU42: 15 | DV42: 28 | DW42: 16
A43: 20 | B43: =B42+2 -> 2020-02-12 | C43: Wed | D43: Palmer D/K | E43: 10:21:00 | F43: ng | G43: 0 | H43: 0 | I43: 0 | J43: 0 | K43: 0 | L43: 0 | M43: 0 | N43: 0 | O43: 0 | P43: 0 | Q43: 0 | R43: 0 | S43: 0 | T43: 0 | U43: 0 | V43: 0 | W43: 0 | X43: 0 | Y43: 0 | Z43: 0 | AA43: 0 | AB43: 0 | AC43: 0 | AD43: 0 | AE43: 0 | AF43: 0 | AG43: 0 | AH43: 0 | AI43: 0 | AJ43: 0 | AO43: 2020-02-12 | AP43: Wed | AQ43: Palmer D/K | AR43: 0 | AS43: ng | CF43: 20 | CH43: JeffSteimer | CI43: =BW$23 -> 0 | CJ43: =+BW21 -> 11 | CK43: 0 | CN43: 19 | CP43: JeffSteimer | CQ43: 13 | CR43: 45 | CS43: 0.2888888889 | CV43: 12.7 | CW43: 16.5 | CX43: 14.81818182 | CY43: DanM | CZ43: 9 | DB43: 0 | DF43: 0 | DG43: 0 | DH43: 1 | DK43: 0 | DL43: 0 | DQ43: 17 | DT43: WaylanW | DU43: 17gr | DV43: 24 | DW43: 17
A44: 21 | B44: =B43+2 -> 2020-02-14 | C44: Fri | D44: Tourney | E44: 10:21:00 | F44: ng | G44: 1 | H44: 0 | I44: 5 | J44: 0 | K44: 0 | L44: 0 | M44: 0 | N44: 0 | O44: 1 | P44: 1 | Q44: 0 | R44: 0 | S44: 0 | T44: 0 | U44: 1 | V44: 0 | W44: 1 | X44: 0 | Y44: 0 | Z44: 0 | AA44: 0 | AB44: 1 | AC44: 0 | AD44: 0 | AE44: 0 | AF44: 0 | AG44: 0 | AH44: 0 | AI44: 0 | AJ44: 0 | AO44: 2020-02-14 | AP44: Fri | AQ44: Tourney | AR44: 5 | AS44: ng | CF44: 21 | CH44: LarryStick | CI44: =BV$23 -> 0 | CJ44: =+BV21 -> 10 | CK44: 0 | CN44: 20 | CP44: LarryStick | CQ44: 12 | CR44: 54 | CS44: 0.2222222222 | CY44: BobLx | CZ44: 4 | DB44: 0 | DF44: 0 | DG44: 0 | DH44: 0 | DK44: 0 | DL44: 0 | DQ44: 18 | DT44: JimW | DU44: 19 | DV44: 10 | DW44: 18- Social
A45: 22 | B45: =B44+3 -> 2020-02-17 | C45: Mon | D45: Player | E45: 10:30:00 | F45: ng | G45: 1 | H45: 0 | I45: 6 | J45: 1 | K45: 0 | L45: 0 | M45: 0 | N45: 0 | O45: 1 | P45: 0 | Q45: 0 | R45: 0 | S45: 0 | T45: 1 | U45: 0 | V45: 0 | W45: 0 | X45: 0 | Y45: 1 | Z45: 1 | AA45: 0 | AB45: 0 | AC45: 0 | AD45: 0 | AE45: 0 | AF45: 1 | AG45: 0 | AH45: 0 | AI45: 0 | AJ45: 0 | AO45: 2020-02-17 | AP45: Mon | AQ45: Player | AR45: 6 | AS45: ng | CF45: 22 | CH45: JohnTruhe | CI45: =BX$23 -> 0 | CJ45: =+BX21 -> 4 | CK45: 0 | CN45: 21 | CP45: JohnTruhe | CQ45: 5 | CR45: 34 | CS45: 0.1470588235 | DB45: 0 | DF45: 0 | DG45: 0 | DH45: 0 | DK45: 0 | DL45: 0 | DQ45: 19 | DT45: Walt | DU45: 22 | DV45: 8 | DW45: 19- Social
A46: 23 | B46: =B45+2 -> 2020-02-19 | C46: Wed | D46: Tourney | E46: 10:21:00 | F46: ng | G46: 0 | H46: 0 | I46: 0 | J46: 0 | K46: 0 | L46: 0 | M46: 0 | N46: 0 | O46: 0 | P46: 0 | Q46: 0 | R46: 0 | S46: 0 | T46: 0 | U46: 0 | V46: 0 | W46: 0 | X46: 0 | Y46: 0 | Z46: 0 | AA46: 0 | AB46: 0 | AC46: 0 | AD46: 0 | AE46: 0 | AF46: 0 | AG46: 0 | AH46: 0 | AI46: 0 | AJ46: 0 | AO46: 2020-02-19 | AP46: Wed | AQ46: Tourney | AR46: 0 | AS46: ng | CF46: 23 | CH46: Bob Watkins | CI46: =BY$23 -> 0 | CJ46: =+BY21 -> 0 | CK46: 0 | CN46: 22 | CP46: Bob Watkins | CQ46: 5 | CR46: 11 | CS46: 0.4545454545 | CV46: 19.9 | CW46: 24.6 | CX46: 21.54545455 | DB46: 0 | DF46: 0 | DG46: 0 | DH46: 0 | DK46: 0 | DL46: 0
A47: 24 | B47: =B46+2 -> 2020-02-21 | C47: Fri | D47: Palmer | E47: 10:21:00 | F47: 10 | G47: 1 | H47: 0 | I47: 11 | J47: 1 | K47: 0 | L47: 0 | M47: 0 | N47: 0 | O47: 0 | P47: 1 | Q47: 0 | R47: 0 | S47: 1 | T47: 1 | U47: 0 | V47: 1 | W47: 0 | X47: 0 | Y47: 1 | Z47: 1 | AA47: 0 | AB47: 1 | AC47: 1 | AD47: 0 | AE47: 0 | AF47: 0 | AG47: 0 | AH47: 1 | AI47: 1 | AJ47: 0 | AO47: 2020-02-21 | AP47: Fri | AQ47: Palmer | AR47: 11 | AS47: Ken & Murray @ 73 | AT47: Ken & Mike +2 | CF47: 24 | CH47: WaylanWest | CI47: =+BZ23 -> 0 | CJ47: =+BZ21 -> 10 | CK47: 0 | CN47: 23 | CP47: WaylanWest | CQ47: 8 | CR47: 29 | CS47: 0.275862069 | CV47: 35.1 | CW47: 40.4 | CX47: 38.33181818 | DB47: 0 | DF47: 0 | DG47: 0 | DH47: 0 | DK47: 0 | DL47: 0 | DT47: Not Playing:
A48: 25 | B48: =B47+3 -> 2020-02-24 | C48: Mon | D48: Player | E48: 10:21:00 | F48: ng | G48: 1 | H48: 0 | I48: 4 | J48: 0 | K48: 0 | L48: 0 | M48: 0 | N48: 0 | O48: 0 | P48: 0 | Q48: 0 | R48: 0 | S48: 0 | T48: 1 | U48: 0 | V48: 0 | W48: 0 | X48: 0 | Y48: 1 | Z48: 1 | AA48: 1 | AB48: 0 | AC48: 0 | AD48: 0 | AE48: 0 | AF48: 0 | AG48: 0 | AH48: 0 | AI48: 0 | AJ48: 0 | AO48: 2020-02-24 | AP48: Mon | AQ48: Player | AR48: 4 | AS48: ng rain | AT48: ng | CF48: 25 | CH48: BillWhite | CI48: =CA$23 -> 0 | CJ48: =+CA21 -> 0 | CK48: 0 | CN48: 24 | CP48: BillWhite | CQ48: 1 | CR48: 10 | CS48: 0.1 | DB48: 0 | DF48: 0 | DG48: 0 | DH48: 0 | DK48: 0 | DL48: 0 | DT48: MurrayS | DV48: 62
A49: 26 | B49: =B48+2 -> 2020-02-26 | C49: Wed | D49: Palmer | E49: 10:21:00 | F49: ng | G49: 1 | H49: 0 | I49: 1.5 | J49: 0 | K49: 0 | L49: 0 | M49: 0 | N49: 0 | O49: 0 | P49: 0 | Q49: 0 | R49: 0 | S49: 0 | T49: 0.5 | U49: 0 | V49: 0 | W49: 0 | X49: 0 | Y49: 0.5 | Z49: 0 | AA49: 0 | AB49: 0 | AC49: 0 | AD49: 0 | AE49: 0 | AF49: 0 | AG49: 0 | AH49: 0.5 | AI49: 0 | AJ49: 0 | AO49: 2020-02-26 | AP49: Wed | AQ49: Palmer | AR49: 1.5 | AS49: ng cold | AT49: ng | CF49: 26 | CH49: MikeWhyte | CI49: =CB$23 -> 0 | CJ49: =+CB21 -> 29.5 | CK49: 0 | CN49: 25 | CP49: MikeWhyte | CQ49: 26 | CR49: 82 | CS49: 0.3170731707 | CW49: =43/88 -> 0.4886363636 | CZ49: =0.462*2 -> 0.924 | DB49: 0 | DF49: 0 | DG49: 0 | DH49: 1 | DK49: 0 | DL49: 0 | DT49: BobLx | DV49: 34
A50: 27 | B50: =B49+2 -> 2020-02-28 | C50: Fri | D50: Palmer | E50: 10:21:00 | F50: 10 | G50: 1 | H50: 1 | I50: 11 | J50: 0 | K50: 1 | L50: 0 | M50: 0 | N50: 0 | O50: 1 | P50: 1 | Q50: 0 | R50: 1 | S50: 1 | T50: 0 | U50: 1 | V50: 0 | W50: 1 | X50: 0 | Y50: 0 | Z50: 0 | AA50: 0 | AB50: 1 | AC50: 0 | AD50: 1 | AE50: 0 | AF50: 1 | AG50: 0 | AH50: 1 | AI50: 0 | AJ50: 0 | AO50: 2020-02-28 | AP50: Fri | AQ50: Palmer | AR50: 11 | AS50: Gary & Mike @ 73 | AT50: Gary & BobLux +3 | CF50: 27 | CH50: JimWilliams | CI50: =CC$23 -> 0 | CJ50: =+CC21 -> 10 | CK50: 0 | CN50: 26 | CP50: JimWilliams | CQ50: 1 | CR50: 14 | CS50: 0.07142857143 | CX50: =44/88 -> 0.5 | DC50: 0 | DF50: 0 | DG50: 1 | DH50: 1 | DK50: 0 | DL50: 0 | DT50: BobE | DV50: 21.5
A51: 28 | B51: =B50+3 -> 2020-03-02 | C51: Mon | D51: Player | E51: 10:21:00 | F51: 10 | G51: 1 | H51: 1 | I51: 10 | J51: 0 | K51: 1 | L51: 0 | M51: 1 | N51: 0 | O51: 1 | P51: 1 | Q51: 0 | R51: 1 | S51: 0 | T51: 1 | U51: 1 | V51: 0 | W51: 1 | X51: 0 | Y51: 1 | Z51: 0 | AA51: 0 | AB51: 1 | AC51: 0 | AD51: 0 | AE51: 0 | AF51: 0 | AG51: 0 | AH51: 0 | AI51: 0 | AJ51: 0 | AO51: 2020-03-02 | AP51: Mon | AQ51: Player | AR51: 10 | AS51: BobE & John @ 69 | AT51: BobE & TimR -3 | CF51: 28 | CH51: RobertDuncan | CI51: =CD$23 -> 0 | CJ51: =+CD21 -> 0 | CK51: 0 | CN51: 27 | CP51: RobertDuncan | CQ51: 0 | CR51: 3 | CS51: 0 | CX51: =13/28 -> 0.4642857143 | DC51: 0 | DG51: 1 | DH51: 1 | DK51: 0 | DL51: 0 | DT51: JohnH | DV51: 15
A52: 29 | B52: =B51+2 -> 2020-03-04 | C52: Wed | D52: Palmer | E52: 10:21:00 | F52: ng | G52: 0 | H52: 0 | I52: 0 | J52: 0 | K52: 0 | L52: 0 | M52: 0 | N52: 0 | O52: 0 | P52: 0 | Q52: 0 | R52: 0 | S52: 0 | T52: 0 | U52: 0 | V52: 0 | W52: 0 | X52: 0 | Y52: 0 | Z52: 0 | AA52: 0 | AB52: 0 | AC52: 0 | AD52: 0 | AE52: 0 | AF52: 0 | AG52: 0 | AH52: 0 | AI52: 0 | AJ52: 0 | AO52: 2020-03-04 | AP52: Wed | AQ52: Palmer | AR52: 0 | AS52: ng rain | AT52: ng | CV52: bj | CW52: 43/88 | CX52: =14/28 -> 0.5 | DC52: 0 | DG52: 0 | DH52: 0 | DK52: 0 | DL52: 0 | DT52: BobW | DV52: 11
A53: 30 | B53: =B52+2 -> 2020-03-06 | C53: Fri | D53: Tourney | E53: 10:12:00 | F53: 10 | G53: 1 | H53: 1 | I53: 11 | J53: 0 | K53: 0 | L53: 0 | M53: 0 | N53: 0 | O53: 1 | P53: 1 | Q53: 0 | R53: 0 | S53: 0 | T53: 0 | U53: 1 | V53: 1 | W53: 1 | X53: 0 | Y53: 1 | Z53: 1 | AA53: 1 | AB53: 1 | AC53: 1 | AD53: 0 | AE53: 0 | AF53: 0 | AG53: 0 | AH53: 0 | AI53: 1 | AJ53: 0 | AO53: 2020-03-06 | AP53: Fri | AQ53: Tourney | AR53: 11 | AS53: Jeff @ 66 | AT53: Jeff & Roy -4 | CW53: 44/88 | CX53: =13/27 -> 0.4814814815 | DC53: 0 | DG53: 0 | DH53: 0 | DK53: 0 | DL53: 0 | DT53: BillW | DV53: 10
A54: 31 | B54: =B53+3 -> 2020-03-09 | C54: Mon | D54: Oaks | E54: 10:24:00 | F54: 10 | G54: 1 | H54: 1 | I54: 8 | J54: 0 | K54: 0 | L54: 0 | M54: 1 | N54: 0 | O54: 0 | P54: 1 | Q54: 0 | R54: 0 | S54: 0 | T54: 0 | U54: 0 | V54: 0 | W54: 1 | X54: 0 | Y54: 1 | Z54: 1 | AA54: 0 | AB54: 1 | AC54: 0 | AD54: 0 | AE54: 0 | AF54: 1 | AG54: 0 | AH54: 0 | AI54: 1 | AJ54: 0 | AO54: 2020-03-09 | AP54: Mon | AQ54: Oaks | AR54: 8 | AS54: Ken @ 69 | AT54: Bob & Gary -2 | CH54: By Wins | CP54: By Rounds Played | CV54: ga | CW54: 13/28 | CX54: =13/28 -> 0.4642857143 | DC54: 0 | DG54: 1 | DH54: 0 | DK54: 0 | DL54: 0 | DT54: JimK | DV54: 9
A55: 32 | B55: =B54+2 -> 2020-03-11 | C55: Wed | D55: Tourney | E55: 10:21:00 | F55: 10 | G55: 1 | H55: 1 | I55: 9 | J55: 0 | K55: 0 | L55: 0 | M55: 1 | N55: 0 | O55: 1 | P55: 0 | Q55: 0 | R55: 1 | S55: 1 | T55: 0 | U55: 1 | V55: 0 | W55: 0 | X55: 0 | Y55: 1 | Z55: 1 | AA55: 0 | AB55: 1 | AC55: 0 | AD55: 0 | AE55: 0 | AF55: 0 | AG55: 0 | AH55: 1 | AI55: 0 | AJ55: 0 | AO55: 2020-03-11 | AP55: Wed | AQ55: Tourney | AR55: 9 | AS55: Jesse @ 68 | AT55: TimR & BobLux -3 | CW55: 14/28 | CX55: =15/28 -> 0.5357142857 | DC55: 0 | DG55: 0 | DH55: 1 | DK55: 0 | DL55: 0 | DT55: RobertD | DV55: 3
A56: 33 | B56: =B55+2 -> 2020-03-13 | C56: Fri | D56: Palmer | E56: 10:21:00 | F56: 10 | G56: 1 | H56: 1 | I56: =SUM(J56:AL56) -> 11 | J56: 0 | K56: 0 | L56: 0 | M56: 1 | N56: 0 | O56: 0 | P56: 1 | Q56: 0 | R56: 1 | S56: 0 | T56: 0 | U56: 1 | V56: 1 | W56: 0 | X56: 0 | Y56: 1 | Z56: 0 | AA56: 1 | AB56: 1 | AC56: 0 | AD56: 0 | AE56: 0 | AF56: 1 | AG56: 0 | AH56: 1 | AI56: 1 | AJ56: 0 | AO56: =B56 -> 2020-03-13 | AP56: =C56 -> Fri | AQ56: =+D56 -> Palmer | AR56: =I56 -> 11 | AS56: BobLux @ 69 | AT56: BobLux & Mike +7 | CF56: Order | CH56: Name | CI56: Wins | CJ56: Rounds | CK56: % Wins | CN56: Order | CP56: Name | CQ56: Wins | CR56: Rounds | CS56: % Wins | CW56: 13/27 | CX56: =16/28 -> 0.5714285714 | DC56: 0 | DG56: 0 | DH56: 0 | DK56: 0 | DL56: 0 | DT56: AlR | DV56: 1
A57: 34 | B57: =B56+3 -> 2020-03-16 | C57: Mon | D57: Player | E57: 10:21:00 | F57: 10 kr | G57: 1 | H57: 1 | I57: 9 | J57: 0 | K57: 0 | L57: 0 | M57: 1 | N57: 0 | O57: 0 | P57: 0 | Q57: 0 | R57: 0 | S57: 0 | T57: 1 | U57: 1 | V57: 0 | W57: 1 | X57: 0 | Y57: 1 | Z57: 1 | AA57: 0 | AB57: 1 | AC57: 0 | AD57: 0 | AE57: 0 | AF57: 1 | AG57: 0 | AH57: 1 | AI57: 0 | AJ57: 0 | AO57: 2020-03-16 | AP57: Mon | AQ57: Player | AR57: 9 | AS57: Gary @ 70 | AT57: Gary & Mike -2 | CF57: 1 | CH57: GerryAnderson | CI57: 28 | CJ57: 63 | CK57: 0.4444444444 | CN57: 1 | CP57: GerryAnderson | CQ57: 28 | CR57: 63 | CS57: 0.4444444444 | CW57: 13/28 | DC57: 0 | DG57: 0 | DH57: 0 | DK57: 0 | DL57: 0
A58: 35 | B58: =B57+2 -> 2020-03-18 | C58: Wed | D58: Tourney | E58: 10:21:00 | F58: 10 | G58: 1 | H58: 1 | I58: 8 | J58: 0 | K58: 0 | L58: 0 | M58: 0 | N58: 0 | O58: 0 | P58: 0 | Q58: 0 | R58: 1 | S58: 1 | T58: 1 | U58: 1 | V58: 0 | W58: 0 | X58: 0 | Y58: 1 | Z58: 0 | AA58: 0 | AB58: 1 | AC58: 0 | AD58: 1 | AE58: 0 | AF58: 0 | AG58: 0 | AH58: 1 | AI58: 0 | AJ58: 0 | AO58: 2020-03-18 | AP58: Wed | AQ58: Tourney | AR58: 8 | AS58: Crai & BobLux @68 | AT58: Wallis & BobLux -1 | CF58: 2 | CH58: BobEdwards | CI58: 10 | CJ58: 23 | CK58: 0.4347826087 | CN58: 2 | CP58: BobEdwards | CQ58: 10 | CR58: 23 | CS58: 0.4347826087 | CW58: 15/28 | DC58: 0 | DG58: 0 | DH58: 0 | DK58: 0 | DL58: 0
A59: 36 | B59: =B58+2 -> 2020-03-20 | C59: Fri | D59: Palmer | E59: 10:21:00 | F59: ng | G59: 0 | H59: 0 | I59: 0 | J59: 0 | K59: 0 | L59: 0 | M59: 0 | N59: 0 | O59: 0 | P59: 0 | Q59: 0 | R59: 0 | S59: 0 | T59: 0 | U59: 0 | V59: 0 | W59: 0 | X59: 0 | Y59: 0 | Z59: 0 | AA59: 0 | AB59: 0 | AC59: 0 | AD59: 0 | AE59: 0 | AF59: 0 | AG59: 0 | AH59: 0 | AI59: 0 | AJ59: 0 | AO59: 2020-03-20 | AP59: Fri | AQ59: Palmer | AR59: 0 | AS59: ng | AT59: ng | CF59: 3 | CH59: JohnHeg | CI59: 7 | CJ59: 15 | CK59: 0.4666666667 | CN59: 3 | CP59: JohnHeg | CQ59: 7 | CR59: 15 | CS59: 0.4666666667 | CW59: 16/28 | DC59: 0 | DG59: 1 | DH59: 0 | DK59: 0 | DL59: 0
A60: 37 | B60: =B59+3 -> 2020-03-23 | C60: Mon | D60: Player | E60: 10:21:00 | F60: ng | G60: 1 | H60: 0 | I60: 3 | J60: 0 | K60: 0 | L60: 0 | M60: 0 | N60: 0 | O60: 0 | P60: 0 | Q60: 0 | R60: 0 | S60: 0 | T60: 0 | U60: 0 | V60: 1 | W60: 0 | X60: 0 | Y60: 1 | Z60: 0 | AA60: 0 | AB60: 0 | AC60: 0 | AD60: 0 | AE60: 0 | AF60: 0 | AG60: 0 | AH60: 1 | AI60: 0 | AJ60: 0 | AO60: 2020-03-23 | AP60: Mon | AQ60: Player | AR60: 3 | AS60: ng | CF60: 4 | CH60: JesseJohnson | CI60: 13 | CJ60: 87 | CK60: 0.1494252874 | CN60: 4 | CP60: JesseJohnson | CQ60: 13 | CR60: 87 | CS60: 0.1494252874 | DC60: 0 | DG60: 0 | DH60: 1 | DK60: 0 | DL60: 0
A61: 38 | B61: =B60+2 -> 2020-03-25 | C61: Wed | D61: Palmer | E61: 10:21:00 | F61: ng | G61: 1 | H61: 0 | I61: 8 | J61: 0 | K61: 0 | L61: 0 | M61: 1 | N61: 0 | O61: 0 | P61: 0 | Q61: 0 | R61: 1 | S61: 0 | T61: 1 | U61: 0 | V61: 0 | W61: 0 | X61: 0 | Y61: 1 | Z61: 0 | AA61: 1 | AB61: 1 | AC61: 0 | AD61: 1 | AE61: 0 | AF61: 0 | AG61: 0 | AH61: 1 | AI61: 0 | AJ61: 0 | AO61: 2020-03-25 | AP61: Wed | AQ61: Palmer | AR61: 8 | AS61: ng | CF61: 5 | CH61: JimKenney | CI61: 1 | CJ61: 9 | CK61: 0.1111111111 | CN61: 5 | CP61: JimKenney | CQ61: 1 | CR61: 9 | CS61: 0.1111111111 | DC61: 0 | DG61: 0 | DH61: 0 | DK61: 0 | DL61: 0
A62: 39 | B62: =B61+2 -> 2020-03-27 | C62: Fri | D62: Tourney | E62: 10:21:00 | F62: ng | G62: 1 | H62: 0 | I62: 9 | J62: 0 | K62: 0 | L62: 0 | M62: 1 | N62: 0 | O62: 0 | P62: 0 | Q62: 0 | R62: 1 | S62: 1 | T62: 1 | U62: 1 | V62: 1 | W62: 0 | X62: 0 | Y62: 0 | Z62: 0 | AA62: 1 | AB62: 1 | AC62: 0 | AD62: 0 | AE62: 0 | AF62: 0 | AG62: 0 | AH62: 1 | AI62: 0 | AJ62: 0 | AO62: 2020-03-27 | AP62: Fri | AQ62: Tourney | AR62: 9 | AS62: ng | CF62: 6 | CH62: JohnKeyes | CI62: 18 | CJ62: 66 | CK62: 0.2727272727 | CN62: 6 | CP62: JohnKeyes | CQ62: 18 | CR62: 66 | CS62: 0.2727272727 | DC62: 0 | DG62: 0 | DH62: 0 | DK62: 0 | DL62: 0
A63: 40 | B63: =B62+3 -> 2020-03-30 | C63: Mon | D63: Panther Trail | E63: 10:24:00 | F63: ng | G63: 1 | H63: 0 | I63: 4 | J63: 0 | K63: 0 | L63: 0 | M63: 0 | N63: 0 | O63: 0 | P63: 0 | Q63: 0 | R63: 1 | S63: 1 | T63: 0 | U63: 1 | V63: 0 | W63: 0 | X63: 0 | Y63: 0 | Z63: 0 | AA63: 0 | AB63: 0 | AC63: 0 | AD63: 0 | AE63: 0 | AF63: 0 | AG63: 0 | AH63: 1 | AI63: 0 | AJ63: 0 | AO63: 2020-03-30 | AP63: Mon | AQ63: Panther Trail | AR63: 4 | AS63: ng | CF63: 7 | CH63: BobLewis | CI63: 30 | CJ63: 67 | CK63: 0.447761194 | CN63: 7 | CP63: BobLewis | CQ63: 30 | CR63: 67 | CS63: 0.447761194 | DC63: 0 | DG63: 1 | DH63: 0 | DK63: 0 | DL63: 0
A64: 41 | B64: =B63+2 -> 2020-04-01 | C64: Wed | D64: Palmer | E64: 10:21:00 | F64: ng | G64: 1 | H64: 0 | I64: 11 | J64: 0 | K64: 1 | L64: 0 | M64: 1 | N64: 0 | O64: 0 | P64: 0 | Q64: 0 | R64: 1 | S64: 1 | T64: 1 | U64: 0 | V64: 1 | W64: 0 | X64: 0 | Y64: 1 | Z64: 0 | AA64: 1 | AB64: 1 | AC64: 0 | AD64: 1 | AE64: 0 | AF64: 0 | AG64: 0 | AH64: 1 | AI64: 0 | AJ64: 0 | AO64: 2020-04-01 | AP64: Wed | AQ64: Palmer | AR64: 11 | AS64: ng | CF64: 8 | CH64: WaltLisiewski | CI64: 0 | CJ64: 10 | CK64: 0 | CN64: 8 | CP64: WaltLisiewski | CQ64: 0 | CR64: 10 | CS64: 0 | DC64: 0 | DG64: 1 | DH64: 0 | DK64: 0 | DL64: 0
A65: 42 | B65: =B64+2 -> 2020-04-03 | C65: Fri | D65: Tourney | E65: 10:21:00 | F65: ng | G65: 1 | H65: 0 | I65: 10 | J65: 0 | K65: 1 | L65: 0 | M65: 1 | N65: 0 | O65: 0 | P65: 0 | Q65: 0 | R65: 1 | S65: 1 | T65: 1 | U65: 0 | V65: 1 | W65: 0 | X65: 0 | Y65: 1 | Z65: 0 | AA65: 1 | AB65: 1 | AC65: 0 | AD65: 0 | AE65: 0 | AF65: 0 | AG65: 0 | AH65: 1 | AI65: 0 | AJ65: 0 | AO65: 2020-04-03 | AP65: Fri | AQ65: Tourney | AR65: 10 | AS65: ng | CF65: 9 | CH65: BobLux | CI65: 11 | CJ65: 37 | CK65: 0.2972972973 | CN65: 9 | CP65: BobLux | CQ65: 11 | CR65: 37 | CS65: 0.2972972973 | DC65: 0 | DG65: 1 | DH65: 0 | DK65: 0 | DL65: 0
A66: 43 | B66: =B65+3 -> 2020-04-06 | C66: Mon | D66: Player | E66: 10:21:00 | F66: ng | G66: 1 | H66: 0 | I66: 3 | J66: 0 | K66: 0 | L66: 0 | M66: 0 | N66: 0 | O66: 0 | P66: 0 | Q66: 0 | R66: 0 | S66: 0 | T66: 0 | U66: 1 | V66: 0 | W66: 0 | X66: 0 | Y66: 1 | Z66: 0 | AA66: 0 | AB66: 0 | AC66: 0 | AD66: 0 | AE66: 0 | AF66: 0 | AG66: 0 | AH66: 1 | AI66: 0 | AJ66: 0 | AO66: 2020-04-06 | AP66: Mon | AQ66: Player | AR66: 3 | CF66: 10 | CH66: WallisMcMath | CI66: 7 | CJ66: 35 | CK66: 0.2 | CN66: 10 | CP66: WallisMcMath | CQ66: 7 | CR66: 35 | CS66: 0.2 | DC66: 0 | DG66: 0 | DH66: 0 | DK66: 0 | DL66: 0
A67: 44 | B67: =B66+2 -> 2020-04-08 | C67: Wed | D67: Tourney | E67: 10:21:00 | F67: ng | G67: 1 | H67: 0 | I67: 9 | J67: 0 | K67: 0 | L67: 0 | M67: 0 | N67: 0 | O67: 0 | P67: 0 | Q67: 0 | R67: 1 | S67: 1 | T67: 0 | U67: 1 | V67: 1 | W67: 0 | X67: 0 | Y67: 1 | Z67: 0 | AA67: 1 | AB67: 1 | AC67: 0 | AD67: 1 | AE67: 0 | AF67: 0 | AG67: 0 | AH67: 1 | AI67: 0 | AJ67: 0 | AO67: 2020-04-08 | AP67: Wed | AQ67: Tourney | AR67: 9 | CF67: 11 | CH67: CraigMellington | CI67: 22 | CJ67: 55 | CK67: 0.4 | CN67: 11 | CP67: CraigMellington | CQ67: 22 | CR67: 55 | CS67: 0.4 | DC67: 0 | DG67: 0 | DH67: 0 | DK67: 0 | DL67: 0
A68: 45 | B68: =B67+2 -> 2020-04-10 | C68: Fri | D68: Palmer | E68: 10:21:00 | F68: ng | G68: 1 | H68: 0 | I68: 9 | J68: 0 | K68: 1 | L68: 0 | M68: 0 | N68: 0 | O68: 0 | P68: 0 | Q68: 0 | R68: 0 | S68: 1 | T68: 0 | U68: 1 | V68: 1 | W68: 0 | X68: 0 | Y68: 1 | Z68: 0 | AA68: 1 | AB68: 1 | AC68: 0 | AD68: 0 | AE68: 0 | AF68: 0 | AG68: 0 | AH68: 1 | AI68: 1 | AJ68: 0 | AN68: Roy's Grandson | AO68: 2020-04-10 | AP68: Fri | AQ68: Palmer | AR68: 9 | CF68: 12 | CH68: DanMiracle | CI68: 11 | CJ68: 32 | CK68: 0.34375 | CN68: 12 | CP68: DanMiracle | CQ68: 11 | CR68: 32 | CS68: 0.34375 | DC68: 0 | DG68: 0 | DH68: 0 | DK68: 0 | DL68: 0
A69: 46 | B69: =B68+3 -> 2020-04-13 | C69: Mon | D69: Player | E69: 10:21:00 | F69: ng | G69: 1 | H69: 0 | I69: 8 | J69: 0 | K69: 0 | L69: 0 | M69: 1 | N69: 0 | O69: 0 | P69: 0 | Q69: 0 | R69: 0 | S69: 1 | T69: 1 | U69: 1 | V69: 0 | W69: 1 | X69: 0 | Y69: 1 | Z69: 0 | AA69: 1 | AB69: 0 | AC69: 0 | AD69: 1 | AE69: 0 | AF69: 0 | AG69: 0 | AH69: 0 | AI69: 0 | AJ69: 0 | AN69: Roy's Grandson | AO69: 2020-04-13 | AP69: Mon | AQ69: Player | AR69: 8 | CF69: 13 | CH69: TimMoore | CI69: 12 | CJ69: 48 | CK69: 0.25 | CN69: 13 | CP69: TimMoore | CQ69: 12 | CR69: 48 | CS69: 0.25 | DC69: 0 | DG69: 0 | DH69: 0 | DK69: 0 | DL69: 0
A70: 47 | B70: =B69+2 -> 2020-04-15 | C70: Wed | D70: Tourney | E70: 10:21:00 | F70: ng | G70: 1 | H70: 0 | I70: 12 | J70: 0 | K70: 1 | L70: 0 | M70: 1 | N70: 0 | O70: 1 | P70: 0 | Q70: 0 | R70: 1 | S70: 1 | T70: 1 | U70: 1 | V70: 0 | W70: 1 | X70: 0 | Y70: 1 | Z70: 0 | AA70: 1 | AB70: 1 | AC70: 0 | AD70: 0 | AE70: 0 | AF70: 0 | AG70: 0 | AH70: 1 | AI70: 0 | AJ70: 0 | AO70: 2020-04-15 | AP70: Wed | AQ70: Tourney | AR70: 12 | CF70: 14 | CH70: GaryPeterson | CI70: 12 | CJ70: 40 | CK70: 0.3 | CN70: 14 | CP70: GaryPeterson | CQ70: 12 | CR70: 40 | CS70: 0.3 | DC70: 0 | DG70: 0 | DH70: 0 | DK70: 0 | DL70: 0
A71: 48 | B71: =B70+2 -> 2020-04-17 | C71: Fri | D71: Palmer | E71: 10:12:00 | F71: ng | G71: 1 | H71: 0 | I71: 11 | J71: 0 | K71: 0 | L71: 0 | M71: 1 | N71: 0 | O71: 1 | P71: 0 | Q71: 0 | R71: 1 | S71: 1 | T71: 1 | U71: 1 | V71: 1 | W71: 0 | X71: 0 | Y71: 1 | Z71: 0 | AA71: 1 | AB71: 0 | AC71: 0 | AD71: 0 | AE71: 0 | AF71: 0 | AG71: 0 | AH71: 1 | AI71: 1 | AJ71: 0 | AO71: 2020-04-17 | AP71: Fri | AQ71: Palmer | AR71: 11 | CF71: 15 | CH71: AlRoeder | CI71: 1 | CJ71: 1 | CK71: 1 | CN71: 15 | CP71: AlRoeder | CQ71: 1 | CR71: 1 | CS71: 1 | DC71: 0 | DG71: 0 | DH71: 0 | DK71: 0 | DL71: 0
A72: 49 | B72: =B71+3 -> 2020-04-20 | C72: Mon | D72: Player | E72: 10:21:00 | F72: ng | G72: 1 | H72: 0 | I72: 7.5 | J72: 0 | K72: 0 | L72: 0 | M72: 0 | N72: 0 | O72: 1 | P72: 1 | Q72: 0 | R72: 0 | S72: 1 | T72: 1 | U72: 1 | V72: 0.5 | W72: 1 | X72: 0 | Y72: 1 | Z72: 0 | AA72: 0 | AB72: 0 | AC72: 0 | AD72: 0 | AE72: 0 | AF72: 0 | AG72: 0 | AH72: 0 | AI72: 0 | AJ72: 0 | AO72: 2020-04-20 | AP72: Mon | AQ72: Player | AR72: 7.5 | CF72: 16 | CH72: TimRoesler | CI72: 21 | CJ72: 83 | CK72: 0.2530120482 | CN72: 16 | CP72: TimRoesler | CQ72: 21 | CR72: 83 | CS72: 0.2530120482 | DC72: 0 | DG72: 0 | DH72: 1 | DK72: 0 | DL72: 0
A73: 50 | B73: =B72+2 -> 2020-04-22 | C73: Wed | D73: Palmer | E73: 10:21:00 | F73: ng | G73: 1 | H73: 0 | I73: 13 | J73: 0 | K73: 1 | L73: 0 | M73: 1 | N73: 0 | O73: 1 | P73: 1 | Q73: 0 | R73: 1 | S73: 1 | T73: 1 | U73: 1 | V73: 0 | W73: 1 | X73: 0 | Y73: 1 | Z73: 0 | AA73: 1 | AB73: 0 | AC73: 1 | AD73: 0 | AE73: 0 | AF73: 0 | AG73: 0 | AH73: 1 | AI73: 0 | AJ73: 0 | AO73: 2020-04-22 | AP73: Wed | AQ73: Palmer | AR73: 13 | CF73: 17 | CH73: KenRowland | CI73: 15 | CJ73: 60 | CK73: 0.25 | CN73: 17 | CP73: KenRowland | CQ73: 15 | CR73: 60 | CS73: 0.25 | DC73: 0 | DG73: 0 | DH73: 0 | DK73: 0 | DL73: 0
A74: 51 | B74: =B73+2 -> 2020-04-24 | C74: Fri | D74: Tourney | E74: 10:21:00 | F74: ng | G74: 1 | H74: 0 | I74: 13 | J74: 0 | K74: 1 | L74: 0 | M74: 1 | N74: 0 | O74: 0 | P74: 1 | Q74: 0 | R74: 1 | S74: 1 | T74: 1 | U74: 1 | V74: 1 | W74: 0 | X74: 0 | Y74: 1 | Z74: 0 | AA74: 1 | AB74: 0 | AC74: 1 | AD74: 0 | AE74: 0 | AF74: 0 | AG74: 0 | AH74: 1 | AI74: 1 | AJ74: 0 | AO74: 2020-04-24 | AP74: Fri | AQ74: Tourney | AR74: 13 | CF74: 18 | CH74: RoySimmons | CI74: 11 | CJ74: 62 | CK74: 0.1774193548 | CN74: 18 | CP74: RoySimmons | CQ74: 11 | CR74: 62 | CS74: 0.1774193548 | DC74: 0 | DG74: 0 | DH74: 0 | DK74: 0 | DL74: 0
A75: 52 | B75: =B74+3 -> 2020-04-27 | C75: Mon | D75: Oaks | E75: 10:08:00 | F75: ng | G75: 1 | H75: 0 | I75: 11 | J75: 0 | K75: 0 | L75: 0 | M75: 1 | N75: 0 | O75: 1 | P75: 0 | Q75: 0 | R75: 1 | S75: 1 | T75: 1 | U75: 1 | V75: 0 | W75: 1 | X75: 0 | Y75: 1 | Z75: 0 | AA75: 1 | AB75: 0 | AC75: 1 | AD75: 0 | AE75: 0 | AF75: 0 | AG75: 0 | AH75: 1 | AI75: 0 | AJ75: 0 | AN75: Jerry Cardillo (Steimer) | AO75: 2020-04-27 | AP75: Mon | AQ75: Oaks | AR75: 11 | CF75: 19 | CH75: MurraySmith | CI75: 21 | CJ75: 66 | CK75: 0.3181818182 | CN75: 19 | CP75: MurraySmith | CQ75: 21 | CR75: 66 | CS75: 0.3181818182 | DC75: 0 | DH75: 0 | DK75: 0
A76: 53 | B76: =B75+2 -> 2020-04-29 | C76: Wed | D76: Tourney | E76: 10:21:00 | F76: ng | G76: 1 | H76: 0 | I76: 7 | J76: 0 | K76: 0 | L76: 0 | M76: 0 | N76: 0 | O76: 0 | P76: 1 | Q76: 0 | R76: 0 | S76: 1 | T76: 1 | U76: 1 | V76: 0 | W76: 1 | X76: 0 | Y76: 0 | Z76: 0 | AA76: 0 | AB76: 0 | AC76: 1 | AD76: 0 | AE76: 0 | AF76: 0 | AG76: 0 | AH76: 1 | AI76: 0 | AJ76: 0 | AN76: Jerry Cardillo (Steimer) | AO76: 2020-04-29 | AP76: Wed | AQ76: Tourney | AR76: 7 | CF76: 20 | CH76: JeffSteimer | CI76: 13 | CJ76: 45 | CK76: 0.2888888889 | CN76: 20 | CP76: JeffSteimer | CQ76: 13 | CR76: 45 | CS76: 0.2888888889 | DC76: 0 | DH76: 1 | DK76: 0
A77: 54 | B77: =B76+2 -> 2020-05-01 | C77: Fri | D77: Tourney | E77: 10:21:00 | F77: ng | G77: 1 | H77: 0 | I77: 12 | J77: 0 | K77: 1 | L77: 0 | M77: 1 | N77: 0 | O77: 1 | P77: 1 | Q77: 0 | R77: 1 | S77: 1 | T77: 1 | U77: 1 | V77: 0 | W77: 0 | X77: 0 | Y77: 1 | Z77: 0 | AA77: 0 | AB77: 0 | AC77: 0 | AD77: 1 | AE77: 0 | AF77: 0 | AG77: 0 | AH77: 1 | AI77: 1 | AJ77: 0 | AO77: 2020-05-01 | AP77: Fri | AQ77: Tourney | AR77: 12 | CF77: 21 | CH77: LarryStick | CI77: 12 | CJ77: 54 | CK77: 0.2222222222 | CN77: 21 | CP77: LarryStick | CQ77: 12 | CR77: 54 | CS77: 0.2222222222 | DB77: 0 | DH77: 0 | DK77: 0
A78: 55 | B78: =B77+3 -> 2020-05-04 | C78: Mon | I78: 0 | AO78: 2020-05-04 | AP78: Mon | AQ78: 0 | AR78: 0 | CF78: 22 | CH78: JohnTruhe | CI78: 5 | CJ78: 34 | CK78: 0.1470588235 | CN78: 22 | CP78: JohnTruhe | CQ78: 5 | CR78: 34 | CS78: 0.1470588235 | DB78: 0 | DH78: 0 | DK78: 0
A79: 56 | B79: =B78+2 -> 2020-05-06 | C79: Wed | I79: 0 | AO79: 2020-05-06 | AP79: Wed | AQ79: 0 | AR79: 0 | CF79: 23 | CH79: Bob Watkins | CI79: 5 | CJ79: 11 | CK79: 0.4545454545 | CN79: 23 | CP79: Bob Watkins | CQ79: 5 | CR79: 11 | CS79: 0.4545454545 | DB79: 0 | DH79: 0 | DK79: 0
A80: 57 | B80: =B79+2 -> 2020-05-08 | C80: Fri | I80: 0 | AO80: 2020-05-08 | AP80: Fri | AQ80: 0 | AR80: 0 | CF80: 24 | CH80: WaylanWest | CI80: 8 | CJ80: 29 | CK80: 0.275862069 | CN80: 24 | CP80: WaylanWest | CQ80: 8 | CR80: 29 | CS80: 0.275862069 | DB80: 0 | DH80: 0 | DK80: 0
A81: 58 | B81: =B80+3 -> 2020-05-11 | C81: Mon | I81: 0 | AO81: 2020-05-11 | AP81: Mon | AQ81: 0 | AR81: 0 | CF81: 25 | CH81: BillWhite | CI81: 1 | CJ81: 10 | CK81: 0.1 | CN81: 25 | CP81: BillWhite | CQ81: 1 | CR81: 10 | CS81: 0.1 | DB81: 0 | DH81: 0 | DK81: 0
A82: 59 | B82: =B81+2 -> 2020-05-13 | C82: Wed | I82: 0 | AO82: 2020-05-13 | AP82: Wed | AQ82: 0 | AR82: 0 | CF82: 26 | CH82: MikeWhyte | CI82: 26 | CJ82: 82 | CK82: 0.3170731707 | CN82: 26 | CP82: MikeWhyte | CQ82: 26 | CR82: 82 | CS82: 0.3170731707 | DB82: 0 | DH82: 0 | DK82: 0
A83: 60 | B83: =B82+2 -> 2020-05-15 | C83: Fri | I83: 0 | AO83: 2020-05-15 | AP83: Fri | AQ83: 0 | AR83: 0 | CF83: 27 | CH83: JimWilliams | CI83: 1 | CJ83: 14 | CK83: 0.07142857143 | CN83: 27 | CP83: JimWilliams | CQ83: 1 | CR83: 14 | CS83: 0.07142857143 | DB83: 0 | DH83: 0 | DK83: 0
A84: 61 | B84: =B83+3 -> 2020-05-18 | C84: Mon | I84: 0 | AO84: 2020-05-18 | AP84: Mon | AQ84: 0 | AR84: 0 | CH84: RobertDuncan | CI84: 0 | CJ84: 3 | CK84: 0 | CP84: RobertDuncan | CQ84: 0 | CR84: 3 | CS84: 0 | DB84: 0 | DH84: 0 | DK84: 0
A85: 62 | B85: =B84+2 -> 2020-05-20 | C85: Wed | I85: 0 | AO85: 2020-05-20 | AP85: Wed | AQ85: 0 | AR85: 0 | DB85: 0 | DH85: 0 | DK85: 0
A86: 63 | B86: =B85+2 -> 2020-05-22 | C86: Fri | I86: 0 | AO86: 2020-05-22 | AP86: Fri | AQ86: 0 | AR86: 0 | DB86: 0 | DH86: 0 | DK86: 0
A87: 64 | B87: =B86+3 -> 2020-05-25 | C87: Mon | I87: 0 | AO87: 2020-05-25 | AP87: Mon | AQ87: 0 | AR87: 0 | DB87: 0 | DH87: 0 | DK87: 0
A88: 65 | B88: =B87+2 -> 2020-05-27 | C88: Wed | I88: =SUM(J88:AL88) -> 0 | AO88: =B88 -> 2020-05-27 | AP88: =C88 -> Wed | AQ88: =+D88 -> 0 | AR88: =I88 -> 0 | DB88: 0 | DH88: 0 | DK88: 0
A89: 66 | B89: =B88+2 -> 2020-05-29 | C89: Fri | I89: 0 | AO89: 2020-05-29 | AP89: Fri | AQ89: 0 | AR89: 0 | DB89: 0 | DH89: 0 | DK89: 0
A90: 67 | B90: =B89+3 -> 2020-06-01 | C90: Mon | I90: 0 | AO90: 2020-06-01 | AP90: Mon | AQ90: 0 | AR90: 0 | CH90: Totals for 6 months | DB90: 0 | DH90: 0 | DK90: 0
A91: 68 | B91: =B90+2 -> 2020-06-03 | C91: Wed | I91: 0 | AO91: 2020-06-03 | AP91: Wed | AQ91: 0 | AR91: 0 | CF91: Order | CH91: Name | CI91: Wins | CJ91: Rounds | CK91: % Wins | DB91: 0 | DH91: 0 | DK91: 0
A92: 69 | B92: =B91+2 -> 2020-06-05 | C92: Fri | I92: 0 | AO92: 2020-06-05 | AP92: Fri | AQ92: 0 | AR92: 0 | CF92: 1 | DB92: 0 | DH92: 1 | DK92: 0
A93: 70 | B93: =B92+3 -> 2020-06-08 | C93: Mon | I93: 0 | AO93: 2020-06-08 | AP93: Mon | AQ93: 0 | AR93: 0 | CF93: 2 | DB93: 0 | DH93: 1 | DK93: 0
A94: 71 | B94: =B93+2 -> 2020-06-10 | C94: Wed | I94: 0 | AO94: 2020-06-10 | AP94: Wed | AQ94: 0 | AR94: 0 | CF94: 3 | DB94: 0 | DH94: 0 | DK94: 0
A95: 72 | B95: =B94+2 -> 2020-06-12 | C95: Fri | I95: 0 | AO95: 2020-06-12 | AP95: Fri | AQ95: 0 | AR95: 0 | CF95: 4 | DB95: 0 | DH95: 0 | DK95: 0
A96: 73 | B96: =B95+3 -> 2020-06-15 | C96: Mon | I96: 0 | AO96: 2020-06-15 | AP96: Mon | AQ96: 0 | AR96: 0 | CF96: 5 | DB96: 0 | DH96: 0 | DK96: 0
A97: 74 | B97: =B96+2 -> 2020-06-17 | C97: Wed | I97: 0 | AO97: 2020-06-17 | AP97: Wed | AQ97: 0 | AR97: 0 | CF97: 6 | DB97: 0 | DH97: 0 | DK97: 0
A98: 75 | B98: =B97+2 -> 2020-06-19 | C98: Fri | I98: 0 | AO98: 2020-06-19 | AP98: Fri | AQ98: 0 | AR98: 0 | CF98: 7 | DB98: 0 | DH98: 1 | DK98: 0
A99: 76 | B99: =B98+3 -> 2020-06-22 | C99: Mon | I99: 0 | AO99: 2020-06-22 | AP99: Mon | AQ99: 0 | AR99: 0 | CF99: 8 | DB99: 0 | DH99: 0 | DK99: 0
A100: 77 | B100: =B99+2 -> 2020-06-24 | C100: Wed | I100: 0 | AO100: 2020-06-24 | AP100: Wed | AQ100: 0 | AR100: 0 | CF100: 9 | DB100: 0 | DH100: 0 | DK100: 0
A101: 78 | B101: =B100+2 -> 2020-06-26 | C101: Fri | I101: 0 | AO101: 2020-06-26 | AP101: Fri | AQ101: 0 | AR101: 0 | CF101: 10 | DB101: 0 | DH101: 0 | DK101: 0
A102: 79 | B102: =B101+3 -> 2020-06-29 | C102: Mon | I102: 0 | AO102: 2020-06-29 | AP102: Mon | AQ102: 0 | AR102: 0 | CF102: 11 | DB102: 0 | DH102: 0 | DK102: 0
A103: 80 | B103: =B102+2 -> 2020-07-01 | C103: Wed | I103: 0 | AO103: 2020-07-01 | AP103: Wed | AQ103: 0 | AR103: 0 | CF103: 12 | DB103: 0 | DH103: 0 | DK103: 0
A104: 81 | B104: =B103+2 -> 2020-07-03 | C104: Fri | I104: 0 | AO104: 2020-07-03 | AP104: Fri | AQ104: 0 | AR104: 0 | CF104: 13 | DB104: 0 | DH104: 0 | DK104: 0
A105: 82 | B105: =B104+3 -> 2020-07-06 | C105: Mon | I105: 0 | AO105: 2020-07-06 | AP105: Mon | AQ105: 0 | AR105: 0 | CF105: 14 | DB105: 0 | DH105: 0 | DK105: 0
A106: 83 | B106: =B105+2 -> 2020-07-08 | C106: Wed | I106: 0 | AO106: 2020-07-08 | AP106: Wed | AQ106: 0 | AR106: 0 | CF106: 15 | DB106: 0 | DH106: 0 | DK106: 0
A107: 84 | B107: =B106+2 -> 2020-07-10 | C107: Fri | I107: 0 | AO107: 2020-07-10 | AP107: Fri | AQ107: 0 | AR107: 0 | CF107: 16 | DB107: 0 | DH107: 0 | DK107: 0
A108: 85 | B108: =B107+3 -> 2020-07-13 | C108: Mon | I108: 0 | AO108: 2020-07-13 | AP108: Mon | AQ108: 0 | AR108: 0 | CF108: 17 | DB108: 0 | DH108: 0 | DK108: 0
A109: 86 | B109: =B108+2 -> 2020-07-15 | C109: Wed | I109: 0 | AO109: 2020-07-15 | AP109: Wed | AQ109: 0 | AR109: 0 | CF109: 18 | DB109: 0 | DH109: 0 | DK109: 0
A110: 87 | B110: =B109+2 -> 2020-07-17 | C110: Fri | I110: 0 | AO110: 2020-07-17 | AP110: Fri | AQ110: 0 | AR110: 0 | CF110: 19 | DB110: 0 | DH110: 0 | DK110: 0
A111: 88 | B111: =B110+3 -> 2020-07-20 | C111: Mon | I111: 0 | AO111: 2020-07-20 | AP111: Mon | AQ111: 0 | AR111: 0 | CF111: 20 | DB111: 0 | DH111: 0 | DK111: 0
A112: 89 | B112: =B111+2 -> 2020-07-22 | C112: Wed | I112: 0 | AO112: 2020-07-22 | AP112: Wed | AQ112: 0 | AR112: 0 | CF112: 21 | DB112: 0 | DH112: 0 | DK112: 0
A113: 90 | B113: =B112+2 -> 2020-07-24 | C113: Fri | I113: 0 | AO113: 2020-07-24 | AP113: Fri | AQ113: 0 | AR113: 0 | CE113: 1 | CF113: 22 | DB113: 0 | DH113: 0 | DK113: 0
A114: 91 | B114: =B113+3 -> 2020-07-27 | C114: Mon | I114: 0 | AO114: 2020-07-27 | AP114: Mon | AQ114: 0 | AR114: 0 | CE114: 2 | CF114: 23 | DB114: 0 | DH114: 0 | DK114: 0
A115: 92 | B115: =B114+2 -> 2020-07-29 | C115: Wed | I115: 0 | AO115: 2020-07-29 | AP115: Wed | AQ115: 0 | AR115: 0 | CF115: 24 | DB115: 0 | DH115: 0 | DK115: 0
A116: 93 | B116: =B115+2 -> 2020-07-31 | C116: Fri | I116: 0 | AO116: 2020-07-31 | AP116: Fri | AQ116: 0 | AR116: 0 | CF116: 25 | DB116: 0 | DH116: 0 | DK116: 0
A117: 94 | B117: =B116+3 -> 2020-08-03 | C117: Mon | I117: 0 | AO117: 2020-08-03 | AP117: Mon | AQ117: 0 | AR117: 0 | CF117: 26 | DB117: 0 | DH117: 0 | DK117: 0
A118: 95 | B118: =B117+2 -> 2020-08-05 | C118: Wed | I118: 0 | AO118: 2020-08-05 | AP118: Wed | AQ118: 0 | AR118: 0 | CF118: 27 | DB118: 0 | DH118: 0 | DK118: 0
A119: 96 | B119: =B118+2 -> 2020-08-07 | C119: Fri | I119: 0 | AO119: 2020-08-07 | AP119: Fri | AQ119: 0 | AR119: 0 | DB119: 0 | DH119: 0 | DK119: 0
A120: 97 | B120: =B119+3 -> 2020-08-10 | C120: Mon | I120: =SUM(J120:AL120) -> 0 | AO120: =B120 -> 2020-08-10 | AP120: =C120 -> Mon | AQ120: =+D120 -> 0 | AR120: =I120 -> 0 | DB120: 0 | DH120: 0 | DK120: 0
A121: 98 | B121: =B120+2 -> 2020-08-12 | C121: Wed | I121: 0 | AO121: 2020-08-12 | AP121: Wed | AQ121: 0 | AR121: 0 | DB121: 0 | DH121: 0 | DK121: 0
A122: 99 | B122: =B121+2 -> 2020-08-14 | C122: Fri | I122: 0 | AO122: 2020-08-14 | AP122: Fri | AQ122: 0 | AR122: 0 | DB122: 0 | DH122: 0 | DK122: 0
A123: 100 | B123: =B122+3 -> 2020-08-17 | C123: Mon | I123: 0 | AO123: 2020-08-17 | AP123: Mon | AQ123: 0 | AR123: 0 | DB123: 0 | DH123: 0 | DK123: 0
A124: 101 | B124: =B123+2 -> 2020-08-19 | C124: Wed | I124: 0 | AO124: 2020-08-19 | AP124: Wed | AQ124: 0 | AR124: 0 | DB124: 0 | DH124: 0 | DK124: 0
A125: 102 | B125: =B124+2 -> 2020-08-21 | C125: Fri | I125: 0 | AO125: 2020-08-21 | AP125: Fri | AQ125: 0 | AR125: 0 | DB125: 0 | DH125: 0 | DK125: 0
A126: 103 | B126: =B125+3 -> 2020-08-24 | C126: Mon | I126: 0 | AO126: 2020-08-24 | AP126: Mon | AQ126: 0 | AR126: =+I126 -> 0 | DB126: 0 | DH126: 0 | DK126: 0
A127: 104 | B127: =B126+2 -> 2020-08-26 | C127: Wed | I127: 0 | AO127: 2020-08-26 | AP127: Wed | AQ127: 0 | AR127: =+I127 -> 0 | DB127: 0 | DH127: 0 | DK127: 0
A128: 105 | B128: =B127+2 -> 2020-08-28 | C128: Fri | I128: 0 | AO128: 2020-08-28 | AP128: Fri | AQ128: 0 | AR128: =+I128 -> 0 | DB128: 0 | DH128: 0 | DK128: 0
A129: 106 | B129: =B128+3 -> 2020-08-31 | C129: Mon | I129: 0 | AO129: 2020-08-31 | AP129: Mon | AQ129: 0 | AR129: =I129 -> 0 | DB129: 0 | DH129: 0 | DK129: 0
A130: 107 | B130: =B129+2 -> 2020-09-02 | C130: Wed | I130: 0 | AO130: 2020-09-02 | AP130: Wed | AQ130: 0 | AR130: 0 | DB130: 0 | DH130: 0 | DK130: 0
A131: 108 | B131: =B130+2 -> 2020-09-04 | C131: Fri | I131: 0 | AO131: 2020-09-04 | AP131: Fri | AQ131: 0 | AR131: 0 | DB131: 0 | DH131: 0 | DK131: 0
A132: 109 | B132: =B131+3 -> 2020-09-07 | C132: Mon | I132: 0 | AO132: 2020-09-07 | AP132: Mon | AQ132: 0 | AR132: 0 | DB132: 0 | DH132: 0 | DK132: 0
A133: 110 | B133: =B132+2 -> 2020-09-09 | C133: Wed | I133: 0 | AO133: 2020-09-09 | AP133: Wed | AQ133: 0 | AR133: 0 | DB133: 0 | DH133: 0 | DK133: 0
A134: 111 | B134: =B133+2 -> 2020-09-11 | C134: Fri | I134: 0 | AO134: 2020-09-11 | AP134: Fri | AQ134: 0 | AR134: 0 | DB134: 0 | DH134: 0 | DK134: 0
A135: 112 | B135: =B134+3 -> 2020-09-14 | C135: Mon | I135: 0 | AO135: 2020-09-14 | AP135: Mon | AQ135: 0 | AR135: 0 | DB135: 0 | DH135: 0 | DK135: 0
A136: 113 | B136: =B135+2 -> 2020-09-16 | C136: Wed | I136: 0 | AO136: 2020-09-16 | AP136: Wed | AQ136: 0 | AR136: 0 | DB136: 0 | DH136: 0 | DK136: 0
A137: 114 | B137: =B136+2 -> 2020-09-18 | C137: Fri | I137: 0 | AO137: 2020-09-18 | AP137: Fri | AQ137: 0 | AR137: 0 | DB137: 0 | DH137: 0 | DK137: 0
A138: 115 | B138: =B137+3 -> 2020-09-21 | C138: Mon | I138: 0 | AO138: 2020-09-21 | AP138: Mon | AQ138: 0 | AR138: 0 | DB138: 0 | DH138: 1 | DK138: 0
A139: 116 | B139: =B138+2 -> 2020-09-23 | C139: Wed | I139: 0 | AO139: 2020-09-23 | AP139: Wed | AQ139: 0 | AR139: 0 | DB139: 0 | DH139: 0 | DK139: 0
A140: 117 | B140: =B139+2 -> 2020-09-25 | C140: Fri | I140: 0 | AO140: 2020-09-25 | AP140: Fri | AQ140: 0 | AR140: 0 | DB140: 0 | DH140: 0 | DK140: 0
A141: 118 | B141: =B140+3 -> 2020-09-28 | C141: Mon | I141: 0 | AO141: 2020-09-28 | AP141: Mon | AQ141: 0 | AR141: =+I141 -> 0 | DH141: 0
A142: 119 | B142: =B141+2 -> 2020-09-30 | C142: Wed | I142: 0 | AO142: 2020-09-30 | AP142: Wed | AQ142: 0 | AR142: =+I142 -> 0 | DH142: 1
A143: 120 | B143: =B142+2 -> 2020-10-02 | C143: Fri | I143: 0 | AO143: 2020-10-02 | AP143: Fri | AQ143: 0 | AR143: =+I143 -> 0 | DH143: 0
A144: 121 | B144: =B143+3 -> 2020-10-05 | C144: Mon | I144: 0 | AO144: 2020-10-05 | AP144: Mon | AQ144: 0 | AR144: =I144 -> 0 | DH144: 0
A145: 122 | B145: =B144+2 -> 2020-10-07 | C145: Wed | I145: 0 | AO145: 2020-10-07 | AP145: Wed | AQ145: 0 | AR145: 0 | DH145: 1
A146: 123 | B146: =B145+2 -> 2020-10-09 | C146: Fri | I146: 0 | AO146: 2020-10-09 | AP146: Fri | AQ146: 0 | AR146: 0 | DH146: 0
A147: 124 | B147: =B146+3 -> 2020-10-12 | C147: Mon | I147: 0 | AO147: 2020-10-12 | AP147: Mon | AQ147: 0 | AR147: 0 | DH147: 0
A148: 125 | B148: =B147+2 -> 2020-10-14 | C148: Wed | I148: 0 | AO148: 2020-10-14 | AP148: Wed | AQ148: 0 | AR148: 0 | DH148: 0
A149: 126 | B149: =B148+2 -> 2020-10-16 | C149: Fri | I149: 0 | AO149: 2020-10-16 | AP149: Fri | AQ149: 0 | AR149: 0 | DH149: 0
A150: 127 | B150: =B149+3 -> 2020-10-19 | C150: Mon | I150: 0 | AO150: 2020-10-19 | AP150: Mon | AQ150: 0 | AR150: 0 | DH150: 0
A151: 128 | B151: =B150+2 -> 2020-10-21 | C151: Wed | I151: 0 | AO151: 2020-10-21 | AP151: Wed | AQ151: 0 | AR151: 0 | DH151: 0
A152: 129 | B152: =B151+2 -> 2020-10-23 | C152: Fri | I152: =SUM(J152:AL152) -> 0 | AO152: =B152 -> 2020-10-23 | AP152: =C152 -> Fri | AQ152: =+D152 -> 0 | AR152: 0 | DH152: 0
A153: 130 | B153: =B152+3 -> 2020-10-26 | C153: Mon | I153: 0 | AO153: 2020-10-26 | AP153: Mon | AQ153: 0 | AR153: 0 | DH153: 1
A154: 131 | B154: =B153+2 -> 2020-10-28 | C154: Wed | I154: 0 | AO154: 2020-10-28 | AP154: Wed | AQ154: 0 | AR154: 0 | DH154: 0
A155: 132 | B155: =B154+2 -> 2020-10-30 | C155: Fri | I155: 0 | AO155: 2020-10-30 | AP155: Fri | AQ155: 0 | AR155: 0 | DH155: 0
A156: 133 | B156: =B155+3 -> 2020-11-02 | C156: Mon | I156: 0 | AO156: 2020-11-02 | AP156: Mon | AQ156: 0 | AR156: 0 | DH156: 0
A157: 134 | B157: =B156+2 -> 2020-11-04 | C157: Wed | I157: 0 | AO157: 2020-11-04 | AP157: Wed | AQ157: 0 | AR157: 0 | DH157: 1
A158: 135 | B158: =B157+2 -> 2020-11-06 | C158: Fri | I158: 0 | AO158: 2020-11-06 | AP158: Fri | AQ158: 0 | AR158: 0 | DH158: 0
A159: 136 | B159: =B158+3 -> 2020-11-09 | C159: Mon | I159: 0 | AO159: 2020-11-09 | AP159: Mon | AQ159: 0 | AR159: 0 | DH159: 0
A160: 137 | B160: =B159+2 -> 2020-11-11 | C160: Wed | I160: 0 | AO160: 2020-11-11 | AP160: Wed | AQ160: 0 | AR160: 0 | DH160: 0
A161: 138 | B161: =B160+2 -> 2020-11-13 | C161: Fri | I161: 0 | AO161: 2020-11-13 | AP161: Fri | AQ161: 0 | AR161: 0 | DH161: 0
A162: 139 | B162: =B161+3 -> 2020-11-16 | C162: Mon | I162: 0 | AO162: 2020-11-16 | AP162: Mon | AQ162: 0 | AR162: 0 | DH162: 0
A163: 140 | B163: =B162+2 -> 2020-11-18 | C163: Wed | I163: 0 | AO163: 2020-11-18 | AP163: Wed | AQ163: 0 | AR163: 0 | DH163: 0
A164: 141 | B164: =B163+2 -> 2020-11-20 | C164: Fri | I164: 0 | AO164: 2020-11-20 | AP164: Fri | AQ164: 0 | AR164: 0 | DH164: 0
A165: 142 | B165: =B164+3 -> 2020-11-23 | C165: Mon | I165: 0 | AO165: 2020-11-23 | AP165: Mon | AQ165: 0 | AR165: 0 | DH165: 0
A166: 143 | B166: =B165+2 -> 2020-11-25 | C166: Wed | I166: 0 | AO166: 2020-11-25 | AP166: Wed | AQ166: 0 | AR166: 0 | DH166: 0
A167: 144 | B167: =B166+2 -> 2020-11-27 | C167: Fri | I167: 0 | AO167: 2020-11-27 | AP167: Fri | AQ167: 0 | AR167: 0 | DH167: 1
A168: 145 | B168: =B167+3 -> 2020-11-30 | C168: Mon | I168: 0 | AO168: 2020-11-30 | AP168: Mon | AQ168: 0 | AR168: 0 | DH168: 0
A169: 146 | B169: =B168+2 -> 2020-12-02 | C169: Wed | I169: 0 | AO169: 2020-12-02 | AP169: Wed | AQ169: 0 | AR169: 0 | DH169: 0
A170: 147 | B170: =B169+2 -> 2020-12-04 | C170: Fri | I170: 0 | AO170: 2020-12-04 | AP170: Fri | AQ170: 0 | AR170: 0 | DH170: 1
A171: 148 | B171: =B170+3 -> 2020-12-07 | C171: Mon | I171: 0 | AO171: 2020-12-07 | AP171: Mon | AQ171: 0 | AR171: 0 | DH171: 0
A172: 149 | B172: =B171+2 -> 2020-12-09 | C172: Wed | I172: 0 | AO172: 2020-12-09 | AP172: Wed | AQ172: 0 | AR172: 0 | DH172: 0
A173: 150 | B173: =B172+2 -> 2020-12-11 | C173: Fri | I173: 0 | AO173: 2020-12-11 | AP173: Fri | AQ173: 0 | AR173: 0 | DH173: 0
A174: 151 | B174: =B173+3 -> 2020-12-14 | C174: Mon | I174: 0 | AO174: 2020-12-14 | AP174: Mon | AQ174: 0 | AR174: =+I174 -> 0 | DH174: 0
A175: 152 | B175: =B174+2 -> 2020-12-16 | C175: Wed | I175: 0 | AO175: 2020-12-16 | AP175: Wed | AQ175: 0 | AR175: 0 | DH175: 0
A176: 153 | B176: =B175+2 -> 2020-12-18 | C176: Fri | I176: 0 | AO176: 2020-12-18 | AP176: Fri | AQ176: 0 | AR176: 0 | DH176: 0
A177: 154 | B177: =B176+3 -> 2020-12-21 | C177: Mon | I177: 0 | AO177: 2020-12-21 | AP177: Mon | AQ177: 0 | AR177: 0
A178: 155 | B178: =B177+2 -> 2020-12-23 | C178: Wed | I178: 0 | AO178: 2020-12-23 | AP178: Wed | AQ178: 0 | AR178: 0
A179: 156 | B179: =B178+2 -> 2020-12-25 | C179: Fri | I179: 0 | AO179: 2020-12-25 | AP179: Fri | AQ179: 0 | AR179: 0
A180: 157 | B180: =B179+3 -> 2020-12-28 | C180: Mon | I180: 0 | AO180: 2020-12-28 | AP180: Mon | AQ180: 0 | AR180: 0
A181: 158 | B181: =B180+2 -> 2020-12-30 | C181: Wed | I181: 0 | AO181: 2020-12-30 | AP181: Wed | AQ181: 0 | AR181: 0
A182: 159 | B182: =B181+2 -> 2021-01-01 | C182: Fri | I182: 0 | AO182: 2021-01-01 | AP182: Fri | AQ182: 0 | AR182: 0
B184: Hamper | I184: Avg
B185: Craig | E185: 45 | F185: Min | G185: =MIN(J185:AH185) -> 6.8 | I185: =AVERAGE(J185:AH185) -> 12.07916667 | J185: =MIN(J189:J407) -> 7.7 | K185: 11.3 | L185: 18.7 | M185: 12.4 | N185: 9.8 | O185: 9.3 | P185: 12 | Q185: 20.9 | R185: 10.6 | S185: 15 | T185: 6.8 | U185: 10.7 | V185: 11.1 | X185: =MIN(X189:X407) -> 15.3 | Y185: 11.6 | Z185: 9 | AA185: 12.5 | AB185: 15 | AC185: 16.5 | AD185: 12.8 | AE185: 10.6 | AF185: 8.6 | AG185: 9.9 | AH185: 11.8 | AI185: 7.2 | AJ185: 17.1 | AK185: =MIN(AK189:AK407) -> 0 | AS185: Bob 16 | DB185: =MIN(DB189:DB414) -> 15.5 | DC185: 16.8 | DD185: 14.3 | DE185: 16.7 | DF185: 6.4 | DG185: 6.9 | DI185: =MIN(DI189:DI407) -> 7.2 | DK185: =MIN(DK189:DK407) -> 12.5 | DL185: =MIN(DL189:DL407) -> 9.9
B186: BJ | E186: 160 | F186: Max | G186: =MAX(J186:AH186) -> 28.2 | I186: =AVERAGE(J186:AH186) -> 20.95833333 | J186: =MAX(J189:J407) -> 13.9 | K186: 21.4 | L186: 23.6 | M186: 26.7 | N186: 27.3 | O186: 15.7 | P186: 21.2 | Q186: 24.9 | R186: 17.6 | S186: 21.8 | T186: 13.5 | U186: 17.6 | V186: 22.7 | X186: =MAX(X189:X407) -> 23.5 | Y186: 22.7 | Z186: 16.1 | AA186: 21.9 | AB186: 19.2 | AC186: 28.2 | AD186: 20.4 | AE186: 17.7 | AF186: 23.1 | AG186: 20.9 | AH186: 21.4 | AI186: 22.9 | AJ186: 21.5 | AK186: =MAX(AK189:AK407) -> 0 | AS186: Bill 16 | DB186: =MAX(DB189:DB414) -> 18.6 | DC186: 25.9 | DD186: 17.2 | DE186: 24.4 | DF186: 23.3 | DG186: 16 | DI186: =MAX(DI189:DI407) -> 11.4 | DK186: =MAX(DK189:DK407) -> 19.2 | DL186: =MAX(DL189:DL407) -> 17.4
E187: =SUM(E185:E186) -> 205 | F187: Avg | I187: =AVERAGE(J187:AH187) -> 16.52292984 | J187: =AVERAGE(J189:J407) -> 10.40682927 | K187: 15.2297619 | L187: 21.28548387 | M187: 19.04449541 | N187: 19.11238532 | O187: 12.58394495 | P187: 16.79651376 | Q187: 23.15257732 | R187: 14.76648352 | S187: 18.23036649 | T187: 9.733027523 | U187: 13.97837838 | V187: 19.04310345 | X187: =AVERAGE(X189:X407) -> 19.67706422 | Y187: 17.37385321 | Z187: 12.59007634 | AA187: 17.08166667 | AB187: 17.28051948 | AC187: 21.92389381 | AD187: 16.74423963 | AE187: 13.19638554 | AF187: 15.93348624 | AG187: 15.98807339 | AH187: 15.39770642 | AI187: 11.07560976 | AJ187: 18 | AK187: =AVERAGE(AK189:AK407) ->  | AS187: Craig 11 | DB187: =AVERAGE(DB189:DB414) -> 16.80380952 | DC187: 20.44536082 | DD187: 16.47454545 | DE187: 22.66756757 | DF187: 8.056756757 | DG187: 14.13661972 | DI187: =AVERAGE(DI189:DI407) -> 10.13853659 | DK187: =AVERAGE(DK189:DK407) -> 15.02960894 | DL187: =AVERAGE(DL189:DL407) -> 13.54452555
I188: avg | J188: GerryA | K188: BobE | M188: JJ | N188: JimK | O188: JohnK | P188: BobL | R188: BobLx | S188: WallisM | T188: CraigM | U188: DanM | V188: TimMoore | X188: AlR | Y188: TimR | Z188: KenR | AC188: JeffS | AD188: LarryS | AF188: WW | AG188: BillW | AH188: MikeW | AI188: CarltonS | AS188: Jesse 13 | DB188: GeneM | DC188: JoeC | DD188: Charlie | DE188: ColinM | DF188: JohnF | DI188: CarltonS | DK188: BillWeb | DL188: JohnT
B189: HC Index | E189: 2011-01-01 | I189: =AVERAGE(J189:AH189) -> 14.75454545 | M189: 15.7 | N189: 13.2 | O189: 12.3 | P189: 18.5 | T189: 9.9 | X189: 17.1 | Y189: 18.9 | AD189: 15.5 | AF189: 16.6 | AG189: 11.5 | AH189: 13.1 | AS189: John 12 | DB189: 16.6 | DC189: 21.8
B190: HC Index | E190: 2011-01-15 | I190: 15.02727273 | M190: 16.4 | N190: 13.2 | O190: 13.1 | P190: 18.8 | T190: 9.8 | X190: 17.1 | Y190: 19.5 | AD190: 15.5 | AF190: 15.7 | AG190: 12.3 | AH190: 13.9 | AS190: Jim 7 | DB190: 17.4 | DC190: 22.2
B191: HC Index | E191: 2011-02-01 | I191: 15.16363636 | M191: 16.4 | N191: 12.4 | O191: 13.3 | P191: 19.4 | T191: 9.8 | X191: 18.5 | Y191: 18.9 | AD191: 15.5 | AF191: 15.6 | AG191: 13 | AH191: 14 | AS191: Mike 6 | DB191: 17.9 | DC191: 21.7
B192: HC Index | E192: 2011-02-15 | I192: 15.2 | M192: 16.7 | N192: 12.5 | O192: 13.5 | P192: 19.4 | T192: 9.8 | X192: 18.5 | Y192: 18.7 | AD192: 15.5 | AF192: 15.8 | AG192: 13 | AH192: 13.8 | AS192: Al 6 | DB192: 17.9 | DC192: 22.7
B193: HC Index | E193: 2011-03-01 | I193: 15.03636364 | M193: 17.5 | N193: 12.7 | O193: 12.9 | P193: 18.3 | T193: 9.6 | X193: 19.5 | Y193: 18.5 | AD193: 15.5 | AF193: 14.4 | AG193: 12.7 | AH193: 13.8 | DB193: 18.6 | DC193: 21.3
B194: HC Index | E194: 2011-03-15 | I194: 15.13636364 | M194: 16.5 | N194: 13.1 | O194: 13.6 | P194: 17 | T194: 9.7 | X194: 20.9 | Y194: 19.5 | AD194: 15.5 | AF194: 14.4 | AG194: 12.5 | AH194: 13.8 | DB194: 17.9 | DC194: 19
B195: HC Index | E195: 2011-04-01 | I195: 14.53636364 | M195: 14.5 | N195: 11.1 | O195: 12.9 | P195: 17 | T195: 10.5 | X195: 19.6 | Y195: 19.3 | AD195: 16.5 | AF195: 12.9 | AG195: 10.6 | AH195: 15 | DB195: 16.3 | DC195: 18.5
B196: HC Index | E196: 2011-04-15 | I196: 14.20909091 | M196: 13.1 | N196: 11 | O196: 12.3 | P196: 17 | T196: 9.6 | X196: 19.8 | Y196: 19.2 | AD196: 17.4 | AF196: 12.5 | AG196: 9.9 | AH196: 14.5 | DB196: 16.3 | DC196: 20.7
B197: HC Index | E197: 2011-05-01 | I197: 13.97272727 | M197: 12.6 | N197: 10.5 | O197: 12.1 | P197: 17.3 | T197: 9.2 | X197: 19.6 | Y197: 19.1 | AD197: 17.3 | AF197: 11.9 | AG197: 10.7 | AH197: 13.4 | DB197: 16.1 | DC197: 20.5
B198: HC Index | E198: 2011-05-15 | I198: 13.82727273 | M198: 14 | N198: 10.9 | O198: 12 | P198: 15.9 | T198: 8.2 | X198: 18.7 | Y198: 18.9 | AD198: 15.8 | AF198: 12.1 | AG198: 11.3 | AH198: 14.3 | DB198: 15.5 | DC198: 19.6
B199: HC Index | E199: 2011-06-01 | I199: 14.02727273 | M199: 15 | N199: 11.1 | O199: 12.7 | P199: 15.9 | T199: 8.2 | X199: 18.8 | Y199: 18.9 | AD199: 15 | AF199: 12.2 | AG199: 12.2 | AH199: 14.3 | DB199: 16.4 | DC199: 19.8
B200: HC Index | E200: 2011-06-15 | I200: 13.68181818 | M200: 14.8 | N200: 10.4 | O200: 12.3 | P200: 14.8 | T200: 8.3 | X200: 18.8 | Y200: 18.6 | AD200: 14.2 | AF200: 13.1 | AG200: 11.2 | AH200: 14 | DB200: 16.8 | DC200: 19.1
B201: HC Index | E201: 2011-07-01 | I201: 13.20909091 | M201: 13.9 | N201: 9.8 | O201: 10.8 | P201: 14.6 | T201: 7.5 | X201: 19.2 | Y201: 18.6 | AD201: 14.1 | AF201: 13.2 | AG201: 10.9 | AH201: 12.7 | DB201: 16.8 | DC201: 17.3
... 238 more rows

Sheet Wk Summary
B1: WkLastNameC | D1: NameC | F1: MonIndexC | G1: WedIndexC | H1: FriIndexC | I1: IndexC | J1: FirstCourseIndexC | Q1: LastCourseIndexC
F2: =Details!B6 -> 2020-05-04 | G2: =+Details!B7 -> 2020-05-06 | H2: =+Details!B8 -> 2020-05-08 | I2: Avg | V2: =F2+7 -> 2020-05-11 | W2: =G2+7 -> 2020-05-13 | X2: =H2+7 -> 2020-05-15 | Y2: =+V2+7 -> 2020-05-18 | Z2: =+W2+7 -> 2020-05-20 | AA2: 2020-05-22
F3: =Details!C6 -> Mon | G3: =Details!C7 -> Wed | H3: =+Details!C8 -> Fri | I3: =AVERAGE(I7:I31) -> 18.168 | V3: =F3 -> Mon | W3: =G3 -> Wed | X3: =H3 -> Fri | Y3: =+Details!C16 -> Mon | Z3: =+Details!C17 -> Wed | AA3: =+Details!C18 -> Fri | AB3: =+Details!C19 -> 0
F4: =+Details!D6 -> Player | G4: =+Details!D7 -> Tourney | H4: =+Details!D8 -> Palmer | I4: =+Details!E4 -> 2020-05-01 | J4: HC | K4: HC | L4: HC | M4: HC | N4: HC | O4: HC | P4: HC | Q4: HC | R4: SF | S4: HC | V4: =IF(Details!$D10=0,"",+Details!$D10) -> Player | W4: =IF(Details!$D11=0,"",+Details!$D11) -> Palmer | X4: =IF(Details!$D12=0,"",+Details!$D12) -> Tourney
F5: =+Details!E6 -> 10:39:00 | G5: =+Details!E7 -> 10:21:00 | H5: =+Details!E8 -> 10:21:00 | J5: 22max | K5: 22max | L5: 22max | M5: 22max | N5: 22max | O5: 22max | P5: 22max | Q5: 22max | R5: TPC | V5: =+Details!E10 -> 10:21:00 | W5: =+Details!E11 -> 10:21:00 | X5: =+Details!E12 -> 10:21:00
F6: =SUM(F7:F35) -> 11 | G6: =SUM(G7:G35) -> 12 | H6: =SUM(H7:H35) -> 13 | I6: =+Details!B4 -> Index | J6: Player | K6: P K/G | L6: TPC | M6: P D/K | N6: P G/D | O6: Oaks | P6: LW | Q6: PT | R6: 7/8HC | S6: AVG | V6: =SUM(V7:V31) -> 0 | W6: 0 | X6: 0 | Y6: 0 | Z6: 0 | AA6: 0 | AB6: 0
A7: 7 | B7: Anderson | C7: Gerry | D7: =C7&B7 -> GerryAnderson | E7: =+Details!J5 -> GerryA | F7: =+Details!J6 -> 0 | G7: =+Details!J7 -> 0 | H7: =+Details!J8 -> 0 | I7: =+Details!J$4 -> 10.8 | J7: =ROUND(+$I7*($AI$48/113)+($AL$48-72),0) -> 10 | K7: =ROUND(+$I7*($AI$49/113)+($AL$49-72),0) -> 9 | L7: =ROUND(+$I7*($AI$50/113)+($AL$50-72),0) -> 10 | M7: =ROUND(+$I7*($AI$51/113)+($AL$51-72),0) -> 8 | N7: =ROUND(+$I7*($AI$52/113)+($AL$52-72),0) -> 9 | O7: =ROUND(+$I7*($AI$55/113)+($AL$55-72),0) -> 9 | P7: =ROUND(+$I7*($AI$56/113)+($AL$56-72),0) -> 6 | Q7: =ROUND(+$I7*($AI$57/113)+($AL$57-72),0) -> 8 | R7: =ROUND(L7*0.875, 0) -> 9 | S7: =AVERAGE(J7:L7) -> 9.666666667 | U7: =E7 -> GerryA | V7: =IF(+Details!$J$10=0,"",Details!$J$10) -> 0 | W7: =IF(+Details!$J$11=0,"",Details!$J$11) -> 0 | X7: =IF(+Details!$J$12=0,"",Details!$J$12) -> 0 | Y7: =IF(+Details!$J$16=0,"",Details!$J$16) ->  | Z7: =IF(+Details!$J$17=0,"",Details!$J$17) ->  | AA7: =IF(+Details!$J$18=0,"",Details!$J$18) ->  | AB7: =IF(+Details!$J$19=0,"",Details!$J$19) -> 
A8: 8 | B8: Edwards | C8: Bob | D8: =C8&B8 -> BobEdwards | E8: =+Details!K5 -> BobE | F8: =+Details!K$6 -> 0 | G8: =+Details!K$7 -> 0 | H8: =+Details!K$8 -> 0 | I8: =+Details!K$4 -> 21 | J8: =ROUND(+$I8*($AI$48/113)+($AL$48-72),0) -> 21 | K8: =ROUND(+$I8*($AI$49/113)+($AL$49-72),0) -> 21 | L8: =ROUND(+$I8*($AI$50/113)+($AL$50-72),0) -> 21 | M8: =ROUND(+$I8*($AI$51/113)+($AL$51-72),0) -> 19 | N8: =ROUND(+$I8*($AI$52/113)+($AL$52-72),0) -> 20 | O8: =ROUND(+$I8*($AI$55/113)+($AL$55-72),0) -> 20 | P8: =ROUND(+$I8*($AI$56/113)+($AL$56-72),0) -> 17 | Q8: =ROUND(+$I8*($AI$57/113)+($AL$57-72),0) -> 19 | R8: 18 | S8: 21 | U8: =+E8 -> BobE | V8: =IF(+Details!K$10=0,"",Details!K$10) ->  | W8: =IF(+Details!$K$11=0,"",Details!$K$11) ->  | X8: =IF(+Details!$K$12=0,"",Details!$K$12) ->  | Y8: =IF(+Details!$K$16=0,"",Details!$K$16) ->  | Z8: =IF(+Details!$K$17=0,"",Details!$K$17) ->  | AA8: =IF(+Details!$K$18=0,"",Details!$K$18) ->  | AB8: =IF(+Details!$K$19=0,"",Details!$K$19) -> 
A9: 9 | B9: Heg | C9: John | D9: JohnHeg | E9: =+Details!L5 -> JohnH | F9: =+Details!L$6 -> 0 | G9: =+Details!L$7 -> 0 | H9: =+Details!L$8 -> 0 | I9: =IF(+Details!L$4=0, "", +Details!L$4) -> 22.4 | J9: =ROUND(+$I9*($AI$48/113)+($AL$48-72),0) -> 23 | K9: =ROUND(+$I9*($AI$49/113)+($AL$49-72),0) -> 22 | L9: =ROUND(+$I9*($AI$50/113)+($AL$50-72),0) -> 23 | M9: =ROUND(+$I9*($AI$51/113)+($AL$51-72),0) -> 21 | N9: =ROUND(+$I9*($AI$52/113)+($AL$52-72),0) -> 22 | O9: =ROUND(+$I9*($AI$55/113)+($AL$55-72),0) -> 21 | P9: =ROUND(+$I9*($AI$56/113)+($AL$56-72),0) -> 18 | Q9: =ROUND(+$I9*($AI$57/113)+($AL$57-72),0) -> 21 | R9: 20 | S9: 22.66666667 | U9: =+E9 -> JohnH | V9: =IF(+Details!L$10=0,"",Details!L$10) -> 0 | W9: =IF(+Details!L$11=0,"",Details!L$11) -> 0 | X9: =IF(+Details!L$12=0,"",Details!L$12) -> 0 | Y9: =IF(+Details!L$16=0,"",Details!L$16) ->  | Z9: =IF(+Details!$L$17=0,"",Details!$L$17) ->  | AA9: =IF(+Details!L$18=0,"",Details!L$18) ->  | AB9: =IF(+Details!L$19=0,"",Details!L$19) -> 
A10: 10 | B10: Johnson | C10: Jesse | D10: JesseJohnson | E10: =+Details!M5 -> JesseJ g | F10: =+Details!M$6 -> 1 | G10: =+Details!M$7 -> 1 | H10: =+Details!M$8 -> 1 | I10: =+Details!M$4 -> 25.4 | J10: =ROUND(+$I10*($AH$48/113)+($AK$48-72),0) -> 20 | K10: =ROUND(+$I10*($AH$49/113)+($AK$49-72),0) -> 22 | L10: =ROUND(+$I10*($AH$50/113)+($AK$50-72),0) -> 21 | M10: =ROUND(+$I10*($AH$51/113)+($AK$51-72),0) -> 19 | N10: =ROUND(+$I10*($AH$52/113)+($AK$52-72),0) -> 21 | O10: =ROUND(+$I10*($AH$55/113)+($AK$55-72),0) -> 20 | P10: =ROUND(+$I10*($AH$56/113)+($AK$56-72),0) -> 17 | Q10: =ROUND(+$I10*($AH$57/113)+($AK$57-72),0) -> 19 | R10: 18 | S10: 21 | U10: JesseJ g | V10: =IF(+Details!M$10=0,"",Details!M$10) ->  | W10: =IF(+Details!$M$11=0,"",Details!$M$11) ->  | X10: =IF(+Details!$M$12=0,"",Details!$M$12) ->  | Y10: =IF(+Details!$M$16=0,"",Details!$M$16) ->  | Z10: =IF(+Details!$M$17=0,"",Details!$M$17) ->  | AA10: =IF(+Details!$M$18=0,"",Details!$M$18) ->  | AB10: =IF(+Details!$M$19=0,"",Details!$M$19) -> 
A11: 11 | B11: Kinney | C11: Jim | D11: JimKinney | E11: =+Details!N5 -> JimK g | F11: =+Details!N$6 -> 0 | G11: =+Details!N$7 -> 0 | H11: =+Details!N$8 -> 0 | I11: =+Details!N$4 -> 26.8 | J11: =ROUND(+$I11*($AH$48/113)+($AK$48-72),0) -> 22 | K11: =ROUND(+$I11*($AH$49/113)+($AK$49-72),0) -> 24 | L11: =ROUND(+$I11*($AH$50/113)+($AK$50-72),0) -> 22 | M11: =ROUND(+$I11*($AH$51/113)+($AK$51-72),0) -> 21 | N11: =ROUND(+$I11*($AH$52/113)+($AK$52-72),0) -> 22 | O11: =ROUND(+$I11*($AH$55/113)+($AK$55-72),0) -> 21 | P11: =ROUND(+$I11*($AH$56/113)+($AK$56-72),0) -> 18 | Q11: =ROUND(+$I11*($AH$57/113)+($AK$57-72),0) -> 20 | R11: 19 | S11: 22.66666667 | U11: JimK g | V11: =IF(+Details!N$10=0,"",Details!N$10) -> 0 | W11: =IF(+Details!$N$11=0,"",Details!$N$11) -> 0 | X11: =IF(+Details!$N$12=0,"",Details!$N$12) -> 0 | Y11: =IF(+Details!$N$16=0,"",Details!$N$16) ->  | Z11: =IF(+Details!$N$17=0,"",Details!$N$17) ->  | AA11: =IF(+Details!$N$18=0,"",Details!$N$18) ->  | AB11: =IF(+Details!$N$19=0,"",Details!$N$19) -> 
A12: 12 | B12: Keyes | C12: John | D12: JohnKeyes | E12: =+Details!O5 -> JohnK | F12: =+Details!O$6 -> 1 | G12: =+Details!O$7 -> 1 | H12: =+Details!O$8 -> 1 | I12: =+Details!O$4 -> 14.4 | J12: =ROUND(+$I12*($AI$48/113)+($AL$48-72),0) -> 14 | K12: =ROUND(+$I12*($AI$49/113)+($AL$49-72),0) -> 13 | L12: =ROUND(+$I12*($AI$50/113)+($AL$50-72),0) -> 14 | M12: =ROUND(+$I12*($AI$51/113)+($AL$51-72),0) -> 12 | N12: =ROUND(+$I12*($AI$52/113)+($AL$52-72),0) -> 13 | O12: =ROUND(+$I12*($AI$55/113)+($AL$55-72),0) -> 12 | P12: =ROUND(+$I12*($AI$56/113)+($AL$56-72),0) -> 10 | Q12: =ROUND(+$I12*($AI$57/113)+($AL$57-72),0) -> 12 | R12: 12 | S12: 13.66666667 | U12: JohnK | V12: =IF(+Details!O$10=0,"",Details!O$10) ->  | W12: =IF(+Details!$O$11=0,"",Details!$O$11) ->  | X12: =IF(+Details!$O$12=0,"",Details!$O$12) ->  | Y12: =IF(+Details!$O$16=0,"",Details!$O$16) ->  | Z12: =IF(+Details!$O$17=0,"",Details!$O$17) ->  | AA12: =IF(+Details!$O$18=0,"",Details!$O$18) ->  | AB12: =IF(+Details!$O$19=0,"",Details!$O$19) -> 
A13: 13 | B13: Lewis | C13: Bob | D13: BobLewis | E13: =+Details!P5 -> BobL | F13: =+Details!P$6 -> 1 | G13: =Details!P7 -> 1 | H13: =+Details!P$8 -> 1 | I13: =+Details!P$4 -> 19.5 | J13: 20 | K13: 19 | L13: 19 | M13: 18 | N13: 18 | O13: 18 | P13: 15 | Q13: 17 | R13: 17 | S13: 19.33333333 | U13: BobL | V13: =IF(+Details!P$10=0,"",Details!P$10) ->  | W13: =IF(+Details!$P$11=0,"",Details!$P$11) ->  | X13: =IF(+Details!$P$12=0,"",Details!$P$12) ->  | Y13: =IF(+Details!$P$16=0,"",Details!$P$16) ->  | Z13: =IF(+Details!$P$17=0,"",Details!$P$17) ->  | AA13: =IF(+Details!$P$18=0,"",Details!$P$18) ->  | AB13: =IF(+Details!$P$19=0,"",Details!$P$19) -> 
A14: 14 | B14: Lisiewski | C14: Walt | D14: WaltLisiewski | E14: =+Details!Q5 -> WaltL | F14: =+Details!Q$6 -> 0 | G14: =+Details!Q$7 -> 0 | H14: =+Details!Q$8 -> 0 | I14: =+Details!Q$4 -> 22.5 | J14: 23 | K14: 22 | L14: 23 | M14: 21 | N14: 22 | O14: 21 | P14: 18 | Q14: 21 | R14: 20 | S14: 22.66666667 | U14: WaltL | V14: =IF(+Details!Q$10=0,"",Details!Q$10) -> 0 | W14: =IF(+Details!$Q$11=0,"",Details!$Q$11) -> 0 | X14: =IF(+Details!$Q$12=0,"",Details!$Q$12) -> 0 | Y14: =IF(+Details!$Q$16=0,"",Details!$Q$16) ->  | Z14: =IF(+Details!$Q$17=0,"",Details!$Q$17) ->  | AA14: =IF(+Details!$Q$18=0,"",Details!$Q$18) ->  | AB14: =IF(+Details!$Q$19=0,"",Details!$Q$19) -> 
A15: 15 | B15: Lux | C15: Bob | D15: BobLux | E15: =+Details!R5 -> BobLx | F15: =+Details!R$6 -> 0 | G15: =+Details!R$7 -> 1 | H15: =+Details!R$8 -> 1 | I15: =+Details!R$4 -> 17 | J15: 17 | K15: 16 | L15: 17 | M15: 15 | N15: 16 | O15: 15 | P15: 13 | Q15: 15 | R15: 15 | S15: 16.66666667 | U15: BobLx | V15: =IF(+Details!R$10=0,"",Details!R$10) ->  | W15: =IF(+Details!$R$11=0,"",Details!$R$11) ->  | X15: =IF(+Details!$R$12=0,"",Details!$R$12) ->  | Y15: =IF(+Details!$R$16=0,"",Details!$R$16) ->  | Z15: =IF(+Details!$R$17=0,"",Details!$R$17) ->  | AA15: =IF(+Details!$R$18=0,"",Details!$R$18) ->  | AB15: =IF(+Details!$R$19=0,"",Details!$R$19) -> 
A16: 16 | B16: McMath | C16: Wallis | D16: WallisMcMath | E16: =+Details!S5 -> WallisM | F16: =+Details!S$6 -> 1 | G16: =+Details!S$7 -> 1 | H16: =+Details!S$8 -> 1 | I16: =+Details!S$4 -> 19.4 | J16: 19 | K16: 19 | L16: 19 | M16: 18 | N16: 18 | O16: 18 | P16: 15 | Q16: 17 | R16: 17 | S16: 19 | U16: WallisM | V16: =IF(+Details!S$10=0,"",Details!S$10) ->  | W16: =IF(+Details!$S$11=0,"",Details!$S$11) ->  | X16: =IF(+Details!$S$12=0,"",Details!$S$12) ->  | Y16: =IF(+Details!$S$16=0,"",Details!$S$16) ->  | Z16: =IF(+Details!$S$17=0,"",Details!$S$17) ->  | AA16: =IF(+Details!$S$18=0,"",Details!$S$18) ->  | AB16: =IF(+Details!$S$19=0,"",Details!$S$19) -> 
A17: 17 | B17: Mellington | C17: Craig | D17: CraigMellington | E17: =+Details!T5 -> CraigM | F17: =+Details!T$6 -> 1 | G17: =+Details!T$7 -> 1 | H17: =+Details!T$8 -> 1 | I17: =+Details!T$4 -> 10.1 | J17: 9 | K17: 9 | L17: 9 | M17: 8 | N17: 8 | O17: 8 | P17: 6 | Q17: 7 | R17: 8 | S17: 9 | U17: CraigM | V17: =IF(+Details!T$10=0,"",Details!T$10) ->  | W17: =IF(+Details!$T$11=0,"",Details!$T$11) ->  | X17: =IF(+Details!$T$12=0,"",Details!$T$12) ->  | Y17: =IF(+Details!$T$16=0,"",Details!$T$16) ->  | Z17: =IF(+Details!$T$17=0,"",Details!$T$17) ->  | AA17: =IF(+Details!$T$18=0,"",Details!$T$18) ->  | AB17: =IF(+Details!$T$19=0,"",Details!$T$19) -> 
A18: 18 | B18: Miracle | C18: Dan | D18: DanMiracle | E18: =+Details!U5 -> DanM | F18: =+Details!U$6 -> 1 | G18: =+Details!U$7 -> 1 | H18: =+Details!U$8 -> 1 | I18: =+Details!U$4 -> 14.5 | J18: 14 | K18: 14 | L18: 14 | M18: 12 | N18: 13 | O18: 13 | P18: 10 | Q18: 12 | R18: 12 | S18: 14 | U18: DanM | V18: =IF(+Details!U$10=0,"",Details!U$10) ->  | W18: =IF(+Details!$U$11=0,"",Details!$U$11) ->  | X18: =IF(+Details!$U$12=0,"",Details!$U$12) ->  | Y18: =IF(+Details!$U$16=0,"",Details!$U$16) ->  | Z18: =IF(+Details!$U$17=0,"",Details!$U$17) ->  | AA18: =IF(+Details!$U$18=0,"",Details!$U$18) ->  | AB18: =IF(+Details!$U$19=0,"",Details!$U$19) -> 
A19: 19 | B19: Moore | C19: Tim | D19: TimMoore | E19: =+Details!V5 -> TimM | F19: =+Details!V6 -> 0 | G19: =+Details!V7 -> 0 | H19: =+Details!V$8 -> 1 | I19: =+Details!V4 -> 19 | J19: 19 | K19: 19 | L19: 19 | M19: 17 | N19: 18 | O19: 17 | P19: 15 | Q19: 17 | R19: 17 | S19: 19 | U19: TimM | V19: =IF(+Details!V$10=0,"",Details!V$10) ->  | W19: =IF(+Details!V$11=0,"",Details!V$11) ->  | X19: =IF(+Details!V$12=0,"",Details!V$12) ->  | Y19: =IF(+Details!V$16=0,"",Details!V$16) ->  | Z19: =IF(+Details!$V$17=0,"",Details!$V$17) ->  | AA19: =IF(+Details!V$18=0,"",Details!V$18) ->  | AB19: =IF(+Details!V$19=0,"",Details!V$19) -> 
A20: 20 | B20: Peterson | C20: Gary | D20: GaryPeterson | E20: =+Details!W5 -> GaryP | F20: =+Details!W6 -> 1 | G20: =+Details!W7 -> 1 | H20: =+Details!W$8 -> 0 | I20: =+Details!W4 -> 8.1 | J20: 7 | K20: 6 | L20: 7 | M20: 5 | N20: 6 | O20: 6 | P20: 4 | Q20: 5 | R20: 6 | S20: 6.666666667 | U20: GaryP | V20: =IF(+Details!W$10=0,"",Details!W$10) ->  | W20: =IF(+Details!W$11=0,"",Details!W$11) ->  | X20: =IF(+Details!W$12=0,"",Details!W$12) ->  | Y20: =IF(+Details!W$16=0,"",Details!W$16) ->  | Z20: =IF(+Details!$W$17=0,"",Details!$W$17) ->  | AA20: =IF(+Details!W$18=0,"",Details!W$18) ->  | AB20: =IF(+Details!W$19=0,"",Details!W$19) -> 
A21: 21 | B21: Roesler | C21: Al | D21: AlRoesler | E21: =+Details!X5 -> AlR | F21: =+Details!X$6 -> 0 | G21: =+Details!X$7 -> 0 | H21: =+Details!X$8 -> 0 | I21: =+Details!X$4 -> 21.1 | J21: 21 | K21: 21 | L21: 21 | M21: 19 | N21: 20 | O21: 20 | P21: 17 | Q21: 19 | R21: 18 | S21: 21 | U21: AlR | V21: =IF(+Details!X$10=0,"",Details!X$10) -> 0 | W21: =IF(+Details!$X$11=0,"",Details!$X$11) -> 0 | X21: =IF(+Details!$X$12=0,"",Details!$X$12) -> 0 | Y21: =IF(+Details!$X$16=0,"",Details!$X$16) ->  | Z21: =IF(+Details!$X$17=0,"",Details!$X$17) ->  | AA21: =IF(+Details!$X$18=0,"",Details!$X$18) ->  | AB21: =IF(+Details!$X$19=0,"",Details!$X$19) -> 
A22: 22 | B22: Roesler | C22: Tim | D22: TimRoesler | E22: =+Details!Y5 -> TimR | F22: =+Details!Y$6 -> 1 | G22: =+Details!Y$7 -> 1 | H22: =+Details!Y$8 -> 1 | I22: =+Details!Y$4 -> 17.5 | J22: 17 | K22: 17 | L22: 17 | M22: 15 | N22: 16 | O22: 16 | P22: 13 | Q22: 15 | R22: 15 | S22: 17 | U22: TimR | V22: =IF(+Details!Y$10=0,"",Details!Y$10) ->  | W22: =IF(+Details!$Y$11=0,"",Details!$Y$11) ->  | X22: =IF(+Details!$Y$12=0,"",Details!$Y$12) ->  | Y22: =IF(+Details!$Y$16=0,"",Details!$Y$16) ->  | Z22: =IF(+Details!$Y$17=0,"",Details!$Y$17) ->  | AA22: =IF(+Details!$Y$18=0,"",Details!$Y$18) ->  | AB22: =IF(+Details!$Y$19=0,"",Details!$Y$19) -> 
A23: 23 | B23: Rowland | C23: Ken | D23: KenRowland | E23: =+Details!Z5 -> KenR | F23: =+Details!Z$6 -> 0 | G23: =+Details!Z$7 -> 0 | H23: =+Details!Z$8 -> 0 | I23: =+Details!Z$4 -> 11.1 | J23: 10 | K23: 10 | L23: 10 | M23: 9 | N23: 9 | O23: 9 | P23: 7 | Q23: 8 | R23: 9 | S23: 10 | U23: KenR | V23: =IF(+Details!Z$10=0,"",Details!Z$10) -> 0 | W23: =IF(+Details!$Z$11=0,"",Details!$Z$11) -> 0 | X23: =IF(+Details!$Z$12=0,"",Details!$Z$12) -> 0 | Y23: =IF(+Details!$Z$16=0,"",Details!$Z$16) ->  | Z23: =IF(+Details!$Z$17=0,"",Details!$Z$17) ->  | AA23: =IF(+Details!$Z$18=0,"",Details!$Z$18) ->  | AB23: =IF(+Details!$Z$19=0,"",Details!$Z$19) -> 
A24: 24 | B24: Simmons | C24: Roy | D24: RoySimmons | E24: =+Details!AA5 -> RoyS g | F24: =+Details!AA$6 -> 1 | G24: =+Details!AA$7 -> 1 | H24: =+Details!AA$8 -> 1 | I24: =+Details!AA$4 -> 21.5 | J24: =ROUND(+$I24*($AH$48/113)+($AK$48-72),0) -> 16 | K24: =ROUND(+$I24*($AH$49/113)+($AK$49-72),0) -> 18 | L24: =ROUND(+$I24*($AH$50/113)+($AK$50-72),0) -> 17 | M24: =ROUND(+$I24*($AH$51/113)+($AK$51-72),0) -> 15 | N24: =ROUND(+$I24*($AH$52/113)+($AK$52-72),0) -> 17 | O24: =ROUND(+$I24*($AH$55/113)+($AK$55-72),0) -> 16 | P24: =ROUND(+$I24*($AH$56/113)+($AK$56-72),0) -> 13 | Q24: =ROUND(+$I24*($AH$57/113)+($AK$57-72),0) -> 15 | R24: =ROUND(L24*0.875, 0) -> 15 | S24: =AVERAGE(J24:L24) -> 17 | U24: RoyS g | V24: =IF(+Details!AA$10=0,"",Details!AA$10) ->  | W24: =IF(+Details!AA$11=0,"",Details!AA$11) ->  | X24: =IF(+Details!AA$12=0,"",Details!AA$12) ->  | Y24: =IF(+Details!AA$16=0,"",Details!AA$16) ->  | Z24: =IF(+Details!$AA$17=0,"",Details!$AA$17) ->  | AA24: =IF(+Details!AA$18=0,"",Details!AA$18) ->  | AB24: =IF(+Details!AA$19=0,"",Details!AA$19) -> 
A25: 25 | B25: Smith | C25: Murray | D25: MurraySmith | E25: =+Details!AB5 -> MurrayS | F25: =+Details!AB$6 -> 0 | G25: =+Details!AB$7 -> 0 | H25: =+Details!AB$8 -> 0 | I25: =IF(+Details!AB$4=0, "", +Details!AB$4) -> 16.5 | J25: =ROUND(+$I25*($AI$48/113)+($AL$48-72),0) -> 16 | K25: =ROUND(+$I25*($AI$49/113)+($AL$49-72),0) -> 16 | L25: =ROUND(+$I25*($AI$50/113)+($AL$50-72),0) -> 16 | M25: =ROUND(+$I25*($AI$51/113)+($AL$51-72),0) -> 14 | N25: =ROUND(+$I25*($AI$52/113)+($AL$52-72),0) -> 15 | O25: =ROUND(+$I25*($AI$55/113)+($AL$55-72),0) -> 15 | P25: =ROUND(+$I25*($AI$56/113)+($AL$56-72),0) -> 12 | Q25: =ROUND(+$I25*($AI$57/113)+($AL$57-72),0) -> 14 | R25: 14 | S25: 16 | U25: MurrayS | V25: =IF(+Details!AB$10=0,"",Details!AB$10) ->  | W25: =IF(+Details!$AB$11=0,"",Details!$AB$11) ->  | X25: =IF(+Details!$AB$12=0,"",Details!$AB$12) ->  | Y25: =IF(+Details!$AB$16=0,"",Details!$AB$16) ->  | Z25: =IF(+Details!$AB$17=0,"",Details!$AB$17) ->  | AA25: =IF(+Details!$AB$18=0,"",Details!$AB$18) ->  | AB25: =IF(+Details!$AB$19=0,"",Details!$AB$19) -> 
A26: 26 | B26: Steimer | C26: Jeff | D26: JeffSteimer | E26: =+Details!AC5 -> JeffS | F26: =+Details!AC$6 -> 0 | G26: =+Details!AC$7 -> 0 | H26: =+Details!AC$8 -> 0 | I26: =+Details!AC$4 -> 22 | J26: =ROUND(+$I26*($AI$48/113)+($AL$48-72),0) -> 22 | K26: =ROUND(+$I26*($AI$49/113)+($AL$49-72),0) -> 22 | L26: =ROUND(+$I26*($AI$50/113)+($AL$50-72),0) -> 22 | M26: =ROUND(+$I26*($AI$51/113)+($AL$51-72),0) -> 20 | N26: =ROUND(+$I26*($AI$52/113)+($AL$52-72),0) -> 21 | O26: =ROUND(+$I26*($AI$55/113)+($AL$55-72),0) -> 21 | P26: =ROUND(+$I26*($AI$56/113)+($AL$56-72),0) -> 18 | Q26: =ROUND(+$I26*($AI$57/113)+($AL$57-72),0) -> 20 | R26: 19 | S26: 22 | U26: JeffS | V26: =IF(+Details!AC$10=0,"",Details!AC$10) ->  | W26: =IF(+Details!$AC$11=0,"",Details!$AC$11) ->  | X26: =IF(+Details!$AC$12=0,"",Details!$AC$12) ->  | Y26: =IF(+Details!AC$16=0,"",Details!AC$16) ->  | Z26: =IF(+Details!$AC$17=0,"",Details!$AC$17) ->  | AA26: =IF(+Details!AC$18=0,"",Details!AC$18) ->  | AB26: =IF(+Details!AC$19=0,"",Details!AC$19) -> 
A27: 27 | B27: Stick | C27: Larry | D27: LarryStick | E27: =+Details!AD5 -> LarryS | F27: =+Details!AD$6 -> 0 | G27: =+Details!AD7 -> 1 | H27: =+Details!AD$8 -> 1 | I27: =+Details!AD$4 -> 19.6 | J27: =ROUND(+$I27*($AI$48/113)+($AL$48-72),0) -> 20 | K27: =ROUND(+$I27*($AI$49/113)+($AL$49-72),0) -> 19 | L27: =ROUND(+$I27*($AI$50/113)+($AL$50-72),0) -> 20 | M27: =ROUND(+$I27*($AI$51/113)+($AL$51-72),0) -> 18 | N27: =ROUND(+$I27*($AI$52/113)+($AL$52-72),0) -> 19 | O27: =ROUND(+$I27*($AI$55/113)+($AL$55-72),0) -> 18 | P27: =ROUND(+$I27*($AI$56/113)+($AL$56-72),0) -> 15 | Q27: =ROUND(+$I27*($AI$57/113)+($AL$57-72),0) -> 17 | R27: 18 | S27: 19.66666667 | U27: LarryS | V27: =IF(+Details!AD$10=0,"",Details!AD$10) ->  | W27: =IF(+Details!$AD$11=0,"",Details!$AD$11) ->  | X27: =IF(+Details!$AD$12=0,"",Details!$AD$12) ->  | Y27: =IF(+Details!$AD$16=0,"",Details!$AD$16) ->  | Z27: =IF(+Details!AD$17=0,"",Details!AD$17) ->  | AA27: =IF(+Details!$AD$18=0,"",Details!$AD$18) ->  | AB27: =IF(+Details!$AD$19=0,"",Details!$AD$19) -> 
A28: 28 | B28: Watkins | C28: Bob | D28: BobWatkins | E28: =+Details!AE5 -> BobW w | F28: =+Details!AE$6 -> 0 | G28: =+Details!AE$7 -> 0 | H28: =+Details!AE$8 -> 0 | I28: =+Details!AE$4 -> 11.9 | J28: =ROUND(+$I28*($AJ$48/113)+($AM$48-72),0) -> 14 | K28: =ROUND(+$I28*($AJ$49/113)+($AM$49-72),0) -> 12 | L28: =ROUND(+$I28*($AJ$50/113)+($AM$50-72),0) -> 12 | M28: =ROUND(+$I28*($AJ$51/113)+($AM$51-72),0) -> 12 | N28: =ROUND(+$I28*($AJ$52/113)+($AM$52-72),0) -> 12 | O28: =ROUND(+$I28*($AJ$55/113)+($AM$55-72),0) -> 12 | P28: =ROUND(+$I28*($AJ$56/113)+($AM$56-72),0) -> 10 | Q28: =ROUND(+$I28*($AJ$57/113)+($AM$57-72),0) -> 12 | R28: 11 | S28: 12.66666667 | U28: BobW w | V28: =IF(+Details!AE$10=0,"",Details!AE$10) -> 0 | W28: =IF(+Details!$AE$11=0,"",Details!$AE$11) -> 0 | X28: =IF(+Details!$AE$12=0,"",Details!$AE$12) -> 0 | Y28: =IF(+Details!$AE$16=0,"",Details!$AE$16) ->  | Z28: =IF(+Details!$AE$17=0,"",Details!$AE$17) ->  | AA28: =IF(+Details!$AE$18=0,"",Details!$AE$18) ->  | AB28: =IF(+Details!$AE$19=0,"",Details!$AE$19) -> 
A29: 29 | B29: West | C29: Waylan | D29: WaylanWest | E29: =+Details!AF5 -> Waylan g | F29: =+Details!AF$6 -> 0 | G29: =+Details!AF$7 -> 0 | H29: =+Details!AF$8 -> 0 | I29: =+Details!AF$4 -> 22.4 | J29: =ROUND(+$I29*($AH$48/113)+($AK$48-72),0) -> 17 | K29: =ROUND(+$I29*($AH$49/113)+($AK$49-72),0) -> 19 | L29: =ROUND(+$I29*($AH$50/113)+($AK$50-72),0) -> 17 | M29: =ROUND(+$I29*($AH$51/113)+($AK$51-72),0) -> 16 | N29: =ROUND(+$I29*($AH$52/113)+($AK$52-72),0) -> 17 | O29: =ROUND(+$I29*($AH$55/113)+($AK$55-72),0) -> 17 | P29: =ROUND(+$I29*($AH$56/113)+($AK$56-72),0) -> 14 | Q29: =ROUND(+$I29*($AH$57/113)+($AK$57-72),0) -> 16 | R29: 15 | S29: 17.66666667 | U29: Waylan g | V29: =IF(+Details!AF$10=0,"",Details!AF$10) -> 0 | W29: =IF(+Details!$AF$11=0,"",Details!$AF$11) -> 0 | X29: =IF(+Details!$AF$12=0,"",Details!$AF$12) -> 0 | Y29: =IF(+Details!$AF$16=0,"",Details!$AF$16) ->  | Z29: =IF(+Details!$AF$17=0,"",Details!$AF$17) ->  | AA29: =IF(+Details!$AF$18=0,"",Details!$AF$18) ->  | AB29: =IF(+Details!$AF$19=0,"",Details!$AF$19) -> 
A30: 30 | B30: White | C30: Bill | D30: BillWhite | E30: =+Details!AG5 -> BillW | F30: =+Details!AG$6 -> 1 | G30: =+Details!AG$7 -> 0 | H30: =+Details!AG$8 -> 0 | I30: =+Details!AG$4 -> 20.9 | J30: =ROUND(+$I30*($AI$48/113)+($AL$48-72),0) -> 21 | K30: =ROUND(+$I30*($AI$49/113)+($AL$49-72),0) -> 21 | L30: =ROUND(+$I30*($AI$50/113)+($AL$50-72),0) -> 21 | M30: =ROUND(+$I30*($AI$51/113)+($AL$51-72),0) -> 19 | N30: =ROUND(+$I30*($AI$52/113)+($AL$52-72),0) -> 20 | O30: =ROUND(+$I30*($AI$55/113)+($AL$55-72),0) -> 19 | P30: =ROUND(+$I30*($AI$56/113)+($AL$56-72),0) -> 17 | Q30: =ROUND(+$I30*($AI$57/113)+($AL$57-72),0) -> 19 | R30: 18 | S30: 21 | U30: BillW | V30: =IF(+Details!AG$10=0,"",Details!AG$10) ->  | W30: =IF(+Details!$AG$11=0,"",Details!$AG$11) ->  | X30: =IF(+Details!$AG$12=0,"",Details!$AG$12) ->  | Z30: =IF(+Details!$AG$17=0,"",Details!$AG$17) ->  | AA30: =IF(+Details!$AG$18=0,"",Details!$AG$18) ->  | AB30: =IF(+Details!$AG$19=0,"",Details!$AG$19) -> 
A31: 31 | B31: Whyte | C31: Mike | D31: MikeWhyte | E31: =+Details!AH5 -> MikeW | F31: =+Details!AH$6 -> 1 | G31: =+Details!AH$7 -> 1 | H31: =+Details!AH$8 -> 1 | I31: =+Details!AH$4 -> 18.8 | J31: =ROUND(+$I31*($AI$48/113)+($AL$48-72),0) -> 19 | K31: =ROUND(+$I31*($AI$49/113)+($AL$49-72),0) -> 18 | L31: =ROUND(+$I31*($AI$50/113)+($AL$50-72),0) -> 19 | M31: =ROUND(+$I31*($AI$51/113)+($AL$51-72),0) -> 17 | N31: =ROUND(+$I31*($AI$52/113)+($AL$52-72),0) -> 18 | O31: =ROUND(+$I31*($AI$55/113)+($AL$55-72),0) -> 17 | P31: =ROUND(+$I31*($AI$56/113)+($AL$56-72),0) -> 15 | Q31: =ROUND(+$I31*($AI$57/113)+($AL$57-72),0) -> 17 | R31: 17 | S31: 18.66666667 | U31: MikeW | V31: =IF(+Details!AH$10=0,"",Details!AH$10) ->  | W31: =IF(+Details!$AH$11=0,"",Details!$AH$11) ->  | X31: =IF(+Details!$AH$12=0,"",Details!$AH$12) ->  | Y31: =IF(+Details!$AH$16=0,"",Details!$AH$16) ->  | Z31: =IF(+Details!$AH$17=0,"",Details!$AH$17) ->  | AA31: =IF(+Details!$AH$18=0,"",Details!$AH$18) ->  | AB31: =IF(+Details!$AH$19=0,"",Details!$AH$19) -> 
A32: 32 | B32: Williams | C32: Jim | D32: JimWilliams | E32: =+Details!AI5 -> JimW g | F32: =+Details!AI$6 -> 0 | G32: =+Details!AI$7 -> 0 | H32: =+Details!AI$8 -> 1 | I32: =+Details!AI$4 -> 21.9 | J32: =ROUND(+$I32*($AH$48/113)+($AK$48-72),0) -> 16 | K32: =ROUND(+$I32*($AH$49/113)+($AK$49-72),0) -> 18 | L32: =ROUND(+$I32*($AH$50/113)+($AK$50-72),0) -> 17 | M32: =ROUND(+$I32*($AH$51/113)+($AK$51-72),0) -> 16 | N32: =ROUND(+$I32*($AH$52/113)+($AK$52-72),0) -> 17 | O32: =ROUND(+$I32*($AH$55/113)+($AK$55-72),0) -> 16 | P32: =ROUND(+$I32*($AH$56/113)+($AK$56-72),0) -> 14 | Q32: =ROUND(+$I32*($AH$57/113)+($AK$57-72),0) -> 15 | R32: 15 | S32: 17 | U32: JimW g | V32: =IF(+Details!AI$10=0,"",Details!AI$10) ->  | W32: =IF(+Details!$AI$11=0,"",Details!$AI$11) ->  | X32: =IF(+Details!$AI$12=0,"",Details!$AI$12) ->  | Y32: =IF(+Details!$AI$16=0,"",Details!$AI$16) ->  | Z32: =IF(+Details!$AI$17=0,"",Details!$AI$17) ->  | AA32: =IF(+Details!$AI$18=0,"",Details!$AI$18) ->  | AB32: =IF(+Details!$AI$19=0,"",Details!$AI$19) -> 
A33: 33 | B33: Duncan | C33: Robert | D33: RobertDuncan | E33: =+Details!AJ5 -> RobertD | F33: =+Details!AJ$6 -> 0 | G33: =+Details!AJ$7 -> 0 | H33: =+Details!AJ$8 -> 0 | I33: =+Details!AJ$4 -> 17.8 | J33: =ROUND(+$I33*($AI$48/113)+($AL$48-72),0) -> 18 | K33: =ROUND(+$I33*($AI$49/113)+($AL$49-72),0) -> 17 | L33: =ROUND(+$I33*($AI$50/113)+($AL$50-72),0) -> 18 | M33: =ROUND(+$I33*($AI$51/113)+($AL$51-72),0) -> 16 | N33: =ROUND(+$I33*($AI$52/113)+($AL$52-72),0) -> 17 | O33: =ROUND(+$I33*($AI$55/113)+($AL$55-72),0) -> 16 | P33: =ROUND(+$I33*($AI$56/113)+($AL$56-72),0) -> 14 | Q33: =ROUND(+$I33*($AI$57/113)+($AL$57-72),0) -> 15 | R33: 16 | S33: 17.66666667 | U33: RobertD | V33: =IF(+Details!AJ$10=0,"",Details!AJ$10) -> 0 | W33: =IF(+Details!AJ$11=0,"",Details!AJ$11) -> 0 | X33: =IF(+Details!AJ$12=0,"",Details!AJ$12) -> 0 | Y33: =IF(+Details!AJ$16=0,"",Details!AJ$16) ->  | Z33: =IF(+Details!$AJ$17=0,"",Details!$AJ$17) ->  | AA33: =IF(+Details!AJ$18=0,"",Details!AJ$18) ->  | AB33: =IF(+Details!AJ$19=0,"",Details!AJ$19) -> 
A34: 16 | B34: =IF(+Details!AK3=0,"",+Details!AK3) -> Rice | C34: =IF(+Details!AK2=0,"",+Details!AK2) -> Britt | D34: BrittRice | E34: =C34&LEFT(B34,1) -> BrittR | F34: =+Details!AK$6 -> 0 | G34: =+Details!AK$7 -> 0 | H34: =+Details!AK$8 -> 0 | I34: =+Details!AK$4 -> 0 | J34: =ROUND(+$I34*($AI$48/113)+($AL$48-72),0) -> -3 | K34: =ROUND(+$I34*($AI$49/113)+($AL$49-72),0) -> -3 | L34: =ROUND(+$I34*($AI$50/113)+($AL$50-72),0) -> -2 | M34: =ROUND(+$I34*($AI$51/113)+($AL$51-72),0) -> -3 | N34: =ROUND(+$I34*($AI$52/113)+($AL$52-72),0) -> -3 | O34: =ROUND(+$I34*($AI$55/113)+($AL$55-72),0) -> -3 | P34: =ROUND(+$I34*($AI$56/113)+($AL$56-72),0) -> -5 | Q34: =ROUND(+$I34*($AI$57/113)+($AL$57-72),0) -> -4 | R34: =ROUND(L34*0.875, 0) -> -2 | S34: =AVERAGE(J34:L34) -> -2.666666667 | U34: =+E34 -> BrittR | V34: =IF(+Details!AK$10=0,"",Details!AK$10) ->  | W34: =IF(+Details!$AK$11=0,"",Details!$AK$11) ->  | X34: =IF(+Details!$AK$12=0,"",Details!$AK$12) ->  | Y34: =IF(+Details!$AK$16=0,"",Details!$AK$16) ->  | Z34: =IF(+Details!$AK$17=0,"",Details!$AK$17) ->  | AA34: =IF(+Details!$AK$18=0,"",Details!$AK$18) ->  | AB34: =IF(+Details!$AK$19=0,"",Details!$AK$19) -> 
B35: =IF(+Details!AL3=0,"",+Details!AL3) ->  | C35: =IF(+Details!AL2=0,"",+Details!AL2) ->  | F35: =+Details!AL$6 -> 0 | G35: =+Details!AL$7 -> 0 | H35: =+Details!AL$8 -> 0 | I35: =+Details!$AL4 -> 0 | J35: =ROUND(+$I35*($AI$48/113)+($AL$48-72),0) -> -3 | K35: =ROUND(+$I35*($AI$49/113)+($AL$49-72),0) -> -3 | L35: =ROUND(+$I35*($AI$50/113)+($AL$50-72),0) -> -2 | M35: =ROUND(+$I35*($AI$51/113)+($AL$51-72),0) -> -3 | N35: =ROUND(+$I35*($AI$52/113)+($AL$52-72),0) -> -3 | O35: =ROUND(+$I35*($AI$55/113)+($AL$55-72),0) -> -3 | P35: =ROUND(+$I35*($AI$56/113)+($AL$56-72),0) -> -5 | Q35: =ROUND(+$I35*($AI$57/113)+($AL$57-72),0) -> -4 | R35: -2 | S35: -2.666666667 | V35: =IF(+Details!AL$10=0,"",Details!AL$10) ->  | W35: =IF(+Details!$AL$11=0,"",Details!$AL$11) ->  | X35: =IF(+Details!$AL$12=0,"",Details!$AL$12) ->  | Y35: =IF(+Details!$AL$12=0,"",Details!$AL$12) ->  | AA35: =IF(+Details!$AL$12=0,"",Details!$AL$12) ->  | AB35: =IF(+Details!$AL$12=0,"",Details!$AL$12) -> 
F41: Medal | I41: Team
E42: Monday Win: | F42: =IF(+Details!AS6=0,"",Details!AS6) ->  | I42: =IF(+Details!AT6=0,"",Details!AT6) -> 
E43: Wednesday Win: | F43: =IF(+Details!AS7=0,"",Details!AS7) ->  | I43: =IF(+Details!AT7=0,"",Details!AT7) -> 
E44: Friday Win: | F44: =IF(+Details!AS8=0,"",Details!AS8) ->  | I44: =IF(+Details!AT8=0,"",Details!AT8) -> 
B45: CourseIndexR | F45: Monday Course | G45: Wednesday Course | H45: Friday Course | J45: Player | K45: Palmer | L45: Tourney | M45: Palmer D/K | N45: Palmer G/D | O45: Oaks | P45: Windcrest | Q45: Panther
AH46: Slope | AK46: Rating
B47: (PUT THE ROW NUMBER OF THE REGULAR PLAYER IN COLUMN A FOR EACH GUEST) | AG47: WCC Courses | AH47: Green | AI47: Gold | AJ47: White | AK47: Green | AL47: Gold | AM47: White
A48: PartnerC | U48: GerryA | V48: 0284389 | AG48: Player | AH48: 119 | AI48: 128 | AJ48: 137 | AK48: 65.4 | AL48: 69.5 | AM48: 71.2
U49: BobE | V49: 6433451 | AG49: Palmer King-Gen | AH49: 123 | AI49: 126 | AJ49: 128 | AK49: 66.6 | AL49: 69.4 | AM49: 70.9
U50: JohnH | V50: 1952705 | AG50: Tournament | AH50: 119 | AI50: 126 | AJ50: 129 | AK50: 65.9 | AL50: 69.7 | AM50: 70.5
U51: JesseJ g | V51: 8505540 | AG51: Palmer Dea-King | AH51: 117 | AI51: 122 | AJ51: 128 | AK51: 65.1 | AL51: 68.6 | AM51: 70.2
U52: JimK g | V52: 8505583 | AG52: Palmer Gen - Dea | AH52: 119 | AI52: 123 | AJ52: 129 | AK52: 65.9 | AL52: 69.2 | AM52: 70.7
U53: JohnK | V53: 8505613
U54: BobL | V54: 8505649 | AG54: Golf Trails Courses | AH54: Green | AI54: White | AJ54: Blue | AK54: Green | AL54: White | AM54: Blue
U55: WaltL | V55: 8505667 | AG55: Oaks | AH55: 112 | AI55: 122 | AJ55: 129 | AK55: 66.5 | AL55: 68.9 | AM55: 70.1
U56: BobLx | V56: 8505653 | AG56: Lake Windcreast | AH56: 109 | AI56: 115 | AJ56: 120 | AK56: 64.6 | AL56: 67.5 | AM56: 69.2
U57: WallisM | V57: 2102801 | AG57: Panther | AH57: 113 | AI57: 125 | AJ57: 129 | AK57: 65.2 | AL57: 67.8 | AM57: 70.5
U58: CraigM | V58: 6353615 | AH58: HC= HI*(slope/113+(Course Rating -72))
U59: DanM | V59: 0003188
U60: TimM | V60: 1484835
U61: GaryP | V61: 3088085
U62: AlR | V62: 8505970
U63: TimR | V63: 1078775
U64: KenR | V64: 2020045
U65: RoyS | V65: 8506106
U66: MurrayS | V66: 7967386
U67: JeffS | V67: 0153649
U68: LarryS | V68: 8506052
U69: JohnT | V69: 2565906
U70: BobW | V70: 1635148
U71: Waylan g | V71: 6462888
U72: BillW | V72: 8506290
U73: MikeW | V73: 8506225
U74: JimW | V74: 8506279
U75: RobertD | V75: 8505225
Q77: =F4 -> Player | S77: =+G4 -> Tourney | U77: =+H4 -> Palmer
Q78: HC | S78: HC | U78: HC
F79: =+I4 -> 2020-05-01 | Q79: Gld/Gr | R79: Stableford | S79: Gld | T79: Stableford | U79: Gld | V79: Stableford
F80: Index | R80: =7/8 -> 0.875 | T80: =7/8 -> 0.875 | V80: =7/8 -> 0.875 | W80: Count | X80: Avg
E81: =E7 -> GerryA | F81: =+I7 -> 10.8 | Q81: =+J7 -> 10 | R81: =ROUND(Q81*R$80,0) -> 9 | S81: =+K7 -> 9 | T81: =ROUND(S81*T$80,0) -> 8 | U81: =+L7 -> 10 | V81: =ROUND(U81*V$80,0) -> 9 | W81: 1 | X81: =ROUND(AVERAGE(R81,T81,V81),0) -> 9
E82: BobE | F82: 21 | Q82: 21 | R82: 18 | S82: 21 | T82: 18 | U82: 21 | V82: 18 | W82: 2 | X82: 18
E83: JohnH | F83: 22.4 | Q83: 23 | R83: 20 | S83: 22 | T83: 19 | U83: 23 | V83: 20 | W83: 25 | X83: =ROUND(AVERAGE(R98,T98,V98),0) -> 15
E84: JesseJ g | F84: 25.4 | Q84: 20 | R84: 18 | S84: 22 | T84: 19 | U84: 21 | V84: 18 | W84: 3 | X84: 18
E85: JimK g | F85: 26.8 | Q85: 22 | R85: 19 | S85: 24 | T85: 21 | U85: 22 | V85: 19 | W85: 4 | X85: 20
E86: JohnK | F86: 14.4 | Q86: 14 | R86: 12 | S86: 13 | T86: 11 | U86: 14 | V86: 12 | W86: 5 | X86: 12
E87: BobL | F87: 19.5 | Q87: 20 | R87: 18 | S87: 19 | T87: 17 | U87: 19 | V87: 17 | W87: 6 | X87: 17
E88: WaltL | F88: 22.5 | Q88: 23 | R88: 20 | S88: 22 | T88: 19 | U88: 23 | V88: 20 | W88: 7 | X88: =ROUND(AVERAGE(R88,T88,V88),0) -> 20
E89: BobLx | F89: 17 | Q89: 17 | R89: 15 | S89: 16 | T89: 14 | U89: 17 | V89: 15 | W89: 8 | X89: 15
E90: WallisM | F90: 19.4 | Q90: 19 | R90: 17 | S90: 19 | T90: 17 | U90: 19 | V90: 17 | W90: 9 | X90: 17
E91: CraigM | F91: 10.1 | Q91: 9 | R91: 8 | S91: 9 | T91: 8 | U91: 9 | V91: 8 | W91: 10 | X91: 8
E92: DanM | F92: 14.5 | Q92: 14 | R92: 12 | S92: 14 | T92: 12 | U92: 14 | V92: 12 | W92: 11 | X92: 12
E93: TimM | F93: 19 | Q93: 19 | R93: 17 | S93: 19 | T93: 17 | U93: 19 | V93: 17 | W93: 12 | X93: 17
E94: GaryP | F94: 8.1 | Q94: 7 | R94: 6 | S94: 6 | T94: 5 | U94: 7 | V94: 6 | W94: 12 | X94: =ROUND(AVERAGE(R94,T94,V94),0) -> 6
E95: AlR | F95: 21.1 | Q95: 21 | R95: 18 | S95: 21 | T95: 18 | U95: 21 | V95: 18 | W95: 13 | X95: 18
E96: TimR | F96: 17.5 | Q96: 17 | R96: 15 | S96: 17 | T96: 15 | U96: 17 | V96: 15 | W96: 14 | X96: 15
E97: KenR | F97: 11.1 | Q97: 10 | R97: 9 | S97: 10 | T97: 9 | U97: 10 | V97: 9 | W97: 15 | X97: 9
E98: RoyS g | F98: 21.5 | Q98: 16 | R98: 14 | S98: 18 | T98: 16 | U98: 17 | V98: 15 | W98: 26 | X98: =ROUND(AVERAGE(R83,T83,V83),0) -> 20
E99: MurrayS | F99: 16.5 | Q99: 16 | R99: 14 | S99: 16 | T99: 14 | U99: 16 | V99: 14 | W99: 16 | X99: =ROUND(AVERAGE(R84,T84,V84),0) -> 18
E100: JeffS | F100: 22 | Q100: 22 | R100: 19 | S100: 22 | T100: 19 | U100: 22 | V100: 19 | W100: 17 | X100: =ROUND(AVERAGE(R100,T100,V100),0) -> 19
E101: LarryS | F101: 19.6 | Q101: 20 | R101: 18 | S101: 19 | T101: 17 | U101: 20 | V101: 18 | W101: 18 | X101: 18
E102: =E34 -> BrittR | F102: =+I34 -> 0 | Q102: =+J34 -> -3 | R102: -3 | S102: =+K34 -> -3 | T102: -3 | U102: =+L34 -> -2 | V102: -2 | W102: 19 | X102: -3
E103: =E28 -> BobW w | F103: =+I28 -> 11.9 | Q103: =+J28 -> 14 | R103: 12 | S103: =+K28 -> 12 | T103: 11 | U103: =+L28 -> 12 | V103: 11 | W103: 20 | X103: =ROUND(AVERAGE(R103,T103,V103),0) -> 11
E104: Waylan g | F104: 22.4 | Q104: 17 | R104: 15 | S104: 19 | T104: 17 | U104: 17 | V104: 15 | W104: 22 | X104: 16
E105: BillW | F105: 20.9 | Q105: 21 | R105: 18 | S105: 21 | T105: 18 | U105: 21 | V105: 18 | W105: 23 | X105: 18
E106: MikeW | F106: 18.8 | Q106: 19 | R106: 17 | S106: 18 | T106: 16 | U106: 19 | V106: 17 | W106: 24 | X106: 17
E107: JimW g | F107: 21.9 | Q107: 16 | R107: 14 | S107: 18 | T107: 16 | U107: 17 | V107: 15 | W107: 27 | X107: 15
E108: RobertD | F108: 17.8 | Q108: 18 | R108: 16 | S108: 17 | T108: 15 | U108: 18 | V108: 16 | W108: 21 | X108: 16
E109: =+U36 -> 0 | F109: =+W36 -> 0 | Q109: =+J35 -> -3 | R109: -3 | S109: =+K35 -> -3 | T109: -3 | U109: =+L35 -> -2 | V109: -2 | X109: -3

Sheet Groups
A1: Call Initialize | B1: LastNameC | C1: FirstNameC | D1: NameC | E1: FirstNameLC | F1: MonC | G1: WedC | H1: FriC | I1: GindexC | J1: GMonIndexC | K1: GWedIndexC | L1: GFriIndexC | M1: GuestPartnerC | P1: 16 GRegularPlayerC | Q1: 17 | R1: PrioritizeC 18 | S1: 19 | T1: GroupEndC 20 | U1: 21 | V1: MonPC | W1: MonRndC | X1: MGC 24 | Y1: WedPC | Z1: WedRndC | AA1: WGC 27 | AB1: FriPC | AC1: FriRndC | AD1: FGC 30 | AE1: GroupsC 31 | AF1: Tee1C 32 | AG1: Tee2C 33 | AH1: Tee3C 34 | AI1: Tee4C 35 | AJ1: Tee5C 36 | AM1: MonCombinedNamesC 39 | AN1: WedCombinedNamesC 40 | AO1: FriCombinedNamesC 41
A2: DateR | E2: Date | F2: 2020-05-04 | G2: 2020-05-06 | H2: 2020-05-08 | R2: Priority Player(s) | AE2: Players | AF2: Tee 1 | AG2: Tee 2 | AH2: Tee 3 | AI2: Tee 4 | AJ2: Tee 5 | AV2: Date | AW2: 2020-04-27 | AX2: 2020-04-29 | AY2: 2020-05-01 | BE2: Monday Groups
F3: Mon | G3: Wed | H3: Fri | R3: (Use First and Last Name no space) | AD3: TeeR | AE3: 0 | AF3: 0 | AG3: 0 | AH3: 0 | AI3: 0 | AJ3: 0 | AW3: Mon | AX3: Wed | AY3: Fri | BE3: Start Time | BF3: =#REF! -> 
A4: CourseNameR | F4: Player | G4: Tourney | H4: Palmer | J4: HC | K4: HC | L4: HC | R4: Monday | S4: Wednesday | T4: Friday | AE4: 1 | AF4: 1 | AG4: 0 | AH4: 0 | AI4: 0 | AJ4: 0 | AW4: Oaks | AX4: Tourney | AY4: Tourney | BA4: HC | BB4: HC | BC4: HC | BE4: Time Incr. | BF4: =$P$5 -> 9 | BG4: =AV$3&" - "&AV$4 -> -
A5: Increment &PrioritizeR | F5: 10:39:00 | G5: 10:21:00 | H5: 10:21:00 | I5: =+Details!E4 -> 2020-05-01 | J5: 22 Max | K5: 22 Max | L5: 22 Max | O5: Increment | P5: 9 | Q5: Player 1 | AE5: 2 | AF5: 2 | AG5: 0 | AH5: 0 | AI5: 0 | AJ5: 0 | AW5: 10:08:00 | AX5: 10:21:00 | AY5: 10:21:00 | AZ5: =+Details!AV4 -> 00:00:00 | BA5: 22 Max | BB5: 22 Max | BC5: 22 Max | BE5: Group 1 | BF5: =$F$5 -> 10:39:00 | BG5: BobLux | BH5: JesseJohnson | BI5: DanMiracle
B6: Last Name | C6: First Name | F6: =SUM(F7:F35) -> 11 | G6: =SUM(G7:G35) -> 12 | H6: =SUM(H7:H35) -> 13 | I6: Index | J6: Player | K6: Tourney | L6: Palmer | Q6: Player 2 | AE6: 3 | AF6: 3 | AG6: 0 | AH6: 0 | AI6: 0 | AJ6: 0 | AS6: Last Name | AT6: First Name | AW6: =SUM(AW7:AW35) -> 12 | AX6: =SUM(AX7:AX35) -> 8 | AY6: =SUM(AY7:AY35) -> 12 | AZ6: Index | BA6: Oaks | BB6: TPC | BC6: TPC | BE6: Group 2 | BF6: =$F$5+1*$P$5/1440 -> 10:48:00 | BG6: RoySimmons | BH6: TimRoesler | BI6: WallisMcMath
A7: StartNameR | B7: Anderson | C7: Gerry | D7: GerryAnderson | E7: GerryA | F7: 0 | G7: 0 | H7: 0 | I7: 10.8 | J7: 10 | K7: 10 | L7: 9 | N7: MonR | O7: Monday Groups | V7: Monday Players | Y7: Wednesday Players | AB7: Friday Players | AE7: 4 | AF7: 4 | AG7: 0 | AH7: 0 | AI7: 0 | AJ7: 0 | AS7: Anderson | AT7: Gerry | AU7: GerryAnderson | AV7: GerryA | AW7: 0 | AX7: 0 | AY7: 0 | AZ7: 10.8 | BE7: Group 3 | BF7: =$F$5+2*$P$5/1440 -> 10:57:00 | BG7: JohnKeyes | BH7: MikeWhyte | BI7: GaryPeterson
A8: CntR | B8: Edwards | C8: Bob | D8: BobEdwards | E8: BobE | F8: 0 | G8: 0 | H8: 0 | I8: 21 | J8: 21 | K8: 21 | L8: 21 | O8: Start Time | P8: 10:39:00 | V8: =F6 -> 11 | Y8: =G6 -> 12 | AB8: =H6 -> 13 | AE8: 5 | AF8: 2 | AG8: 3 | AH8: 0 | AI8: 0 | AJ8: 0 | AS8: Edwards | AT8: Bob | AU8: BobEdwards | AV8: BobE | AW8: 0 | AX8: 0 | AY8: 1 | AZ8: 21 | BE8: Group 4 | BF8: =$F$5+3*$P$5/1440 -> 11:06:00 | BG8: CraigMellington | BH8: JeffSteimer | BI8: GerryAnderson | BJ8: JerryCardillo
B9: Heg | C9: John | D9: JohnHeg | E9: JohnH | F9: 0 | G9: 0 | H9: 0 | I9: 22.4 | J9: 23 | K9: 23 | L9: 22 | O9: Time Incr. | P9: =$P$5 -> 9 | Q9: =F$4 &" Course on " -> Player Course on | R9: =F2 -> 2020-05-04 | AE9: 6 | AF9: 3 | AG9: 3 | AH9: 0 | AI9: 0 | AJ9: 0 | AS9: Heg | AT9: John | AU9: JohnHeg | AV9: JohnH | AW9: 0 | AX9: 0 | AY9: 0 | AZ9: 22.4 | BE9: Group 5 | BF9: =$F$5+4*$P$5/1440 -> 11:15:00
A10: MWFPlayerR | B10: Johnson | C10: Jesse | D10: JesseJohnson | E10: JesseJ g | F10: 1 | G10: 1 | H10: 1 | I10: 25.4 | J10: 20 | K10: 21 | L10: 22 | N10: GroupMonR | O10: Group 1 | P10: 10:39:00 | Q10: GaryPeterson | R10: MikeWhyte | S10: WallisMcMath | V10: GaryPeterson | W10: 0.01401764154 | Y10: MikeWhyte | Z10: 0.05350452662 | AB10: JimWilliams | AC10: 0.2268660069 | AE10: 7 | AF10: 3 | AG10: 4 | AH10: 0 | AI10: 0 | AJ10: 0 | AM10: JesseJohnson | AN10: JesseJohnson | AO10: JesseJohnson | AS10: Johnson | AT10: Jesse | AU10: JesseJohnson | AV10: JesseJ g | AW10: 1 | AX10: 0 | AY10: 1 | AZ10: 25.4
B11: Kinney | C11: Jim | D11: JimKinney | E11: JimK g | F11: 0 | G11: 0 | H11: 0 | I11: 26.8 | J11: 22 | K11: 22 | L11: 24 | O11: Group 2 | P11: 10:48:00 | Q11: CraigMellington | R11: JohnKeyes | S11: BobLewis | T11: JesseJohnson | V11: MikeWhyte | W11: 0.04535275698 | Y11: DanMiracle | Z11: 0.05623686314 | AB11: CraigMellington | AC11: 0.263792932 | AE11: 8 | AF11: 4 | AG11: 4 | AH11: 0 | AI11: 0 | AJ11: 0 | AM11: JohnKeyes | AN11: JohnKeyes | AO11: JohnKeyes | AS11: Kinney | AT11: Jim | AU11: JimKinney | AV11: JimK g | AW11: 0 | AX11: 0 | AY11: 0 | AZ11: 26.8 | BE11: Wednesday Groups
B12: Keyes | C12: John | D12: JohnKeyes | E12: JohnK | F12: 1 | G12: 1 | H12: 1 | I12: 14.4 | J12: 14 | K12: 14 | L12: 13 | O12: Group 3 | P12: 10:57:00 | Q12: BillWhite | R12: TimRoesler | S12: DanMiracle | T12: RoySimmons | V12: WallisMcMath | W12: 0.2895624638 | Y12: TimRoesler | Z12: 0.3640186787 | AB12: DanMiracle | AC12: 0.2793420553 | AE12: 9 | AF12: 3 | AG12: 3 | AH12: 3 | AI12: 0 | AJ12: 0 | AM12: BobLewis | AN12: BobLewis | AO12: BobLewis | AS12: Keyes | AT12: John | AU12: JohnKeyes | AV12: JohnK | AW12: 1 | AX12: 0 | AY12: 1 | AZ12: 14.4 | BE12: Start Time | BF12: =#REF! -> 
B13: Lewis | C13: Bob | D13: BobLewis | E13: BobL | F13: 1 | G13: 1 | H13: 1 | I13: 19.5 | J13: 20 | K13: 19 | L13: 19 | O13: Group 4 | V13: CraigMellington | W13: 0.3019480109 | Y13: BobLux | Z13: 0.3735361695 | AB13: BobLewis | AC13: 0.2981654406 | AE13: 10 | AF13: 3 | AG13: 3 | AH13: 4 | AI13: 0 | AJ13: 0 | AM13: WallisMcMath | AN13: BobLux | AO13: BobLux | AS13: Lewis | AT13: Bob | AU13: BobLewis | AV13: BobL | AW13: 0 | AX13: 1 | AY13: 1 | AZ13: 19.5 | BE13: Time Incr. | BF13: =$P$5 -> 9 | BG13: =AW$3&" - "&AW$4 -> Mon - Oaks
A14: LastMonR | B14: Lisiewski | C14: Walt | D14: WaltLisiewski | E14: WaltL | F14: 0 | G14: 0 | H14: 0 | I14: 22.5 | J14: 23 | K14: 23 | L14: 22 | O14: Group 5 | V14: JohnKeyes | W14: 0.5334240198 | Y14: JesseJohnson | Z14: 0.4140326977 | AB14: JohnKeyes | AC14: 0.4687001109 | AE14: 11 | AF14: 3 | AG14: 4 | AH14: 4 | AI14: 0 | AJ14: 0 | AM14: CraigMellington | AN14: WallisMcMath | AO14: WallisMcMath | AS14: Lisiewski | AT14: Walt | AU14: WaltLisiewski | AV14: WaltL | AW14: 0 | AX14: 0 | AY14: 0 | AZ14: 22.5 | BE14: Group 1 | BF14: =$G$5 -> 10:21:00 | BG14: JeffSteimer | BH14: BobLewis | BI14: MikeWhyte
B15: Lux | C15: Bob | D15: BobLux | E15: BobLx | F15: 0 | G15: 1 | H15: 1 | I15: 17 | J15: 17 | K15: 17 | L15: 16 | V15: BobLewis | W15: 0.5795186162 | Y15: RoySimmons | Z15: 0.5248684287 | AB15: RoySimmons | AC15: 0.5891630054 | AE15: 12 | AF15: 4 | AG15: 4 | AH15: 4 | AI15: 0 | AJ15: 0 | AM15: DanMiracle | AN15: CraigMellington | AO15: CraigMellington | AS15: Lux | AT15: Bob | AU15: BobLux | AV15: BobLx | AW15: 1 | AX15: 0 | AY15: 1 | AZ15: 17 | BE15: Group 2 | BF15: =$G$5+$P$5/1440 -> 10:30:00 | BG15: WallisMcMath | BH15: CraigMellington | BI15: GaryPeterson
A16: WedR | B16: McMath | C16: Wallis | D16: WallisMcMath | E16: WallisM | F16: 1 | G16: 1 | H16: 1 | I16: 19.4 | J16: 19 | K16: 19 | L16: 19 | N16: WedR | O16: Wednesday Groups | V16: JesseJohnson | W16: 0.7055475116 | Y16: LarryStick | Z16: 0.767111659 | AB16: JesseJohnson | AC16: 0.5924582481 | AE16: 13 | AF16: 3 | AG16: 3 | AH16: 3 | AI16: 4 | AJ16: 0 | AM16: GaryPeterson | AN16: DanMiracle | AO16: DanMiracle | AS16: McMath | AT16: Wallis | AU16: WallisMcMath | AV16: WallisM | AW16: 1 | AX16: 1 | AY16: 1 | AZ16: 19.4 | BE16: Group 3 | BF16: =$G$5+2*$P$5/1440 -> 10:39:00 | BG16: DanMiracle | BH16: GerryAnderson | BI16: JerryCardillo
B17: Mellington | C17: Craig | D17: CraigMellington | E17: CraigM | F17: 1 | G17: 1 | H17: 1 | I17: 10.1 | J17: 9 | K17: 9 | L17: 9 | O17: Start Time | P17: =G5 -> 10:21:00 | V17: BillWhite | W17: 0.7090379 | Y17: BobLewis | Z17: 0.7904800177 | AB17: BobLux | AC17: 0.6226966977 | AE17: 14 | AF17: 3 | AG17: 3 | AH17: 4 | AI17: 4 | AJ17: 0 | AM17: TimRoesler | AN17: GaryPeterson | AO17: TimMoore | AS17: Mellington | AT17: Craig | AU17: CraigMellington | AV17: CraigM | AW17: 1 | AX17: 1 | AY17: 1 | AZ17: 10.1 | BE17: Group 4 | BF17: =$G$5+3*$P$5/1440 -> 10:48:00
B18: Miracle | C18: Dan | D18: DanMiracle | E18: DanM | F18: 1 | G18: 1 | H18: 1 | I18: 14.5 | J18: 14 | K18: 14 | L18: 14 | O18: Time Incr. | P18: =$P$5 -> 9 | Q18: =G$4 &" Course on " -> Tourney Course on | R18: =G2 -> 2020-05-06 | V18: TimRoesler | W18: 0.7607235909 | Y18: JohnKeyes | Z18: 0.8626193404 | AB18: WallisMcMath | AC18: 0.647821188 | AE18: 15 | AF18: 3 | AG18: 4 | AH18: 4 | AI18: 4 | AJ18: 0 | AM18: RoySimmons | AN18: TimRoesler | AO18: TimRoesler | AS18: Miracle | AT18: Dan | AU18: DanMiracle | AV18: DanM | AW18: 1 | AX18: 1 | AY18: 1 | AZ18: 14.5 | BE18: Group 5 | BF18: =$G$5+4*$P$5/1440 -> 10:57:00
A19: GroupWedR | B19: Moore | C19: Tim | D19: TimMoore | E19: TimM | F19: 0 | G19: 0 | H19: 1 | I19: 19 | J19: 19 | K19: 19 | L19: 19 | N19: GroupWedR | O19: Group 1 | P19: =$G$5 -> 10:21:00 | Q19: MikeWhyte | R19: DanMiracle | S19: TimRoesler | T19: BobLux | V19: DanMiracle | W19: 0.7747400999 | Y19: CraigMellington | Z19: 0.8714458346 | AB19: TimRoesler | AC19: 0.8246021271 | AE19: 16 | AF19: 4 | AG19: 4 | AH19: 4 | AI19: 4 | AJ19: 0 | AM19: BillWhite | AN19: RoySimmons | AO19: RoySimmons | AS19: Moore | AT19: Tim | AU19: TimMoore | AV19: TimM | AW19: 0 | AX19: 0 | AY19: 0 | AZ19: 19
B20: Peterson | C20: Gary | D20: GaryPeterson | E20: GaryP | F20: 1 | G20: 1 | H20: 0 | I20: 8.1 | J20: 7 | K20: 7 | L20: 6 | O20: Group 2 | P20: =$G$5+$P$5/1440 -> 10:30:00 | Q20: JesseJohnson | R20: RoySimmons | S20: LarryStick | T20: BobLewis | V20: RoySimmons | W20: 0.8144900203 | Y20: GaryPeterson | Z20: 0.9495566487 | AB20: TimMoore | AC20: 0.8298016191 | AE20: 17 | AF20: 3 | AG20: 3 | AH20: 3 | AI20: 4 | AJ20: 4 | AM20: MikeWhyte | AN20: LarryStick | AO20: LarryStick | AS20: Peterson | AT20: Gary | AU20: GaryPeterson | AV20: GaryP | AW20: 1 | AX20: 1 | AY20: 0 | AZ20: 8.1 | BE20: Friday Groups
B21: Roesler | C21: Al | D21: AlRoesler | E21: AlR | F21: 0 | G21: 0 | H21: 0 | I21: 21.1 | J21: 21 | K21: 21 | L21: 21 | O21: Group 3 | P21: =$G$5+2*$P$5/1440 -> 10:39:00 | Q21: JohnKeyes | R21: CraigMellington | S21: GaryPeterson | T21: WallisMcMath | Y21: WallisMcMath | Z21: 0.9619531631 | AB21: MikeWhyte | AC21: 0.9109643102 | AE21: 18 | AF21: 3 | AG21: 3 | AH21: 4 | AI21: 4 | AJ21: 4 | AN21: MikeWhyte | AO21: MikeWhyte | AS21: Roesler | AT21: Al | AU21: AlRoesler | AV21: AlR | AW21: 0 | AX21: 0 | AY21: 0 | AZ21: 21.1 | BE21: Start Time | BF21: =#REF! -> 
B22: Roesler | C22: Tim | D22: TimRoesler | E22: TimR | F22: 1 | G22: 1 | H22: 1 | I22: 17.5 | J22: 17 | K22: 17 | L22: 17 | O22: Group 4 | P22: =$G$5+3*$P$5/1440 -> 10:48:00 | AB22: LarryStick | AC22: 0.9860931635 | AE22: 19 | AF22: 3 | AG22: 4 | AH22: 4 | AI22: 4 | AJ22: 4 | AO22: JimWilliams | AS22: Roesler | AT22: Tim | AU22: TimRoesler | AV22: TimR | AW22: 1 | AX22: 0 | AY22: 1 | AZ22: 17.5 | BE22: Time Incr. | BF22: =$P$5 -> 9 | BG22: =AX$3&" - "&AX$4 -> Wed - Tourney
A23: LastWedyR | B23: Rowland | C23: Ken | D23: KenRowland | E23: KenR | F23: 0 | G23: 0 | H23: 0 | I23: 11.1 | J23: 10 | K23: 10 | L23: 10 | O23: Group 5 | P23: =$G$5+4*$P$5/1440 -> 10:57:00 | AE23: 20 | AF23: 4 | AG23: 4 | AH23: 4 | AI23: 4 | AJ23: 4 | AS23: Rowland | AT23: Ken | AU23: KenRowland | AV23: KenR | AW23: 0 | AX23: 0 | AY23: 0 | AZ23: 11.1 | BE23: Group 1 | BF23: =$H$5 -> 10:21:00 | BG23: TimRoesler | BH23: JimWilliams | BI23: LarryStick | BJ23: DanMiracle
B24: Simmons | C24: Roy | D24: RoySimmons | E24: RoyS g | F24: 1 | G24: 1 | H24: 1 | I24: 21.5 | J24: 16 | K24: 17 | L24: 18 | AS24: Simmons | AT24: Roy | AU24: RoySimmons | AV24: RoyS g | AW24: 1 | AX24: 0 | AY24: 0 | AZ24: 21.5 | BE24: Group 2 | BF24: =$H$5+$P$5/1440 -> 10:30:00 | BG24: WallisMcMath | BH24: CraigMellington | BI24: BobEdwards | BJ24: BobLux
B25: Smith | C25: Murray | D25: MurraySmith | E25: MurrayS | F25: 0 | G25: 0 | H25: 0 | I25: 16.5 | J25: 16 | K25: 16 | L25: 16 | N25: FriR | O25: Friday Groups | AS25: Smith | AT25: Murray | AU25: MurraySmith | AV25: MurrayS | AW25: 0 | AX25: 0 | AY25: 0 | AZ25: 16.5 | BE25: Group 3 | BF25: =$H$5+2*$P$5/1440 -> 10:39:00 | BG25: JohnKeyes | BH25: BobLewis | BI25: JesseJohnson | BJ25: MikeWhyte
B26: Steimer | C26: Jeff | D26: JeffSteimer | E26: JeffS | F26: 0 | G26: 0 | H26: 0 | I26: 22 | J26: 22 | K26: 22 | L26: 22 | O26: Start Time | P26: =H5 -> 10:21:00 | AS26: Steimer | AT26: Jeff | AU26: JeffSteimer | AV26: JeffS | AW26: 1 | AX26: 1 | AY26: 0 | AZ26: 22 | BE26: Group 4 | BF26: =$H$5+3*$P$5/1440 -> 10:48:00
B27: Stick | C27: Larry | D27: LarryStick | E27: LarryS | F27: 0 | G27: 1 | H27: 1 | I27: 19.6 | J27: 20 | K27: 20 | L27: 19 | O27: Time Incr. | P27: =$P$5 -> 9 | Q27: =H$4 &" Course on " -> Palmer Course on | R27: =H2 -> 2020-05-08 | AS27: Stick | AT27: Larry | AU27: LarryStick | AV27: LarryS | AW27: 0 | AX27: 0 | AY27: 1 | AZ27: 19.6 | BE27: Group 5 | BF27: =#REF!+4*$P$5/1440 -> 
B28: Watkins | C28: Bob | D28: BobWatkins | E28: BobW w | F28: 0 | G28: 0 | H28: 0 | I28: 11.9 | J28: 14 | K28: 12 | L28: 12 | N28: GroupFriR | O28: Group 1 | P28: =$H$5 -> 10:21:00 | Q28: JimWilliams | R28: CraigMellington | S28: DanMiracle | AS28: Watkins | AT28: Bob | AU28: BobWatkins | AV28: BobW w | AW28: 0 | AX28: 0 | AY28: 0 | AZ28: 11.9
B29: West | C29: Waylan | D29: WaylanWest | E29: Waylan g | F29: 0 | G29: 0 | H29: 0 | I29: 22.4 | J29: 17 | K29: 17 | L29: 19 | O29: Group 2 | P29: =$H$5+$P$5/1440 -> 10:30:00 | Q29: BobLewis | R29: JohnKeyes | S29: RoySimmons | AS29: West | AT29: Waylan | AU29: WaylanWest | AV29: Waylan g | AW29: 0 | AX29: 0 | AY29: 0 | AZ29: 22.4
B30: White | C30: Bill | D30: BillWhite | E30: BillW | F30: 1 | G30: 0 | H30: 0 | I30: 20.9 | J30: 21 | K30: 21 | L30: 21 | O30: Group 3 | P30: =$H$5+2*$P$5/1440 -> 10:39:00 | Q30: JesseJohnson | R30: BobLux | S30: WallisMcMath | AS30: White | AT30: Bill | AU30: BillWhite | AV30: BillW | AW30: 0 | AX30: 0 | AY30: 0 | AZ30: 20.9
B31: Whyte | C31: Mike | D31: MikeWhyte | E31: MikeW | F31: 1 | G31: 1 | H31: 1 | I31: 18.8 | J31: 19 | K31: 19 | L31: 18 | O31: Group 4 | P31: =$H$5+3*$P$5/1440 -> 10:48:00 | Q31: TimRoesler | R31: TimMoore | S31: MikeWhyte | T31: LarryStick | AS31: Whyte | AT31: Mike | AU31: MikeWhyte | AV31: MikeW | AW31: 1 | AX31: 1 | AY31: 1 | AZ31: 18.8
A32: LastFriR | B32: Williams | C32: Jim | D32: JimWilliams | E32: JimW g | F32: 0 | G32: 0 | H32: 1 | I32: 21.9 | J32: 16 | K32: 17 | L32: 18 | O32: Group 5 | P32: =$H5+4*$P$5/1440 -> 10:57:00 | AS32: Williams | AT32: Jim | AU32: JimWilliams | AV32: JimW g | AW32: 0 | AX32: 0 | AY32: 1 | AZ32: 21.9
B33: Duncan | C33: Robert | D33: RobertDuncan | E33: RobertD | F33: 0 | G33: 0 | H33: 0 | I33: 17.8 | J33: 18 | K33: 18 | L33: 17 | AS33: Duncan | AT33: Robert | AU33: RobertDuncan | AV33: RobertD | AW33: 0 | AX33: 0 | AY33: 0 | AZ33: 17.8
B34: Rice | C34: Britt | D34: BrittRice | E34: BrittR | F34: 0 | G34: 0 | H34: 0 | I34: 0 | J34: -3 | K34: -2 | L34: -3 | AS34: Cardillo | AT34: Jerry | AU34: JerryCardillo | AV34: JerryC | AW34: 1 | AX34: 1 | AY34: 0 | AZ34: 17.8
M35: Click to Alternate between First | AW35: 0 | AX35: 0 | AY35: 0 | AZ35: 0
M36: and Last Group
A41: MedalTeamR | F41: Medal | I41: Win | N41: GRegularAndGuestR | P41: Regular Player | R41: Regular Player Guest | AW41: Medal | AZ41: Win
E42: Monday | N42: Player/Guest Pair 1 | P42: WallisMcMath | R42: BrittRice | AV42: Monday
E43: Wednesday | N43: Player/Guest Pair 2 | AV43: Wednesday
A44: TableEndR | E44: Friday | N44: Player/Guest Pair 3 | AV44: Friday
B48: LastNameC | C48: GRegular PlayerC | E48: FirstNameLC | G48: GGuestPlayerC | I48: GindexC | J48: GMonIndexC | K48: GWedIndexC | L48: GFriIndexC
E53: Date | F53: 2020-04-27 | G53: 2020-04-29 | H53: 2020-05-01 | AV53: Date | AW53: 2020-04-27 | AX53: 2020-04-29 | AY53: 2020-05-01 | BE53: Monday Groups
F54: Mon | G54: Wed | H54: Fri | AW54: Mon | AX54: Wed | AY54: Fri | BE54: Start Time | BF54: =#REF! -> 
F55: Oaks | G55: Tourney | H55: Tourney | J55: HC | K55: HC | L55: HC | AW55: Oaks | AX55: Tourney | AY55: Tourney | BA55: HC | BB55: HC | BC55: HC | BE55: Time Incr. | BF55: =$P$5 -> 9 | BG55: =AV$3&" - "&AV$4 -> -
F56: 10:08:00 | G56: 10:21:00 | H56: 10:21:00 | I56: =+Details!E55 -> 10:21:00 | J56: 22 Max | K56: 22 Max | L56: 22 Max | AW56: 10:08:00 | AX56: 10:21:00 | AY56: 10:21:00 | AZ56: =+Details!AV55 -> 00:00:00 | BA56: 22 Max | BB56: 22 Max | BC56: 22 Max | BE56: Group 1 | BF56: =$F$5 -> 10:39:00 | BG56: BobLux | BH56: JesseJohnson | BI56: DanMiracle
B57: Last Name | C57: First Name | F57: =SUM(F58:F86) -> 12 | G57: =SUM(G58:G86) -> 8 | H57: =SUM(H58:H86) -> 12 | I57: Index | J57: Oaks | K57: TPC | L57: TPC | AS57: Last Name | AT57: First Name | AW57: =SUM(AW58:AW86) -> 12 | AX57: =SUM(AX58:AX86) -> 8 | AY57: =SUM(AY58:AY86) -> 12 | AZ57: Index | BA57: Oaks | BB57: TPC | BC57: TPC | BE57: Group 2 | BF57: =$F$5+1*$P$5/1440 -> 10:48:00 | BG57: RoySimmons | BH57: TimRoesler | BI57: WallisMcMath
B58: Anderson | C58: Gerry | D58: GerryAnderson | E58: GerryA | F58: 0 | G58: 0 | H58: 0 | I58: 10.8 | AS58: Anderson | AT58: Gerry | AU58: GerryAnderson | AV58: GerryA | AW58: 0 | AX58: 0 | AY58: 0 | AZ58: 10.8 | BE58: Group 3 | BF58: =$F$5+2*$P$5/1440 -> 10:57:00 | BG58: JohnKeyes | BH58: MikeWhyte | BI58: GaryPeterson
B59: Edwards | C59: Bob | D59: BobEdwards | E59: BobE | F59: 0 | G59: 0 | H59: 1 | I59: 21 | AS59: Edwards | AT59: Bob | AU59: BobEdwards | AV59: BobE | AW59: 0 | AX59: 0 | AY59: 1 | AZ59: 21 | BE59: Group 4 | BF59: =$F$5+3*$P$5/1440 -> 11:06:00 | BG59: CraigMellington | BH59: JeffSteimer | BI59: GerryAnderson | BJ59: JerryCardillo
B60: Heg | C60: John | D60: JohnHeg | E60: JohnH | F60: 0 | G60: 0 | H60: 0 | I60: 22.4 | AS60: Heg | AT60: John | AU60: JohnHeg | AV60: JohnH | AW60: 0 | AX60: 0 | AY60: 0 | AZ60: 22.4 | BE60: Group 5 | BF60: =$F$5+4*$P$5/1440 -> 11:15:00
B61: Johnson | C61: Jesse | D61: JesseJohnson | E61: JesseJ g | F61: 1 | G61: 0 | H61: 1 | I61: 25.4 | AS61: Johnson | AT61: Jesse | AU61: JesseJohnson | AV61: JesseJ g | AW61: 1 | AX61: 0 | AY61: 1 | AZ61: 25.4
B62: Kinney | C62: Jim | D62: JimKinney | E62: JimK g | F62: 0 | G62: 0 | H62: 0 | I62: 26.8 | AS62: Kinney | AT62: Jim | AU62: JimKinney | AV62: JimK g | AW62: 0 | AX62: 0 | AY62: 0 | AZ62: 26.8 | BE62: Wednesday Groups
B63: Keyes | C63: John | D63: JohnKeyes | E63: JohnK | F63: 1 | G63: 0 | H63: 1 | I63: 14.4 | AS63: Keyes | AT63: John | AU63: JohnKeyes | AV63: JohnK | AW63: 1 | AX63: 0 | AY63: 1 | AZ63: 14.4 | BE63: Start Time | BF63: =#REF! -> 
B64: Lewis | C64: Bob | D64: BobLewis | E64: BobL | F64: 0 | G64: 1 | H64: 1 | I64: 19.5 | AS64: Lewis | AT64: Bob | AU64: BobLewis | AV64: BobL | AW64: 0 | AX64: 1 | AY64: 1 | AZ64: 19.5 | BE64: Time Incr. | BF64: =$P$5 -> 9 | BG64: =AW$3&" - "&AW$4 -> Mon - Oaks
B65: Lisiewski | C65: Walt | D65: WaltLisiewski | E65: WaltL | F65: 0 | G65: 0 | H65: 0 | I65: 22.5 | AS65: Lisiewski | AT65: Walt | AU65: WaltLisiewski | AV65: WaltL | AW65: 0 | AX65: 0 | AY65: 0 | AZ65: 22.5 | BE65: Group 1 | BF65: =$G$5 -> 10:21:00 | BG65: JeffSteimer | BH65: BobLewis | BI65: MikeWhyte
B66: Lux | C66: Bob | D66: BobLux | E66: BobLx | F66: 1 | G66: 0 | H66: 1 | I66: 17 | AS66: Lux | AT66: Bob | AU66: BobLux | AV66: BobLx | AW66: 1 | AX66: 0 | AY66: 1 | AZ66: 17 | BE66: Group 2 | BF66: =$G$5+$P$5/1440 -> 10:30:00 | BG66: WallisMcMath | BH66: CraigMellington | BI66: GaryPeterson
B67: McMath | C67: Wallis | D67: WallisMcMath | E67: WallisM | F67: 1 | G67: 1 | H67: 1 | I67: 19.4 | AS67: McMath | AT67: Wallis | AU67: WallisMcMath | AV67: WallisM | AW67: 1 | AX67: 1 | AY67: 1 | AZ67: 19.4 | BE67: Group 3 | BF67: =$G$5+2*$P$5/1440 -> 10:39:00 | BG67: DanMiracle | BH67: GerryAnderson | BI67: JerryCardillo
B68: Mellington | C68: Craig | D68: CraigMellington | E68: CraigM | F68: 1 | G68: 1 | H68: 1 | I68: 10.1 | AS68: Mellington | AT68: Craig | AU68: CraigMellington | AV68: CraigM | AW68: 1 | AX68: 1 | AY68: 1 | AZ68: 10.1 | BE68: Group 4 | BF68: =$G$5+3*$P$5/1440 -> 10:48:00
B69: Miracle | C69: Dan | D69: DanMiracle | E69: DanM | F69: 1 | G69: 1 | H69: 1 | I69: 14.5 | AS69: Miracle | AT69: Dan | AU69: DanMiracle | AV69: DanM | AW69: 1 | AX69: 1 | AY69: 1 | AZ69: 14.5 | BE69: Group 5 | BF69: =$G$5+4*$P$5/1440 -> 10:57:00
B70: Moore | C70: Tim | D70: TimMoore | E70: TimM | F70: 0 | G70: 0 | H70: 0 | I70: 19 | AS70: Moore | AT70: Tim | AU70: TimMoore | AV70: TimM | AW70: 0 | AX70: 0 | AY70: 0 | AZ70: 19
B71: Peterson | C71: Gary | D71: GaryPeterson | E71: GaryP | F71: 1 | G71: 1 | H71: 0 | I71: 8.1 | AS71: Peterson | AT71: Gary | AU71: GaryPeterson | AV71: GaryP | AW71: 1 | AX71: 1 | AY71: 0 | AZ71: 8.1 | BE71: Friday Groups
B72: Roesler | C72: Al | D72: AlRoesler | E72: AlR | F72: 0 | G72: 0 | H72: 0 | I72: 21.1 | AS72: Roesler | AT72: Al | AU72: AlRoesler | AV72: AlR | AW72: 0 | AX72: 0 | AY72: 0 | AZ72: 21.1 | BE72: Start Time | BF72: =#REF! -> 
B73: Roesler | C73: Tim | D73: TimRoesler | E73: TimR | F73: 1 | G73: 0 | H73: 1 | I73: 17.5 | AS73: Roesler | AT73: Tim | AU73: TimRoesler | AV73: TimR | AW73: 1 | AX73: 0 | AY73: 1 | AZ73: 17.5 | BE73: Time Incr. | BF73: =$P$5 -> 9 | BG73: =AX$3&" - "&AX$4 -> Wed - Tourney
B74: Rowland | C74: Ken | D74: KenRowland | E74: KenR | F74: 0 | G74: 0 | H74: 0 | I74: 11.1 | AS74: Rowland | AT74: Ken | AU74: KenRowland | AV74: KenR | AW74: 0 | AX74: 0 | AY74: 0 | AZ74: 11.1 | BE74: Group 1 | BF74: =$H$5 -> 10:21:00 | BG74: TimRoesler | BH74: JimWilliams | BI74: LarryStick | BJ74: DanMiracle
A75: 0 | B75: Simmons | C75: Roy | D75: RoySimmons | E75: RoyS g | F75: 1 | G75: 0 | H75: 0 | I75: 21.5 | AS75: Simmons | AT75: Roy | AU75: RoySimmons | AV75: RoyS g | AW75: 1 | AX75: 0 | AY75: 0 | AZ75: 21.5 | BE75: Group 2 | BF75: =$H$5+$P$5/1440 -> 10:30:00 | BG75: WallisMcMath | BH75: CraigMellington | BI75: BobEdwards | BJ75: BobLux
B76: Smith | C76: Murray | D76: MurraySmith | E76: MurrayS | F76: 0 | G76: 0 | H76: 0 | I76: 16.5 | AS76: Smith | AT76: Murray | AU76: MurraySmith | AV76: MurrayS | AW76: 0 | AX76: 0 | AY76: 0 | AZ76: 16.5 | BE76: Group 3 | BF76: =$H$5+2*$P$5/1440 -> 10:39:00 | BG76: JohnKeyes | BH76: BobLewis | BI76: JesseJohnson | BJ76: MikeWhyte
B77: Steimer | C77: Jeff | D77: JeffSteimer | E77: JeffS | F77: 1 | G77: 1 | H77: 0 | I77: 22 | AS77: Steimer | AT77: Jeff | AU77: JeffSteimer | AV77: JeffS | AW77: 1 | AX77: 1 | AY77: 0 | AZ77: 22 | BE77: Group 4 | BF77: =$H$5+3*$P$5/1440 -> 10:48:00
B78: Stick | C78: Larry | D78: LarryStick | E78: LarryS | F78: 0 | G78: 0 | H78: 1 | I78: 19.6 | AS78: Stick | AT78: Larry | AU78: LarryStick | AV78: LarryS | AW78: 0 | AX78: 0 | AY78: 1 | AZ78: 19.6 | BE78: Group 5 | BF78: =#REF!+4*$P$5/1440 -> 
B79: Watkins | C79: Bob | D79: BobWatkins | E79: BobW w | F79: 0 | G79: 0 | H79: 0 | I79: 11.9 | AS79: Watkins | AT79: Bob | AU79: BobWatkins | AV79: BobW w | AW79: 0 | AX79: 0 | AY79: 0 | AZ79: 11.9
B80: West | C80: Waylan | D80: WaylanWest | E80: Waylan g | F80: 0 | G80: 0 | H80: 0 | I80: 22.4 | AS80: West | AT80: Waylan | AU80: WaylanWest | AV80: Waylan g | AW80: 0 | AX80: 0 | AY80: 0 | AZ80: 22.4
B81: White | C81: Bill | D81: BillWhite | E81: BillW | F81: 0 | G81: 0 | H81: 0 | I81: 20.9 | AS81: White | AT81: Bill | AU81: BillWhite | AV81: BillW | AW81: 0 | AX81: 0 | AY81: 0 | AZ81: 20.9
B82: Whyte | C82: Mike | D82: MikeWhyte | E82: MikeW | F82: 1 | G82: 1 | H82: 1 | I82: 18.8 | AS82: Whyte | AT82: Mike | AU82: MikeWhyte | AV82: MikeW | AW82: 1 | AX82: 1 | AY82: 1 | AZ82: 18.8
B83: Williams | C83: Jim | D83: JimWilliams | E83: JimW g | F83: 0 | G83: 0 | H83: 1 | I83: 21.9 | AS83: Williams | AT83: Jim | AU83: JimWilliams | AV83: JimW g | AW83: 0 | AX83: 0 | AY83: 1 | AZ83: 21.9
B84: Duncan | C84: Robert | D84: RobertDuncan | E84: RobertD | F84: 0 | G84: 0 | H84: 0 | I84: 17.8 | AS84: Duncan | AT84: Robert | AU84: RobertDuncan | AV84: RobertD | AW84: 0 | AX84: 0 | AY84: 0 | AZ84: 17.8
B85: Cardillo | C85: Jerry | D85: JerryCardillo | E85: JerryC | F85: 1 | G85: 1 | H85: 0 | I85: 17.8 | AS85: Cardillo | AT85: Jerry | AU85: JerryCardillo | AV85: JerryC | AW85: 1 | AX85: 1 | AY85: 0 | AZ85: 17.8
F86: 0 | G86: 0 | H86: 0 | I86: 0 | AW86: 0 | AX86: 0 | AY86: 0 | AZ86: 0
F92: Medal | I92: Win | AW92: Medal | AZ92: Win
E93: Monday | AV93: Monday
E94: Wednesday | AV94: Wednesday
E95: Friday | AV95: Friday

Sheet Weekly
V46: Course | W46: Players
V47: Date | W47: Wednesday May 6, 2020
V48: First Tee Time | W48: 10:21am
V49: Group 1 Tee Time | W49: 10:21am | X49: Player A | Y49: Player B | Z49: Player C
V50: Group 2 Tee Time | W50: 10:30am | X50: Player A | Y50: Player B | Z50: Player C
V51: Group 3 Tee Time | W51: 10:39am | X51: Player A | Y51: Player B | Z51: Player C | AA51: Player D
V52: Group 4 Tee Time
V53: Group 5 Tee Time

Sheet Tee Times
O1: =SUM(O4:O32) -> 12 | P1: =SUM(P4:P32) -> 12 | Q1: 14
G2: Monday Groups
A3: Ran # | B3: name | H3: =+Details!E6 -> 10:39:00 | N3: Name | O3: Monday | P3: Wed | Q3: Friday
A4: =IF(ISTEXT(B4),RAND(),0) -> 0.6464471826 | B4: TimM | D4: 1 | E4: 1 | G4: Time incr | H4: 00:09:00 | I4: Monday - Oaks | N4: GerryA | O4: 0 | P4: 0 | Q4: 0
A5: 0.1268342402 | B5: JimW g | D5: 2 | E5: 2 | G5: Group 1 | H5: =+$H$3 -> 10:39:00 | I5: GaryP | J5: JohnK | K5: WallisM | L5: RoyS g | N5: JohnH | O5: 0 | P5: 0 | Q5: 0
A6: 0.2873628533 | B6: JesseJ g | D6: 3 | E6: 3 | G6: Group 2 | H6: =+H5+$H$4 -> 10:48:00 | I6: BobLx | J6: JeffS | K6: Jerry Cardillo | L6: DanM | N6: JimK g | O6: 0 | P6: 0 | Q6: 0
A7: 0.7102938526 | B7: BobLx | D7: 4 | E7: 4 | G7: Group 3 | H7: =+H6+$H$4 -> 10:57:00 | I7: TimR | J7: MikeW | K7: CraigM | L7: JesseJ g | N7: WaltL | O7: 0 | P7: 0 | Q7: 0
A8: 0.4201273893 | B8: BobE | D8: 5 | E8: 5 | G8: Group 4 | H8: 11:06:00 | N8: AlR | O8: 0 | P8: 0 | Q8: 0
A9: 0.8412488538 | B9: BobL | D9: 6 | E9: 3, 3 | G9: Group 5 | H9: 11:15:00 | N9: KenR | O9: 0 | P9: 0 | Q9: 0
A10: 0.2602534274 | B10: LarryS | D10: 7 | E10: 3, 4 | N10: MurrayS | O10: 0 | P10: 0 | Q10: 0
A11: 0.7920897252 | B11: JohnK | D11: 8 | E11: 4, 4 | G11: Wednesday Groups | N11: JohnT | O11: 0 | P11: 0 | Q11: 0
A12: 0.5486012811 | B12: WallisM | D12: 9 | E12: 3, 3, 3 | G12: Start time | H12: =+Details!E7 -> 10:21:00 | N12: BobW w | O12: 0 | P12: 0 | Q12: 0
A13: 0.713785434 | B13: CraigM | D13: 10 | E13: 3, 3, 4 | G13: Time incr | H13: 00:09:00 | I13: Wednesday - Palmer | N13: Waylan g | O13: 0 | P13: 0 | Q13: 0
A14: 0.6294011136 | B14: DanM | D14: 11 | E14: 3, 4, 4 | G14: Group 1 | H14: =+H12 -> 10:21:00 | I14: DanM | J14: JeffS | K14: BobL | L14: GaryP | N14: BillW | O14: 0 | P14: 0 | Q14: 0
A15: 0.09941979938 | B15: TimR | D15: 12 | E15: 4, 4, 4 | G15: Group 2 | H15: =+H14+$H$4 -> 10:30:00 | I15: TimR | J15: BobE | K15: CraigM | L15: JohnK | N15: RobertD | O15: 0 | P15: 0 | Q15: 0
A16: 0.8548117361 | B16: RoyS g | D16: 13 | E16: 3, 3, 3, 4 | G16: Group 3 | H16: =+H15+$H$4 -> 10:39:00 | I16: RoyS g | J16: LarryS | K16: WallisM | L16: MikeW | N16: Jerry Cardillo | O16: 1 | P16: 0 | Q16: 0
A17: 0.6054959368 | B17: MikeW | D17: 14 | E17: 3, 3, 4, 4 | G17: Group 4 | H17: 10:48:00 | N17: GaryP | O17: 1 | P17: 1 | Q17: 0
A18: 0 | D18: 15 | E18: 3, 4, 4, 4 | G18: Group 5 | H18: 10:57:00 | N18: JeffS | O18: 1 | P18: 1 | Q18: 0
A19: 0 | D19: 16 | E19: 4, 4, 4, 4 | N19: TimM | O19: 0 | P19: 0 | Q19: 1
A20: 0 | D20: 17 | E20: 3, 3, 3, 4, 4 | G20: Friday Groups | N20: JimW g | O20: 0 | P20: 0 | Q20: 1
A21: 0 | D21: 18 | E21: 3, 3, 4, 4, 4 | G21: Start time | H21: =+Details!E8 -> 10:21:00 | N21: JesseJ g | O21: 1 | P21: 0 | Q21: 1
A22: 0 | D22: 19 | E22: 3, 4, 4, 4, 4 | G22: Time incr | H22: 00:09:00 | I22: Friday - Tournament | N22: BobLx | O22: 1 | P22: 0 | Q22: 1
A23: 0 | D23: 20 | E23: 4, 4, 4, 4, 4 | G23: Group 1 | H23: =+H21 -> 10:21:00 | I23: WallisM | J23: TimR | K23: JohnK | L23: BobL | N23: BobE | O23: 0 | P23: 1 | Q23: 1
G24: Group 2 | H24: =+H23+$H$4 -> 10:30:00 | I24: BobLx | J24: JimW g | K24: BobE | L24: LarryS | N24: BobL | O24: 0 | P24: 1 | Q24: 1
G25: Group 3 | H25: =+H24+$H$4 -> 10:39:00 | I25: MikeW | J25: CraigM | K25: DanM | L25: JesseJ g | N25: LarryS | O25: 0 | P25: 1 | Q25: 1
G26: Group 4 | H26: 10:48:00 | N26: JohnK | O26: 1 | P26: 1 | Q26: 1
G27: Group 5 | H27: 10:57:00 | N27: WallisM | O27: 1 | P27: 1 | Q27: 1
N28: CraigM | O28: 1 | P28: 1 | Q28: 1
N29: DanM | O29: 1 | P29: 1 | Q29: 1
N30: TimR | O30: 1 | P30: 1 | Q30: 1
B31: WallisM | N31: RoyS g | O31: 1 | P31: 1 | Q31: 1
G32: Monday | N32: MikeW | O32: 1 | P32: 1 | Q32: 1
G33: Group 1 | H33: =+$H$3 -> 10:39:00 | I33: JohnK | J33: JesseJ g | K33: WallisM
A34: Ran # | B34: name | G34: Group 2 | H34: =+H33+$H$4 -> 10:48:00 | I34: TimM ( Holes) | J34: CraigM | K34: TimR | L34: RoyS g
A35: 0.03432837069 | B35: WallisM | D35: 1 | G35: Group 3 | H35: =+H34+$H$4 -> 10:57:00 | I35: BobL | J35: GaryP(?) | K35: DanM | L35: MikeW
A36: 0.08943842575 | B36: TimR | D36: 2 | G36: Group 4 | H36: 11:06:00
A37: 0.1204335939 | B37: JohnK | D37: 3 | E37: 3 | G37: Group 5 | H37: 11:15:00
A38: 0.3195480807 | B38: BobLx | D38: 4 | E38: 4
A39: 0.3588772051 | B39: JimW g | D39: 5 | E39: 5
A40: 0.4091248919 | B40: BobL | D40: 6 | E40: 3, 3 | G40: Wednesday
A41: 0.4267442384 | B41: MikeW | D41: 7 | E41: 3, 4 | G41: Group 1 | H41: =+$H$3 -> 10:39:00 | I41: CraigM | J41: GaryP | K41: DanM | L41: MikeW
A42: 0.454450283 | B42: CraigM | D42: 8 | E42: 4, 4 | G42: Group 2 | H42: =+H41+$H$4 -> 10:48:00 | I42: JohnK | J42: BobL | K42: TimR | L42: BobE
A43: 0.5099121503 | B43: DanM | D43: 9 | E43: 3, 3, 3 | G43: Group 3 | H43: =+H42+$H$4 -> 10:57:00 | I43: JesseJ g | J43: RoyS g | K43: BobLx | L43: JeffS
A44: 0.640627448 | B44: JesseJ g | D44: 10 | E44: 3, 3, 4 | G44: Group 4 | H44: 11:06:00
A45: 0.684534006 | B45: TimM | D45: 11 | E45: 3, 4, 4 | G45: Group 5 | H45: 11:15:00
A46: 0.7104213526 | B46: RoyS g | D46: 12 | E46: 4, 4, 4
A47: 0.8254995337 | B47: BobE | D47: 13 | E47: 3, 3, 3, 4 | G47: Friday
A48: 0.9223929199 | B48: LarryS | D48: 14 | E48: 3, 3, 4, 4 | G48: Group 1 | H48: =+$H$3 -> 10:39:00 | I48: TimR | J48: CraigM | K48: MurrayS | L48: MikeW
D49: 15 | E49: 3, 4, 4, 4 | G49: Group 2 | H49: =+H48+$H$4 -> 10:48:00 | I49: JeffS | J49: JesseJ g | K49: BobLx | L49: LarryS
D50: 16 | E50: 4, 4, 4, 4 | G50: Group 3 | H50: =+H49+$H$4 -> 10:57:00 | I50: BobE | J50: DanM | K50: BobL | L50: TimM
B51: RoyS g | D51: 17 | G51: Group 4 | H51: 11:06:00 | I51: RoyS g | J51: JohnK | K51: WallisM | L51: JimW g
D52: 18 | G52: Group 5 | H52: 11:15:00
D53: 19
D54: 20
D55: 21
D56: 22
D57: 23
D58: 24
D59: 25
D60: 26
D61: 27
D62: 28
G308: 5) Type starting tee time in HH:MM:SS AM format | H308: Tee Time
G309: Starting Hole 1 | H309: 10:21:00
G310: =IF($AI$10="Y","Starting Hole 1", "Start on Hole 10") -> Start on Hole 10 | H310: =IF($AI$10="Y",H309+$AI$11,H309) -> 10:21:00

Sheet Bday
A1: =TODAY() -> 2020-05-07 | D1: Thomas - Lewis Group
A3: =AVERAGE(A4:A28) -> 75.3622665 | B3: Average | D3: Name | E3: Home Phone | F3: Mobile | G3: Address | I3: Email | J3: B'Day | K3: Spouse | N3: Name | O3: Mon
A4: =($A$1-J4)/365 -> 73.11506849 | C4: 1 | D4: Anderson, Gerry | E4: no | F4: 713.419.4730 | G4: 8900 Research Park Dr Apt1708 | H4: TW, TX 77381 | I4: gerryjanderson@gmail.com | J4: 1947-04-14 | N4: Miracle, Marsha | O4: 1 | Q4: 1
A5: =($A$1-J5)/365 -> 73.97534247 | C5: 2 | D5: Edwards, Bob & Mary | E5: no | F5: 703.867.3828 | G5: 128 S Copperknoll Cir | H5: TW, TX 77381 | I5: rae1putt@aol.com | J5: 1946-06-04 | K5: 1995-08-28 | N5: Stick, Larry | O5: 1 | Q5: 2
C6: 3 | D6: Heg, John | E6: 281.296.0539 | F6: 832.247.3814 | G6: 99 E Fairbranch Cir | H6: TW, TX 77382 | I6: john.heg@hotmail.com | J6: 1953-04-08 | N6: Johnson, Pat | O6: 2 | Q6: 3
A7: 84.70410959 | C7: 4 | D7: Johnson, Jesse & Pat | E7: 281.364.9858 | F7: 281.389.2698 | G7: 2 Windledge Pl | H7: TW, TX 77381 | I7: jesseljohnson@msn.com | J7: 1935-09-14 | K7: 2011-02-25 | N7: Rowland, Ken | O7: 2 | Q7: 4
A8: 76.10958904 | C8: 5 | D8: Kenney, Jim & Jackie | E8: 936.273.3851 | F8: 936.499.2158 | G8: 66 Lyric Arbor Cir | H8: TW, TX 77381 | I8: jasperjim@comcast.net | J8: 1944-04-16 | K8: 2010-04-29 | N8: MacRae, Colin | O8: 2 | Q8: 5
A9: 76.77260274 | C9: 6 | D9: Keyes, John & Marilyn | E9: 281.298.2347 | F9: 281.384.2340 | G9: 10 Windhaven Dr. | H9: TW, TX 77381 | I9: johnkeyes@comcast.net | J9: 1943-08-18 | K9: 2011-03-02 | N9: White, Bill | O9: 2 | Q9: 6
A10: 75.52328767 | C10: 7 | D10: Lewis, Bob & Carol | E10: 832.764.0855 | F10: 832.671.0267 | G10: 55 S Castlegreen Circle | H10: TW, TX 77381 | I10: BobJLewis@att.net | J10: 1944-11-16 | K10: 2011-04-25 | N10: White, Neysa | O10: 2 | Q10: 7
A11: =($A$1-J12)/365 -> 72.89863014 | C11: 8 | D11: Lisiewski, Walt & | I11: wlisiewski@aol.com | N11: Keyes, Marilyn | O11: 3 | Q11: 8
A12: 81.4 | C12: 9 | D12: Lux, Bob & Judy | E12: 281.292.6262 | F12: 832.622.3503 | G12: 66 W Palmer Bend | H12: TW, TX 77381 | I12: robertlux@comcast.net | J12: 1947-07-02 | K12: 2011-07-04 | N12: Roeder, Jane | O12: 3 | Q12: 9
A13: 79.12054795 | C13: 10 | D13: MacRae, Colin | E13: 281.363.3274 | F13: 281.795.3439 | G13: 10707 E Timberwagon Cir | H13: TW, TX 77380 | I13: macraecolsal@aol.com | J13: 1939-01-02 | N13: Stick, Connie | O13: 3 | Q13: 10
A14: 68.42465753 | C14: 11 | D14: McMath, Wallis & Jean | E14: 281.298.5515 | F14: 713.470.7653 | G14: 27 N Castlegreen Cir. | H14: TW, TX 77381 | I14: wallis@mcmathmail.com | J14: 1941-04-13 | K14: 2000-08-30 | N14: Truhe, Sharon | O14: 3 | Q14: 11
A15: 77.57534247 | C15: 12 | D15: Mellington, Craig & Terry | E15: no | F15: 281.798.5201 | G15: 6 E. Racing Cloud Court | H15: TW, TX 77381 | I15: cmellington@comcsat.net | J15: 1951-12-21 | K15: 2011-08-12 | N15: Anderson, Gerry | O15: 4 | Q15: 12
A16: 70.48767123 | C16: 13 | D16: Miracle, Dan & Marsha | E16: 281.465.4589 | F16: 281.793.9101 | G16: 11 Feather Branch Ct | H16: TW, TX 77381 | I16: dbmiracle@outlook.com | J16: 1942-10-29 | K16: 1943-01-08 | N16: Kenney, Jackie | O16: 4 | Q16: 13
A17: =($A$1-J19)/365 -> 81.54794521 | C17: 14 | D17: Moore, Tim & Charlotte | E17: 281.465.8375 | G17: 11 Crested Pines Court | H17: TW, TX 77381 | I17: tjmandcsm@sbcglobal.net | J17: 1949-11-28 | K17: 2010-08-01 | N17: Kenney, Jim | O17: 4 | Q17: 14
A18: =($A$1-J20)/365 -> 74.97534247 | C18: 15 | N18: Lewis, Carol | O18: 4 | Q18: 15
A19: =($A$1-J21)/365 -> 63.24657534 | C19: 16 | D19: Roeder, Al & Jane | E19: 281.367.2763 | F19: 832.998.6372 | G19: 10 Doe Run Dr. | H19: TW, TX 77380 | I19: east16@comcast.net | J19: 1938-11-09 | K19: 2011-03-15 | N19: McMath, Wallis | O19: 4 | Q19: 16
A20: =($A$1-J22)/365 -> 76.72876712 | C20: 17 | D20: Roesler, Tim & Toni | E20: 281.645.6194 | F20: 713.447.4600 | G20: 55 Tapestry Forest Place | H20: TW, TX 77381 | I20: timothyroesler@comcast.net | J20: 1945-06-04 | K20: 2011-05-29 | N20: Truhe, John | O20: 4 | Q20: 17
A21: =($A$1-J26)/365 -> 73.37534247 | C21: 18 | D21: Rowland, Ken & Nancy | E21: 281.651.2957 | F21: 571.814.8053 | G21: 3 Dorset Square | H21: TW, TX 77381 | I21: rowland.ken@gmail.com | J21: 1957-02-22 | N21: Roesler,Toni | O21: 5 | Q21: 18
A22: =($A$1-J27)/365 -> 67.1369863 | C22: 19 | D22: Sheffield, Carlton & Patricia | E22: 281.252.3670 | F22: 281.380.8622 | G22: 39518 Lago Dr | H22: Magnolia, 77354 | I22: F_Sheffield@sbcglobal.net | J22: 1943-09-03 | K22: 2015-10-30 | N22: West, Waylan | O22: 5 | Q22: 19
A23: =($A$1-J29)/365 -> 74.52876712 | C23: 20 | D23: Simmons, Roy | E23: no | F23: 713.248.9635 | G23: 34 N. Horizon Ridge Ct. | H23: TW, TX 77381 | I23: roy2414@gmail.com | J23: 1937-01-27 | K23: na | N23: Edwards, Bob | O23: 6 | Q23: 20
A24: =($A$1-J30)/365 -> 79.04109589 | C24: 21 | D24: Steimer, Jeff & Lee Ann | E24: no | F24: 936.333.1641 | G24: 19 North Morning Cloud Circle | H24: TW, TX 77381 | I24: jgsteimer@yahoo.com | J24: 1954-06-15 | K24: 2000-09-01 | N24: Roesler, Tim | O24: 6 | Q24: 21
A25: =($A$1-J31)/365 -> 74.30136986 | C25: 22 | D25: Smith, Murray & Margaret | E25: no | F25: 832.381.6292 | G25: 1849 Lake Terrace Court | H25: TW, TX 77380 | I25: murraysmithllc@outlook.com | J25: 1950-08-11 | K25: 2000-10-15 | N25: Weber, Mary Jo | O25: 6 | Q25: 22
A26: =($A$1-J32)/365 -> 82.98082192 | C26: 23 | D26: Stick, Larry & Connie | E26: 281.397.0838 | F26: 281.330.7433 | G26: 7 E Bay Blvd | H26: TW, TX 77380 | I26: larrystick1@comcast.net | J26: 1947-01-09 | K26: 2011-03-20 | N26: Whyte, Mike | O26: 6 | Q26: 23
C27: 24 | D27: Truhe, John & Sharon | E27: no | F27: 281.825.2362 | G27: 7 Rolling Stone Place | H27: TW, TX 77381 | I27: jtruhe@comcast.net | J27: 1953-04-04 | K27: 2015-03-15 | N27: Geis, Art | O27: 7 | Q27: 24
C28: 25 | D28: Watkins, Bob & Gwen | E28: no | F28: 832.540.6890 | G28: 2 Passive Alcove Ct. | H28: TW, TX 77375 | I28: bobwatkins16@gmail.com | J28: 1957-02-15 | K28: 2000-07-15 | N28: Lux, Bob | O28: 7 | Q28: 25
C29: 26 | D29: Weber, Bill & Mary Jo | E29: 281.419.6448 | F29: 832.205.4275 | G29: 15 Highland Green Pl | H29: TW, TX 77381 | I29: billw14@att.net | J29: 1945-11-14 | K29: 2011-06-22 | N29: Lux, Judy | O29: 7 | Q29: 26
C30: 27 | D30: West, Waylan & Karen | E30: 281.362.9659 | G30: 42 W Palmer Bend | H30: TW, TX 77381 | I30: waylan_west@comcast.net | J30: 1941-05-12 | K30: 2010-10-29 | N30: Miller, Mary | O30: 7 | Q30: 27
C31: 28 | D31: White, Bill & Neysa | E31: 281.367.5991 | F31: 713.294.7340 | G31: 15 Empire Forest Pl. | H31: TW, TX 77382 | I31: billwhite46@comcast.net | J31: 1946-02-05 | K31: 2011-02-11 | N31: Edwards, Mary | O31: 8 | Q31: 28
D32: Whyte, Mike & Sandy | E32: 281.292.3649 | F32: 936.697.4580 | G32: 8 Glory Bower Ct. | H32: TW, TX 77380 | I32: its4mcw@aol.com | J32: 1937-06-04 | K32: 2011-12-05 | N32: Geis, Sharon | O32: 8 | Q32: 29
N33: Keyes, John | O33: 8 | Q33: 30
N34: McMath, Jean | O34: 8 | Q34: 31
N35: Mellington, Terry | O35: 8 | Q35: 32
N36: Moore, Charlotte | O36: 8 | Q36: 33
N37: Johnson, Jesse | O37: 9 | Q37: 34
N38: Sheffield, Carlton | O38: 9 | Q38: 35
N39: Miracle, Dan | O39: 10 | Q39: 36
N40: Sheffield, Patricia | O40: 10 | Q40: 37
N41: West, Karen | O41: 10 | Q41: 38
N42: Lewis, Bob | O42: 11 | Q42: 39
N43: Moore, Tim | O43: 11 | Q43: 40
N44: Roeder, Al | O44: 11 | Q44: 41
N45: Weber, Bill | O45: 11 | Q45: 42
N46: Mellington, Craig | O46: 12 | Q46: 43
N47: Whyte, Sandy | O47: 12 | Q47: 44
Q48: 45
Q49: 46
N50: Birdsong, Charlie | O50: 10 | Q50: 47
N51: Birdsong, Lynda | O51: 4
N52: Copeland, Charlie | O52: 11
N53: Copeland, Nancy | O53: 1
A54: =($A$1-J70)/365 -> 8.895890411 | N54: McCracken, Charlie | O54: 6
N55: McCracken, Dick | O55: 6
N56: Miller, Gene | O56: 6
N57: Socher, Don | O57: 8
N58: Socher, Mary Lou | O58: 1
N59: Strasburger, Chuck | O59: 4
N60: Strasburger, Frankie | O60: 7
N61: Swenson, Millie | O61: 8
C62: 2 | N62: Swenson, Ron | O62: 8
D64: Miller, Gene & Mary | E64: 281.292.7652 | F64: 281.468.8777 | G64: 47 N Castlegreen Cir. | H64: TW, TX 77381 | I64: emiller455@comcast.net | J64: 1926-06-18 | K64: 2011-07-30
B66: =($A$1-J74)/365 -> 97.71506849 | D66: Birdsong, Charlie & Lynda | E66: 281.298.5686 | F66: 972.567.1764 | G66: 42 N. Brokenfern | H66: TW, TX 77380 | I66: c.birdsong@att.net | J66: 1946-10-18 | K66: 2015-04-16
C67: 22 | D67: Geis, Art & Sharon | F67: 415.516.4791 | G67: 42 Spotted Lily Way | H67: TW, TX 77354 | I67: artgeis@msn.com | J67: 1952-07-09 | K67: 2015-08-22
D68: Copeland, Charlie & Nancy | E68: 281.296.6676 | F68: 832.978.1687 | G68: 43 Dresden Place | H68: TW, TX 77381 | I68: ccj1502@sbcglobal.net | J68: 1949-11-18 | K68: 2000-01-18
D70: McCracken, Dick & Charlie | E70: 281.363.1732 | G70: 30 W Eden Elm Cir. | H70: TW, TX 77381 | I70: dickmcc@comcast.net | J70: 2011-06-17 | K70: 2011-06-19
D71: Socher, Don & Mary Lou | E71: 280.292.9035 | G71: 44 Dunlin Meadow | H71: TW, TX 77381 | I71: dsocher_houston1@comcast.net | J71: 1930-08-05 | K71: 2011-01-05
D72: Swenson, Ron & Millie | E72: 281.298.1610 | G72: 39 Silk Bay Pl. | H72: TW, TX 77382 | I72: rfs39@sbcglobal.net | J72: 1933-08-25 | K72: 2011-08-08
D73: Strasburger, Chuck & Frankie | E73: 281.292.0687 | F73: 281.440.5573 | G73: 26 E Honey Grove Pl. | H73: TW, TX 77382 | I73: cbs5861@aol.com | J73: 1934-04-20 | K73: 1935-07-25
C74: 1 | D74: Thomas, Quinton | E74: 281.367.2166 | G74: 14 Huntsman Horn Cir. | H74: TW, TX 77380 | I74: jqt91322@webtv.net | J74: 1922-09-13
C75: 2
C76: 2
C77: 1
C78: 2
C79: 2 | D79: Bithday/ Q Memorial dinner 3/15
C80: 2
C81: 1 | D81: Andrson, Gerry
C82: 2 | D82: Edwards, Bob & Mary
C83: 2 | D83: Geis, Art & Sharon
C84: 3 | D84: Johnson, Jesse
C85: 2 | D85: Kenney, Jim & Jackie
C86: 2 | D86: Keyes, John & Marilyn(Birthday)
C87: 2 | D87: Lewis, Bob & Carol
C88: 2 | D88: MacRae, Colin
C89: 2 | D89: Mellington, Craig & Terry
C90: 2 | D90: Moore, Tim & Charlotte
D91: Roeder, Al & Jane(Birthday) & Guest Jane Clover
C92: =SUM(C74:C91) -> 32 | D92: Roeder Guest Chuck & Frankie Strasburger
D93: Roesler, Tim & Toni
D94: Stick, Larry & Connie(Birthday)
D95: Weber, Bill & Mary Jo
D96: West, Waylan & Karen
D97: White, Bill & Neysa
D99: Total

Sheet Rules
A1: Golf Group Rules
A2: Our golf group Purpose is to promote serious golf but make it fun for all.
A4: 1. Group plays from the gold tees. We do not take mulligans off the first tee unless the driving range is closed. If it is closed you can hit a second shot if you have a bad first drive but you have to use the second shot even if it is worse thatn the first.
A5: 2. When we play with traps in a "Ground under repair" as we are now the rule is neareast point of relief no closer to the hole. There is no one club or 2 club relief. You get a "stance" and that is the point to drop the ball. In most cases you will be dropping in the rough or with the trap in front of you.
A6: 3. Individual 4 ball matches get played if 3 of 4 player want to play. Game can be what 3/4 want to play
A7: 4. General rules for a putting "good" is the physical length a standard grip. Players can decide but should protect the field
A8: 5. Always play it down unless it is cart path only which would allow pick, clean and place in fairway only
A9: 6. A free "drop" (not place) is allowed if ball ends in a fairway divot.
A10: 7. We do not take mulligans off the first tee unless the driving range is closed. If it is closed you can hit a second shotif you have a bad first drive but you have to use the second shot even if it is worse thatn the first.……………..
A11: 8. It takes 7 "competing" members to have a competitive round.
A12: 9. To play social the fee is $4 to cover the drink cost. Less than 7 players can also contribute $3 each
A13: 10. When playing less than 7 players one option is to have each player put $5 in the pot and the low net individual wins the pot and then pays the bar bill.
A15: Pace of play is critical to the group
A17: A key to keeping our pace of play up is for each of us to be aware of slow play from our fellow players and we encourage your communicating slow play to the slow player. We ask that all players be tolerate receiving comments from other players that will help us improve our pace of play. Sugggestions on pace of play:
A18: 1. Play ready golf. If someone else is out but you are ready, announce you intent to play and then make the shot or putt
A19: 2. If sharing a cart get dropped off at your ball, select your club and let your cart partner go to his ball and get ready to play
A20: 3. When in the fairway or tee box make sure you get your club out, gloves on and be ready to play your shot as soon as possible while the other players are playing their shots.
A21: 4. Work on your putt or iron routine to not spend too much time just standing over the ball.
A22: 5. Try to line up your putt before it is your turn so you can address the ball and execute when it is your turn.
A23: 6. Putt out if possible. If it gives a competitor a read it is OK to not finish but otherwise continue to the hole.
A24: 7. If you are falling behind the group in front of you be deliberate to try to catch up but keep your swings smooth and true.
A25: 8. Walkers should make sure your walking pace is not slowing up the group. If the group is falling behind consider jumping on a cart (if availble) for the tee shot and between holes

Sheet New GHIN
A1: USGA Section 3 Handicapping | D1: Gold Tee's are the base | T1: 2020-12-15 | AB1: Max for holes with strokes
A2: Select the course for week in cell A1 | B2: Slope | D2: Rating | F2: Hdc Adj | P2: GerryA | Q2: 0284389 | V2: HC | W2: HC | X2: HC | Y2: HC | AA2: PAR | AB2: 0 | AC2: 1 | AD2: 2
A3: Select Course | B3: Green | C3: Gold | D3: Green | E3: Gold | F3: Gld to Grn | I3: White | L3: White | P3: BobE | Q3: 6433451 | V3: 18.16153846 | W3: 22max | X3: 22max | Y3: 22max | AA3: 3 | AB3: 5 | AC3: 6 | AD3: na*
A4: Player | B4: 119 | C4: 128 | D4: 65.4 | E4: 69.5 | F4: -4 | I4: 71.2 | L4: 137 | P4: JohnH | Q4: 1952705 | U4: Index | V4: AvHC | W4: Player | X4: P K/G | Y4: TPC | AA4: 4 | AB4: 6 | AC4: 7 | AD4: na*
A5: Palmer King-Gen | B5: 118 | C5: 124 | D5: 66.8 | E5: 69.6 | F5: -3 | I5: 70.8 | L5: 126 | P5: JesseJ g | Q5: 8505540 | T5: GerryA | U5: 10.3 | V5: 9 | W5: 9 | X5: 9 | Y5: 9 | AA5: 5 | AB5: 7 | AC5: 8 | AD5: 9
A6: Tournament | B6: 119 | C6: 126 | D6: 65.9 | E6: 69.7 | F6: -4 | I6: 70.5 | L6: 129 | P6: JimK g | Q6: 8505583 | T6: BobE | U6: 20 | V6: 20 | W6: 20 | X6: 20 | Y6: 20 | AA6: na* - with 22 max no one gets 2 strokes on par 3 or 4
A7: Palmer Dea-King | B7: 116 | C7: 123 | D7: 65.9 | E7: 69.3 | F7: 70.8 | I7: -3 | J7: 2 | L7: 125 | P7: JohnK | Q7: 8505613 | T7: JohnH | U7: 20.5 | V7: 20.66666667 | W7: 21 | X7: 20 | Y7: 21
A8: Palmer Gen - Dea | B8: 117 | C8: 125 | D8: 66.5 | E8: 69.7 | F8: 71.2 | I8: -3 | J8: 2 | L8: 128 | P8: BobL | Q8: 8505649 | T8: JesseJ g | U8: 25.7 | V8: 21.33333333 | W8: 20 | X8: 23 | Y8: 21
A9: Other Course | B9: 0 | C9: 115 | E9: 67.5 | F9: 69.2 | I9: 0 | J9: 2 | L9: 120 | P9: WaltL | Q9: 8505667 | T9: JimK g | U9: 26.7 | V9: 22.66666667 | W9: 22 | X9: 24 | Y9: 22
A10: Todays Course - Player | L10: *Note | P10: BobLx | Q10: 8505653 | T10: JohnK | U10: 14 | V10: 13 | W10: 13 | X10: 13 | Y10: 13
A11: Todays Slopes and Tee Adjustment are | B11: 119 | C11: 128 | D11: 65.4 | E11: Gold to Wht HC Adj | I11: -4 | J11: 2 | L11: 137 | P11: WallisM | Q11: 2102801 | T11: BobL | U11: 17.9 | V11: 17.66666667 | W11: 18 | X11: 17 | Y11: 18
P12: CraigM | Q12: 6353615 | T12: WaltL | U12: 22.1 | V12: 22.33333333 | W12: 23 | X12: 22 | Y12: 22
A13: Green HC = Slope difference plus Course rating delta | P13: DanM | Q13: 0003188 | T13: BobLx | U13: 17.1 | V13: 16.66666667 | W13: 17 | X13: 16 | Y13: 17
A14: Player Index | C14: Gold HC | D14: Green HC | E14: Gr Adjust | L14: White | P14: TimM | Q14: 1484835 | T14: WallisM | U14: 20.2 | V14: 20 | W14: 20 | X14: 20 | Y14: 20
A15: 10 | C15: =ROUND(A15*(C$4/113),0) -> 11 | D15: =ROUND(A15*(B$4/113)+F$4,0) -> 7 | E15: =+D15-$C15 -> -4 | H15: =+L15-$C15 -> 1.123893805 | J15: 4 | L15: =A15*(L$4/113)+J$4 -> 12.12389381 | M15: =ROUND(C15,0) -> 11 | P15: GaryP | Q15: 3088085 | T15: CraigM | U15: 9.9 | V15: 8.666666667 | W15: 9 | X15: 8 | Y15: 9
A16: 11 | C16: =ROUND(A16*(C$4/113),0) -> 12 | D16: 8 | E16: -4 | H16: =+L16-C16 -> 1.336283186 | J16: 4 | L16: 13.33628319 | P16: AlR | Q16: 8505970 | T16: DanM | U16: 16.6 | V16: 16 | W16: 16 | X16: 16 | Y16: 16
A17: 12 | C17: 14 | D17: 9 | E17: -5 | H17: 0.5486725664 | J17: 5 | L17: 14.54867257 | P17: TimR | Q17: 1078775 | T17: TimM | U17: 20.8 | V17: 21 | W17: 21 | X17: 21 | Y17: 21
A18: 13 | C18: 15 | D18: 10 | E18: -5 | H18: 0.7610619469 | J18: 5 | L18: 15.76106195 | P18: KenR | Q18: 2020045 | T18: GaryP | U18: 9.4 | V18: 8 | W18: 8 | X18: 8 | Y18: 8
A19: 14 | C19: 16 | D19: 11 | E19: -5 | H19: 0.9734513274 | J19: 5 | L19: 16.97345133 | P19: RoyS | Q19: 8506106 | T19: AlR | U19: 21 | V19: 21 | W19: 21 | X19: 21 | Y19: 21
A20: 15 | C20: 17 | D20: 12 | E20: -5 | H20: 1.185840708 | J20: 5 | L20: 18.18584071 | P20: MurrayS | Q20: 7967386 | T20: TimR | U20: 21.9 | V20: 22 | W20: 22 | X20: 22 | Y20: 22
A21: 16 | C21: 18 | D21: 13 | E21: -5 | H21: 1.398230088 | J21: 5 | L21: 19.39823009 | P21: JeffS | Q21: 0153649 | T21: KenR | U21: 13.9 | V21: 13 | W21: 13 | X21: 13 | Y21: 13
A22: 17 | C22: 19 | D22: 14 | E22: -5 | H22: 1.610619469 | J22: 5 | L22: 20.61061947 | P22: LarryS | Q22: 8506052 | T22: RoyS | U22: 20.7 | V22: 20.66666667 | W22: 21 | X22: 20 | Y22: 21
A23: 18 | C23: 20 | D23: 15 | E23: -5 | H23: 1.82300885 | J23: 5 | L23: 21.82300885 | P23: JohnT | Q23: 2565906 | T23: MurrayS | U23: 16.2 | V23: 15.66666667 | W23: 16 | X23: 15 | Y23: 16
A24: 19 | C24: 22 | D24: 16 | E24: -6 | H24: 1.03539823 | J24: 6 | L24: 23.03539823 | P24: BobW | Q24: 1635148 | T24: JeffS | U24: 22.3 | V24: 22.66666667 | W24: 23 | X24: 22 | Y24: 23
A25: 20 | C25: 23 | D25: 17 | E25: -6 | H25: 1.247787611 | L25: 24.24778761 | P25: Waylan g | Q25: 6462888 | T25: LarryS | U25: 18.7 | V25: 18.66666667 | W25: 19 | X25: 18 | Y25: 19
A26: 21 | C26: 24 | D26: 18 | E26: -6 | H26: 1.460176991 | L26: 25.46017699 | P26: BillW | Q26: 8506290 | T26: JohnT | U26: 12.2 | V26: 11 | W26: 11 | X26: 11 | Y26: 11
A27: 22 | C27: 25 | D27: 19 | E27: -6 | H27: 1.672566372 | L27: 26.67256637 | P27: MikeW | Q27: 8506225 | T27: BobW | U27: 11.2 | V27: 10 | W27: 10 | X27: 10 | Y27: 10
A28: 23 | C28: 26 | D28: 20 | E28: -6 | H28: 1.884955752 | L28: 27.88495575 | P28: JimW | Q28: 8506279 | T28: Waylan g | U28: 23.1 | V28: 18.66666667 | W28: 18 | X28: 20 | Y28: 18
A29: 24 | C29: 27 | D29: 21 | E29: -6 | L29: 29.09734513 | P29: RobertD | T29: BillW | U29: 20.6 | V29: 20.66666667 | W29: 21 | X29: 20 | Y29: 21
A30: 25 | C30: 28 | D30: 22 | E30: -6 | H30: =+L30-C30 -> 2.309734513 | L30: 30.30973451 | T30: MikeW | U30: 19.2 | V30: 19 | W30: 19 | X30: 19 | Y30: 19
A31: 26 | C31: 29 | D31: 23 | E31: -6 | H31: =+L31-C31 -> 2.522123894 | L31: 31.52212389 | T31: JimW | U31: 20.5 | V31: 20.66666667 | W31: 21 | X31: 20 | Y31: 21
T32: RobertD | U32: 17.6 | V32: 17 | W32: 17 | X32: 17 | Y32: 17
A34: Tournament | C34: Gold HC | D34: Green HC | E34: Gr Adjust | L34: White
A35: 10 | C35: =ROUND(A35*(C$6/113),0) -> 11 | D35: =ROUND(A35*(B$6/113)+F$6,0) -> 7 | E35: =+D35-$C35 -> -4 | H35: =+L35-$C35 -> 0.4159292035 | L35: =A35*(L$6/113)+J$6 -> 11.4159292
A36: 11 | C36: =ROUND(A36*(C$6/113),0) -> 12 | D36: 8 | E36: -4 | H36: =+L36-C36 -> 0.5575221239 | L36: 12.55752212
A37: 12 | C37: 13 | D37: 9 | E37: -4 | H37: 0.6991150442 | L37: 13.69911504 | P37: PAR | Q37: Max if no Strokes
A38: 13 | C38: 14 | D38: 10 | E38: -4 | H38: 0.8407079646 | L38: 14.84070796
A39: 14 | C39: 16 | D39: 11 | E39: -5 | H39: -0.01769911504 | L39: 15.98230088
A40: 15 | C40: 17 | D40: 12 | E40: -5 | H40: 0.1238938053 | L40: 17.12389381
A41: 16 | C41: 18 | D41: 13 | E41: -5 | H41: 0.2654867257 | L41: 18.26548673
A42: 17 | C42: 19 | D42: 14 | E42: -5 | H42: 0.407079646 | L42: 19.40707965
A43: 18 | C43: 20 | D43: 15 | E43: -5 | H43: 0.5486725664 | L43: 20.54867257
A44: 19 | C44: 21 | D44: 16 | E44: -5 | H44: 0.6902654867 | L44: 21.69026549
A45: 20 | C45: 22 | D45: 17 | E45: -5 | H45: 0.8318584071 | L45: 22.83185841
A46: 21 | C46: 23 | D46: 18 | E46: -5 | H46: 0.9734513274 | L46: 23.97345133
A47: 22 | C47: 25 | D47: 19 | E47: -6 | H47: 0.1150442478 | L47: 25.11504425
A48: 23 | C48: 26 | D48: 20 | E48: -6 | H48: 0.2566371681 | L48: 26.25663717
A49: 24 | C49: 27 | D49: 21 | E49: -6 | H49: 0.3982300885 | L49: 27.39823009
A50: 25 | C50: 28 | D50: 22 | E50: -6 | H50: 0.5398230088 | L50: 28.53982301
A51: 26 | C51: 29 | D51: 23 | E51: -6 | H51: 0.6814159292 | L51: 29.68141593
A54: Palmer K/G | C54: Gold HC | D54: Green HC | E54: Gr Adjust | L54: White
A55: 10 | C55: =ROUND(A55*(C$5/113),0) -> 11 | D55: =ROUND(A55*(B$5/113)+F$5,0) -> 7 | E55: =+D55-$C55 -> -4 | H55: =+L55-$C55 -> 0.1504424779 | L55: =A55*(L$5/113)+J$5 -> 11.15044248
A56: 11 | C56: =ROUND(A56*(C$5/113),0) -> 12 | D56: =ROUND(A56*(B$5/113)+F$5,0) -> 8 | E56: -4 | H56: =+L56-C56 -> 0.2654867257 | L56: 12.26548673
A57: 12 | C57: 13 | D57: 10 | E57: -3 | H57: 0.3805309735 | L57: 13.38053097
A58: 13 | C58: 14 | D58: 11 | E58: -3 | H58: 0.4955752212 | L58: 14.49557522
A59: 14 | C59: 15 | D59: 12 | E59: -3 | H59: 0.610619469 | L59: 15.61061947
A60: 15 | C60: 16 | D60: 13 | E60: -3 | H60: 0.7256637168 | L60: 16.72566372
A61: 16 | C61: 18 | D61: 14 | E61: -4 | H61: -0.1592920354 | L61: 17.84070796
A62: 17 | C62: 19 | D62: 15 | E62: -4 | H62: -0.04424778761 | L62: 18.95575221
A63: 18 | C63: 20 | D63: 16 | E63: -4 | H63: 0.07079646018 | L63: 20.07079646
A64: 19 | C64: 21 | D64: 17 | E64: -4 | H64: 0.185840708 | L64: 21.18584071
A65: 20 | C65: 22 | D65: 18 | E65: -4 | H65: 0.3008849558 | L65: 22.30088496
A66: 21 | C66: 23 | D66: 19 | E66: -4 | H66: 0.4159292035 | L66: 23.4159292
A67: 22 | C67: 24 | D67: 20 | E67: -4 | H67: 0.5309734513 | L67: 24.53097345
A68: 23 | C68: 25 | D68: 21 | E68: -4 | H68: 0.6460176991 | L68: 25.6460177
A69: 24 | C69: 26 | D69: 22 | E69: -4 | H69: 0.7610619469 | L69: 26.76106195
A70: 25 | C70: 27 | D70: 23 | E70: -4 | H70: 0.8761061947 | L70: 27.87610619
A71: 26 | C71: 29 | D71: 24 | E71: -5 | H71: -0.008849557522 | L71: 28.99115044
A72: 27 | C72: 30 | D72: 25 | E72: -5 | H72: 0.1061946903 | L72: 30.10619469
A75: Jesse @ 26 Index avg 6, 6, 5 = 5.7 or -6 Avg
A76: Jesse @ 22 Index avg 6, 6, 4 = - 5.3 or -5 Avg
A81: 12

Sheet email list
A1: First Name | B1: Last Name | C1: email | D1: Count | E1: Full Name | J1: Matteson/Thomas/Lewis Golf Group The Woodlands Country Club 1981 - 2018
A2: Gerry | B2: Anderson | C2: <gerryjanderson@gmail.com> | D2: 1 | E2: =CONCATENATE(A2," ",B2) -> Gerry Anderson | J2: Gerry Anderson | K2: Tim Roesler
A3: Bob | B3: Edwards | C3: <rae1putt@aol.com> | D3: 2 | E3: =CONCATENATE(A3," ",B3) -> Bob Edwards | J3: Bob Edwards | K3: Ken Rowland
A4: John | B4: Heg | C4: <john.heg@hotmail.com> | D4: 3 | E4: John Heg | J4: John Heg | K4: Carlton Sheffield
A5: Jesse | B5: Johnson | C5: <jesseljohnson@msn.com> | D5: 4 | E5: Jesse Johnson | J5: Jesse Johnson | K5: Roy Simmons
A6: Jim | B6: Kenney | C6: <jasperjim@comcast.net> | D6: 5 | E6: Jim Kenney | J6: Jim Kenney | K6: Murray Smith
A7: John | B7: Keyes | C7: <Johnkeyes@comcast.net> | D7: 6 | E7: John Keyes | J7: John Keyes | K7: Jeff' Steimer
A8: Walt | B8: Lisiewski | C8: <wlisiewski@aol.com> | D8: 7 | E8: Walt Lisiewski | J8: Walt Lisiewski | K8: Larry Stick
A9: Robert | B9: Lux | C9: <robertlux@comcast.net> | D9: 8 | E9: Robert Lux | J9: Robert Lux | K9: John Truhe
A10: Colin | B10: MacRae | C10: <macraecolsal@aol.com> | D10: 9 | E10: Colin MacRae | J10: Colin MacRae | K10: McMath Wallis
A11: Craig | B11: Mellington | C11: <cmellington6@gmail.com> | D11: 10 | E11: Craig Mellington | J11: Craig Mellington | K11: Bob Watkins
A12: Gene | B12: Miller | C12: <emiller455@icloud.com> | D12: 11 | E12: Gene Miller | J12: Gene Miller | K12: Bill Weber
A13: Dan | B13: Miracle | C13: <dbmiracle@outlook.com> | D13: 12 | E13: Dan Miracle | J13: Dan Miracle | K13: Waylan West
A14: Tim | B14: Moore | C14: <tjmuga3.72@gmail.com> | D14: 13 | E14: Tim Moore | J14: Tim Moore | K14: Bill White
A15: Al | B15: Roeder | C15: <East16@comcast.net> | D15: 14 | E15: Al Roeder | J15: Al Roeder | K15: Mike Whyte
A16: Tim | B16: Roesler | C16: <timothyroesler@comcast.net> | D16: 15 | E16: Tim Roesler
A17: Ken | B17: Rowland | C17: <rowland.ken@gmail.com> | D17: 16 | E17: Ken Rowland
A18: Carlton | B18: Sheffield | C18: <F_Sheffield@sbcglobal.net> | D18: 17 | E18: Carlton Sheffield
A19: Roy | B19: Simmons | C19: <roy2414@gmail.com> | D19: 18 | E19: Roy Simmons | J19: MATTESON
A20: Murray | B20: Smith | C20: <murraysmithllc@outlook.com> | D20: 19 | E20: Murray Smith
A21: Jeff' | B21: Steimer | C21: <jgsteimer@yahoo.com> | D21: 20 | E21: Jeff' Steimer
A22: Larry | B22: Stick | C22: <larrystick1@comcast.net> | D22: 21 | E22: Larry Stick
A23: John | B23: Truhe | C23: <JTRUHE@comcast.net> | D23: 22 | E23: John Truhe
A24: McMath | B24: Wallis | C24: <wallis@mcmathmail.com> | D24: 23 | E24: McMath Wallis
A25: Bob | B25: Watkins | C25: <Bobwatkins16@gmail.com> | D25: 24 | E25: Bob Watkins
A26: Bill | B26: Weber | C26: <billw14@att.net> | D26: 25 | E26: Bill Weber
A27: Waylan | B27: West | C27: <wayrwest@aol.com> | D27: 26 | E27: Waylan West
A28: Bill | B28: White | C28: <billwhite46@comcast.net> | D28: 27 | E28: Bill White
A29: Mike | B29: Whyte | C29: <its4mcw@aol.com> | D29: 28 | E29: Mike Whyte
